Ref No,Fund Type,Dept,Cost Centre Description    ,Description    ,Creditor Name    ,GL Code Net Amount,Payment date        
2,Revenue,CCHD,Bed purchasing - Under 65s PWLD - North,Residential Homes,.,6770.72, 20-Mar-2012
3,Revenue,CCHD,Supporting People Programme,Grants to Voluntary Bodies,1625 Independent People,15847.2, 29-Mar-2012
4,Revenue,CCHD,Bed purchasing - Phys Dis - North,Nursing Homes,26 Severn Road,14540.4, 20-Mar-2012
5,Revenue,CCHD,Supported Living - KD,Private & Voluntary Home Care,3 Trees Community Support Ltd,2733.21, 01-Mar-2012
6,Revenue,CCHD,Purchase of Non-Res Care - KD,Private & Voluntary Day Care,3 Trees Community Support Ltd,5348.68, 01-Mar-2012
7,Revenue,CCHD,Supported Living - PS,Private & Voluntary Home Care,3 Trees Community Support Ltd,585.05, 21-Mar-2012
8,Revenue,CCHD,Supported Living - KH,Private & Voluntary Home Care,3 Trees Community Support Ltd,1259.86, 22-Mar-2012
9,Revenue,CCHD,Supported Living - KD,Private & Voluntary Home Care,3 Trees Community Support Ltd,2334.41, 12-Mar-2012
10,Revenue,CCHD,Purchase of Non-Res Care - PS,Private & Voluntary Day Care,3 Trees Community Support Ltd,526.34, 21-Mar-2012
11,Revenue,CCHD,Purchase of Non-Res Care - KD,Private & Voluntary Day Care,3 Trees Community Support Ltd,1673.12, 15-Mar-2012
12,Revenue,CCHD,Purchase of Non-Res Care - KD,Private & Voluntary Day Care,3 Trees Community Support Ltd,1661.4, 15-Mar-2012
13,Revenue,CCHD,Purchase of Non-Res Care - KD,Private & Voluntary Day Care,3 Trees Community Support Ltd,1418.49, 16-Mar-2012
14,Revenue,CCHD,Purchase of Non-Res Care - KD,Private & Voluntary Day Care,3 Trees Community Support Ltd,5699.4, 19-Mar-2012
15,Revenue,CCHD,Purchase of Non-Res Care - KH,Private & Voluntary Day Care,3 Trees Community Support Ltd,3082.96, 20-Mar-2012
16,Revenue,CCHD,Supported Living - KH,Private & Voluntary Home Care,3 Trees Community Support Ltd,7725.2, 15-Mar-2012
17,Revenue,CCHD,Supported Living (S28a) South,Private & Voluntary Home Care,3 Trees Community Support Ltd,6085.56, 22-Mar-2012
18,Revenue,CCHD,Home Care - Elderly - North,Other Small Contracts,3 Trees Community Support Ltd,46.56, 13-Mar-2012
19,Revenue,CCHD,Day Care - North,Private & Voluntary Day Care,3 Trees Community Support Ltd,93.12, 13-Mar-2012
20,Revenue,CCHD,Home Care - LD Under 65 - South,Private & Voluntary Home Care,3 Trees Community Support Ltd,112.52, 13-Mar-2012
21,Revenue,CCHD,PWLD Home Care - Under 65 - KH,Private & Voluntary Home Care,3 Trees Community Support Ltd,259.96, 13-Mar-2012
22,Revenue,CCHD,Bed Purchasing - Elderly S117- North,Residential Homes,3Rd Floor Westbury House,3376, 20-Mar-2012
23,Revenue,CCHD,Charlton,Maintenance by Contractor,A W Parry Lifts Limited,440, 23-Mar-2012
24,Revenue,CCHD,Direct Payments - Phys Dis - North,Grants to Voluntary Bodies,A4E Management Limited,22857.93, 29-Mar-2012
25,Revenue,CCHD,Bed Purchasing - Elderly - South,Nursing Homes,Aabletone Nursing Home,1177.52, 20-Mar-2012
26,Revenue,CCHD,Bed Purchasing - Elderly - South,Residential Homes,Ablecare Homes,903.4, 20-Mar-2012
27,Revenue,CCHD,Frenchay Hospital Purchasing,Residential Homes,Ablecare Homes,3621.32, 20-Mar-2012
28,Revenue,CCHD,Southmead Hospital Purchasing,Residential Homes,Ablecare Homes,1325.24, 20-Mar-2012
29,Revenue,CCHD,Bed Purchasing - Elderly - North,Residential Homes,Ablecare Homes,746.61, 20-Mar-2012
30,Revenue,CCHD,Frenchay Hospital Purchasing,Residential Homes,Ablecare Homes,1248.36, 20-Mar-2012
31,Revenue,CCHD,Bed Purchasing - Elderly - South,Residential Homes,Ablecare Homes,1572.44, 20-Mar-2012
32,Revenue,CCHD,Bed Purchasing - Elderly - North,Residential Homes,Ablecare Homes,1226.72, 20-Mar-2012
33,Revenue,CCHD,Frenchay Hospital Purchasing,Residential Homes,Ablecare Homes,1232.16, 20-Mar-2012
34,Revenue,CCHD,Southmead Hospital Purchasing,Residential Homes,Ablecare Homes,1152.08, 20-Mar-2012
35,Revenue,CCHD,Bed purchasing - Elderly MH - North,Residential Homes,Ablecare Homes,1180.8, 20-Mar-2012
36,Revenue,CCHD,Bed purchasing - Elderly MH - North,Residential Homes,Ablecare Homes,1381, 20-Mar-2012
37,Revenue,CCHD,Bed Purchasing - Elderly - South,Residential Homes,Ablecare Homes,1263.6, 20-Mar-2012
38,Revenue,CCHD,Older People's Commissioned Se,Grants to Voluntary Bodies,Action for Blind People,19065, 30-Mar-2012
39,Revenue,CCHD,Emersons Green Offices,Conference Expenses,ADASS,450, 14-Mar-2012
40,Revenue,CCHD,Emersons Green Offices,Conference Expenses,ADASS,450, 14-Mar-2012
41,Revenue,CCHD,Emersons Green Offices,Conference Expenses,ADASS,450, 13-Mar-2012
42,Revenue,CCHD,Emersons Green Offices,Conference Expenses,ADASS,450, 14-Mar-2012
43,Revenue,CCHD,Day Care - North,Private & Voluntary Day Care,Age UK South Gloucestershire,1693.12, 29-Mar-2012
44,Revenue,CCHD,Day Care - North,Private & Voluntary Day Care,Age UK South Gloucestershire,1157.44, 29-Mar-2012
45,Revenue,CCHD,Day Care - South,Private & Voluntary Day Care,Age UK South Gloucestershire,615.68, 02-Mar-2012
46,Revenue,CCHD,Preventative Technology Grant,Other Supplies & Services,Age UK South Gloucestershire,19720, 30-Mar-2012
47,Revenue,CCHD,Day Care - South,Private & Voluntary Day Care,Age UK South Gloucestershire,1095.68, 01-Mar-2012
48,Revenue,CCHD,Day Care - South,Private & Voluntary Day Care,Age UK South Gloucestershire,541.76, 01-Mar-2012
49,Revenue,CCHD,Day Care - South,Private & Voluntary Day Care,Age UK South Gloucestershire,1095.68, 27-Mar-2012
50,Revenue,CCHD,Home Care - Elderly - South,Other Small Contracts,Agincare UK Limited,524.12, 22-Mar-2012
51,Revenue,CCHD,Home Care - Elderly - South,Other Small Contracts,Agincare UK Limited,531.72, 22-Mar-2012
52,Revenue,CCHD,Home Care - Elderly - North,Other Small Contracts,Agincare UK Limited,799.96, 07-Mar-2012
53,Revenue,CCHD,Home Care - Elderly - North,Other Small Contracts,Agincare UK Limited,799.96, 07-Mar-2012
54,Revenue,CCHD,Home Care - Elderly - North,Other Small Contracts,Agincare UK Limited,799.96, 07-Mar-2012
55,Revenue,CCHD,Home Care - Elderly - North,Other Small Contracts,Agincare UK Limited,799.96, 07-Mar-2012
56,Revenue,CCHD,Home Care - Elderly - North,Other Small Contracts,Agincare UK Limited,799.96, 07-Mar-2012
57,Revenue,CCHD,Home Care - Elderly - North,Other Small Contracts,Agincare UK Limited,799.96, 07-Mar-2012
58,Revenue,CCHD,Home Care - Elderly - South,Other Small Contracts,Agincare UK Limited,1254, 19-Mar-2012
59,Revenue,CCHD,Home Care - Elderly - North,Other Small Contracts,Agincare UK Limited,391.4, 19-Mar-2012
60,Revenue,CCHD,Day Care - South,Private & Voluntary Day Care,Agincare UK Limited,57, 19-Mar-2012
61,Revenue,CCHD,Elderly MH Day Care North,Private & Voluntary Day Care,Agincare UK Limited,102.6, 19-Mar-2012
62,Revenue,CCHD,Contracts & Commissioning Team,Other Small Contracts,Agincare UK Limited,26389.27, 28-Mar-2012
63,Revenue,CCHD,Home Care - Elderly - South,Other Small Contracts,Agincare UK Limited,1288.2, 05-Mar-2012
64,Revenue,CCHD,Home Care - Elderly - North,Other Small Contracts,Agincare UK Limited,615.6, 05-Mar-2012
65,Revenue,CCHD,Day Care - South,Private & Voluntary Day Care,Agincare UK Limited,250.8, 05-Mar-2012
66,Revenue,CCHD,Day Care - North,Private & Voluntary Day Care,Agincare UK Limited,30.4, 05-Mar-2012
67,Revenue,CCHD,Home care - Elderly MH - North,Other Small Contracts,Agincare UK Limited,121.6, 05-Mar-2012
68,Revenue,CCHD,Elderly MH Day Care North,Private & Voluntary Day Care,Agincare UK Limited,106.4, 05-Mar-2012
69,Revenue,CCHD,Home Care - Elderly - South,Other Small Contracts,Agincare UK Limited,1208.4, 13-Mar-2012
70,Revenue,CCHD,Home Care - Elderly - North,Other Small Contracts,Agincare UK Limited,642.2, 13-Mar-2012
71,Revenue,CCHD,Day Care - South,Private & Voluntary Day Care,Agincare UK Limited,220.4, 13-Mar-2012
72,Revenue,CCHD,Day Care - North,Private & Voluntary Day Care,Agincare UK Limited,30.4, 13-Mar-2012
73,Revenue,CCHD,Elderly MH Day Care North,Private & Voluntary Day Care,Agincare UK Limited,106.4, 13-Mar-2012
74,Revenue,CCHD,S117 Placements PCT,Residential Homes,Alexandra House,6697.76, 20-Mar-2012
75,Revenue,CCHD,Home Care - Elderly - North,Other Small Contracts,Allied  Healthcare Group Limited,862.89, 06-Mar-2012
76,Revenue,CCHD,Home Care - Elderly - North,Other Small Contracts,Allied  Healthcare Group Limited,862.89, 06-Mar-2012
77,Revenue,CCHD,Home Care - Elderly - North,Other Small Contracts,Allied  Healthcare Group Limited,862.89, 06-Mar-2012
78,Revenue,CCHD,Home Care - Elderly - North,Other Small Contracts,Allied  Healthcare Group Limited,862.89, 06-Mar-2012
79,Revenue,CCHD,Home Care - Elderly - South,Other Small Contracts,Allied Healthcare Group,1014.08, 29-Mar-2012
80,Revenue,CCHD,Home Care - Elderly - North,Other Small Contracts,Allied Healthcare Group,1032.24, 29-Mar-2012
81,Revenue,CCHD,Day Care - North,Private & Voluntary Day Care,Allied Healthcare Group,22.44, 29-Mar-2012
82,Revenue,CCHD,Home Care - Elderly - South,Other Small Contracts,Allied Healthcare Group,950.1, 29-Mar-2012
83,Revenue,CCHD,Home Care - Elderly - North,Other Small Contracts,Allied Healthcare Group,860.2, 29-Mar-2012
84,Revenue,CCHD,Day Care - North,Private & Voluntary Day Care,Allied Healthcare Group,44.88, 29-Mar-2012
85,Revenue,CCHD,Elderly MH Day Care North,Private & Voluntary Day Care,Alzheimer`s Society Bristol,538.24, 01-Mar-2012
86,Revenue,CCHD,Elderly MH Day Care North,Private & Voluntary Day Care,Alzheimer`s Society Bristol,807.36, 01-Mar-2012
87,Revenue,CCHD,Elderly MH Day Care North,Private & Voluntary Day Care,Alzheimer`s Society Bristol,874.64, 01-Mar-2012
88,Revenue,CCHD,Elderly MH Day Care North,Private & Voluntary Day Care,Alzheimer`s Society Bristol,874.64, 01-Mar-2012
89,Revenue,CCHD,Elderly MH Day Care North,Private & Voluntary Day Care,Alzheimer`s Society Bristol,605.52, 01-Mar-2012
90,Revenue,CCHD,Carer's Grant - MH Eld,Private & Voluntary Day Care,Alzheimer`s Society Bristol,538.24, 01-Mar-2012
91,Revenue,CCHD,User Involvement,Printing & Stationery,Ambassador Litho Limited,1439, 16-Mar-2012
92,Revenue,CCHD,Frenchay Hospital Purchasing,Residential Homes,Anbridge Care Home,832, 20-Mar-2012
93,Revenue,CCHD,Preventative Technology Grant,Other Supplies & Services,Apple Retail UK Ltd,3485.56, 09-Mar-2012
94,Revenue,CCHD,Alexandra Way,Prop.Serv. General Repairs,Aquarius Waste Management Ltd,840, 02-Mar-2012
95,Revenue,CCHD,Bed purchasing - Under 65s PWLD - North,Residential Homes,Ark Care Homes Ltd,10342.92, 20-Mar-2012
96,Revenue,CCHD,Bed and Breakfast,Bed & Breakfast,Ashley Guest Houses Ltd,1440, 02-Mar-2012
97,Revenue,CCHD,Bed Purchasing - LD S28A- Over 65- South,Residential Homes,Aspects &  Milestones Trust,3828.08, 20-Mar-2012
98,Revenue,CCHD,Bed Purchasing - Elderly - South,Residential Homes,Aspects &  Milestones Trust,1379, 20-Mar-2012
99,Revenue,CCHD,Bed Purchasing - Elderly S117- North,Residential Homes,Aspects &  Milestones Trust,1304, 20-Mar-2012
100,Revenue,CCHD,Bed Purchasing - Elderly S117- North,Nursing Homes,Aspects &  Milestones Trust,1911.96, 20-Mar-2012
101,Revenue,CCHD,Bed purchasing - Elderly PWLD - North,Residential Homes,Aspects &  Milestones Trust,3505.52, 20-Mar-2012
102,Revenue,CCHD,Bed Purchasing - Under 65s PWLD - South,Residential Homes,Aspects &  Milestones Trust,5152, 20-Mar-2012
103,Revenue,CCHD,Bed Purchasing - Under 65s PWLD - South,Residential Homes,Aspects &  Milestones Trust,5601.08, 20-Mar-2012
104,Revenue,CCHD,Bed purchasing - Under 65s PWLD - North,Nursing Homes,Aspects &  Milestones Trust,2703.44, 20-Mar-2012
105,Revenue,CCHD,Bed Purchasing - Elderly S117- North,Nursing Homes,Aspects &  Milestones Trust,1912, 20-Mar-2012
106,Revenue,CCHD,Bed purchasing - Elderly MH - North,Nursing Homes,Aspects &  Milestones Trust,1453, 20-Mar-2012
107,Revenue,CCHD,Bed purchasing - Elderly PWLD - South,Residential Homes,Aspects &  Milestones Trust,4295.72, 20-Mar-2012
108,Revenue,CCHD,Bed purchasing - S28A Under 65 - South,Nursing Homes,Aspects &  Milestones Trust,5712.32, 20-Mar-2012
109,Revenue,CCHD,Bed purchasing - S28A Under 65 - South,Residential Homes,Aspects &  Milestones Trust,5272.24, 20-Mar-2012
110,Revenue,CCHD,Bed purchasing - S28A Under 65 - South,Residential Homes,Aspects &  Milestones Trust,5251.04, 20-Mar-2012
111,Revenue,CCHD,Bed purchasing - Under 65s PWLD - North,Residential Homes,Aspects &  Milestones Trust,5638.32, 20-Mar-2012
112,Revenue,CCHD,Under 65s PWLD - KH,Residential Homes,Aspects &  Milestones Trust,3782.04, 20-Mar-2012
113,Revenue,CCHD,Bed purchasing - S28A Under 65 - South,Nursing Homes,Aspects &  Milestones Trust,7624.84, 20-Mar-2012
114,Revenue,CCHD,MH Purchasing - Younger,Residential Homes,Aspects &  Milestones Trust,1009, 20-Mar-2012
115,Revenue,CCHD,Bed purchasing - Elderly PWLD - South,Residential Homes,Aspects &  Milestones Trust,5191.2, 20-Mar-2012
116,Revenue,CCHD,Bed purchasing - Elderly PWLD - South,Residential Homes,Aspects &  Milestones Trust,3739.2, 20-Mar-2012
117,Revenue,CCHD,Elderly PWLD - KH,Residential Homes,Aspects &  Milestones Trust,4664.24, 20-Mar-2012
118,Revenue,CCHD,Bed purchasing - S28A Under 65 - South,Residential Homes,Aspects &  Milestones Trust,5187.68, 20-Mar-2012
119,Revenue,CCHD,Bed purchasing - S28A Under 65 - South,Residential Homes,Aspects &  Milestones Trust,6036, 20-Mar-2012
120,Revenue,CCHD,Bed purchasing - S28A Under 65 - South,Nursing Homes,Aspects &  Milestones Trust,6122.48, 20-Mar-2012
121,Revenue,CCHD,Bed Purchasing - Under 65s PWLD - South,Residential Homes,Aspects &  Milestones Trust,3648.4, 20-Mar-2012
122,Revenue,CCHD,Bed purchasing - S28A Under 65 - South,Residential Homes,Aspects &  Milestones Trust,6036, 20-Mar-2012
123,Revenue,CCHD,Bed purchasing - S28A Under 65 - South,Residential Homes,Aspects &  Milestones Trust,4787.92, 20-Mar-2012
124,Revenue,CCHD,Bed Purchasing - LD S28A- Over 65- South,Residential Homes,Aspects &  Milestones Trust,4664.48, 20-Mar-2012
125,Revenue,CCHD,Bed Purchasing - LD S28A- Over 65- South,Residential Homes,Aspects &  Milestones Trust,3959.08, 20-Mar-2012
126,Revenue,CCHD,Bed purchasing - S28A Under 65 - South,Residential Homes,Aspects &  Milestones Trust,6036, 20-Mar-2012
127,Revenue,CCHD,Bed Purchasing - LD S28A- Over 65- South,Residential Homes,Aspects &  Milestones Trust,4179.08, 20-Mar-2012
128,Revenue,CCHD,Bed purchasing - S28A Under 65 - South,Residential Homes,Aspects &  Milestones Trust,6036, 20-Mar-2012
129,Revenue,CCHD,Bed Purchasing - LD S28A- Over 65- South,Residential Homes,Aspects &  Milestones Trust,3854.92, 20-Mar-2012
130,Revenue,CCHD,Bed purchasing - S28A Under 65 - South,Residential Homes,Aspects &  Milestones Trust,4980, 20-Mar-2012
131,Revenue,CCHD,Bed purchasing - S28A Under 65 - South,Residential Homes,Aspects &  Milestones Trust,6528.04, 20-Mar-2012
132,Revenue,CCHD,Bed purchasing - S28A Under 65 - South,Residential Homes,Aspects &  Milestones Trust,3992.16, 20-Mar-2012
133,Revenue,CCHD,Bed Purchasing - LD S28A- Over 65- South,Residential Homes,Aspects &  Milestones Trust,5737.96, 20-Mar-2012
134,Revenue,CCHD,Bed Purchasing - LD S28A- Over 65- South,Residential Homes,Aspects &  Milestones Trust,3351.52, 20-Mar-2012
135,Revenue,CCHD,Bed Purchasing - LD S28A- Over 65- South,Residential Homes,Aspects &  Milestones Trust,4691.8, 20-Mar-2012
136,Revenue,CCHD,Bed Purchasing - LD S28A- Over 65- South,Residential Homes,Aspects &  Milestones Trust,4837.04, 20-Mar-2012
137,Revenue,CCHD,Bed Purchasing - LD S28A- Over 65- South,Residential Homes,Aspects &  Milestones Trust,4556.16, 20-Mar-2012
138,Revenue,CCHD,Bed Purchasing - LD S28A- Over 65- South,Residential Homes,Aspects &  Milestones Trust,4112.28, 20-Mar-2012
139,Revenue,CCHD,Bed Purchasing - LD S28A- Over 65- South,Residential Homes,Aspects &  Milestones Trust,3419.64, 20-Mar-2012
140,Revenue,CCHD,Bed purchasing - S28A Under 65 - South,Residential Homes,Aspects &  Milestones Trust,7200, 20-Mar-2012
141,Revenue,CCHD,Bed purchasing - S28A Under 65 - South,Nursing Homes,Aspects &  Milestones Trust,6203.68, 20-Mar-2012
142,Revenue,CCHD,Bed Purchasing - LD S28A- Over 65- South,Residential Homes,Aspects &  Milestones Trust,3445.12, 20-Mar-2012
143,Revenue,CCHD,Bed Purchasing - LD S28A- Over 65- South,Residential Homes,Aspects &  Milestones Trust,3207.68, 20-Mar-2012
144,Revenue,CCHD,Bed Purchasing - LD S28A- Over 65- South,Residential Homes,Aspects &  Milestones Trust,3263.96, 20-Mar-2012
145,Revenue,CCHD,Bed Purchasing - LD S28A- Over 65- South,Residential Homes,Aspects &  Milestones Trust,4652.36, 20-Mar-2012
146,Revenue,CCHD,Section 117 Placements MH Younger,Residential Homes,Aspects &  Milestones Trust,1304, 20-Mar-2012
147,Revenue,CCHD,Bed purchasing - Elderly MH - North,Residential Homes,Aspects &  Milestones Trust,845.36, 20-Mar-2012
148,Revenue,CCHD,Bed purchasing - S28A Under 65 - South,Residential Homes,Aspects &  Milestones Trust,4723.04, 20-Mar-2012
149,Revenue,CCHD,Bed purchasing - Elderly PWLD - North,Residential Homes,Aspects &  Milestones Trust,2722.88, 20-Mar-2012
150,Revenue,CCHD,Elderly PWLD - KH,Residential Homes,Aspects &  Milestones Trust,5344.36, 20-Mar-2012
151,Revenue,CCHD,Bed purchasing - Under 65s PWLD - North,Residential Homes,Aspects &  Milestones Trust,5420.08, 20-Mar-2012
152,Revenue,CCHD,Bed purchasing - Elderly PWLD - North,Residential Homes,Aspects &  Milestones Trust,4180.6, 20-Mar-2012
153,Revenue,CCHD,Bed Purchasing - Under 65s PWLD - South,Residential Homes,Aspects &  Milestones Trust,3797.04, 20-Mar-2012
154,Revenue,CCHD,Bed purchasing - S28A Under 65 - South,Residential Homes,Aspects &  Milestones Trust,5687.48, 20-Mar-2012
155,Revenue,CCHD,Bed Purchasing - LD S28A- Over 65- South,Residential Homes,Aspects &  Milestones Trust,3227.36, 20-Mar-2012
156,Revenue,CCHD,Section 117 Placements MH Younger,Residential Homes,Aspects &  Milestones Trust,1688, 20-Mar-2012
157,Revenue,CCHD,MH Purchasing - Younger,Residential Homes,Aspects &  Milestones Trust,1009, 20-Mar-2012
158,Revenue,CCHD,Bed Purchasing - LD S28A- Over 65- South,Residential Homes,Aspects &  Milestones Trust,3463.2, 20-Mar-2012
159,Revenue,CCHD,Bed purchasing - S28A Under 65 - South,Residential Homes,Aspects &  Milestones Trust,3514.96, 20-Mar-2012
160,Revenue,CCHD,Bed purchasing - S28A Under 65 - South,Residential Homes,Aspects &  Milestones Trust,4980, 20-Mar-2012
161,Revenue,CCHD,Bed purchasing - S28A Under 65 - South,Residential Homes,Aspects &  Milestones Trust,5936.36, 20-Mar-2012
162,Revenue,CCHD,Bed Purchasing - LD S28A- Over 65- South,Residential Homes,Aspects &  Milestones Trust,5810.64, 20-Mar-2012
163,Revenue,CCHD,Bed Purchasing - LD S28A- Over 65- South,Residential Homes,Aspects &  Milestones Trust,4106.08, 20-Mar-2012
164,Revenue,CCHD,Bed Purchasing - LD S28A- Over 65- South,Residential Homes,Aspects &  Milestones Trust,4652.36, 20-Mar-2012
165,Revenue,CCHD,Bed Purchasing - LD S28A- Over 65- South,Residential Homes,Aspects &  Milestones Trust,4693.88, 20-Mar-2012
166,Revenue,CCHD,Bed Purchasing - LD S28A- Over 65- South,Residential Homes,Aspects &  Milestones Trust,5524.88, 20-Mar-2012
167,Revenue,CCHD,Bed purchasing - S28A Under 65 - South,Residential Homes,Aspects &  Milestones Trust,7621.72, 20-Mar-2012
168,Revenue,CCHD,Bed Purchasing - LD S28A- Over 65- South,Residential Homes,Aspects &  Milestones Trust,4831.24, 20-Mar-2012
169,Revenue,CCHD,Bed purchasing - S28A Under 65 - South,Residential Homes,Aspects &  Milestones Trust,4675.48, 20-Mar-2012
170,Revenue,CCHD,Bed Purchasing - LD S28A- Over 65- South,Residential Homes,Aspects &  Milestones Trust,4814.6, 20-Mar-2012
171,Revenue,CCHD,Bed Purchasing - LD S28A- Over 65- South,Residential Homes,Aspects &  Milestones Trust,5393.12, 20-Mar-2012
172,Revenue,CCHD,Bed purchasing - S28A Under 65 - South,Residential Homes,Aspects &  Milestones Trust,4546.52, 20-Mar-2012
173,Revenue,CCHD,Bed Purchasing - LD S28A- Over 65- South,Residential Homes,Aspects &  Milestones Trust,4814.6, 20-Mar-2012
174,Revenue,CCHD,Bed Purchasing - LD S28A- Over 65- South,Residential Homes,Aspects &  Milestones Trust,5200, 20-Mar-2012
175,Revenue,CCHD,Bed Purchasing - LD S28A- Over 65- South,Residential Homes,Aspects &  Milestones Trust,4837.04, 20-Mar-2012
176,Revenue,CCHD,Bed purchasing - S28A Under 65 - South,Residential Homes,Aspects &  Milestones Trust,4667.44, 20-Mar-2012
177,Revenue,CCHD,Bed purchasing - S28A Under 65 - South,Residential Homes,Aspects &  Milestones Trust,6036, 20-Mar-2012
178,Revenue,CCHD,Bed Purchasing - LD S28A- Over 65- South,Residential Homes,Aspects &  Milestones Trust,5538.72, 20-Mar-2012
179,Revenue,CCHD,Bed purchasing - S28A Under 65 - South,Residential Homes,Aspects &  Milestones Trust,3422.8, 20-Mar-2012
180,Revenue,CCHD,Bed Purchasing - LD S28A- Over 65- South,Residential Homes,Aspects &  Milestones Trust,3230.96, 20-Mar-2012
181,Revenue,CCHD,Bed Purchasing - LD S28A- Over 65- South,Residential Homes,Aspects &  Milestones Trust,3366.4, 20-Mar-2012
182,Revenue,CCHD,Bed Purchasing - LD S28A- Over 65- South,Residential Homes,Aspects &  Milestones Trust,3161.2, 20-Mar-2012
183,Revenue,CCHD,Under 65s PWLD - KH,Residential Homes,Aspects &  Milestones Trust,7047.48, 20-Mar-2012
184,Revenue,CCHD,Bed Purchasing - Elderly S117- North,Residential Homes,Aspects &  Milestones Trust,1913.04, 20-Mar-2012
185,Revenue,CCHD,Bed purchasing - Elderly MH - North,Nursing Homes,Aspects &  Milestones Trust,1323.08, 20-Mar-2012
186,Revenue,CCHD,Bed purchasing - Under 65s PWLD - North,Residential Homes,Aspects &  Milestones Trust,6036, 20-Mar-2012
187,Revenue,CCHD,MH Purchasing - Younger,Nursing Homes,Aspects &  Milestones Trust,908.88, 20-Mar-2012
188,Revenue,CCHD,MH Purchasing - Younger,Nursing Homes,Aspects &  Milestones Trust,1097, 20-Mar-2012
189,Revenue,CCHD,MH Purchasing - Younger,Residential Homes,Aspects &  Milestones Trust,1009, 20-Mar-2012
190,Revenue,CCHD,Bed purchasing - Elderly PWLD - South,Residential Homes,Aspects &  Milestones Trust,3353.52, 20-Mar-2012
191,Revenue,CCHD,Section 117 Placements MH Younger,Nursing Homes,Aspects &  Milestones Trust,1392, 20-Mar-2012
192,Revenue,CCHD,Bed purchasing - S28A Under 65 - South,Residential Homes,Aspects &  Milestones Trust,4796.24, 20-Mar-2012
193,Revenue,CCHD,Bed Purchasing - LD S28A- Over 65- South,Residential Homes,Aspects &  Milestones Trust,4562.12, 20-Mar-2012
194,Revenue,CCHD,Under 65s PWLD - KH,Residential Homes,Aspects &  Milestones Trust,4115.4, 20-Mar-2012
195,Revenue,CCHD,Bed Purchasing - LD S28A- Over 65- South,Residential Homes,Aspects &  Milestones Trust,4037.96, 20-Mar-2012
196,Revenue,CCHD,Bed Purchasing - LD S28A- Over 65- South,Residential Homes,Aspects &  Milestones Trust,3748.88, 20-Mar-2012
197,Revenue,CCHD,Bed Purchasing - LD S28A- Over 65- South,Residential Homes,Aspects &  Milestones Trust,5810.64, 20-Mar-2012
198,Revenue,CCHD,Bed Purchasing - LD S28A- Over 65- South,Residential Homes,Aspects &  Milestones Trust,4409.28, 20-Mar-2012
199,Revenue,CCHD,Bed Purchasing - LD S28A- Over 65- South,Residential Homes,Aspects &  Milestones Trust,3917.36, 20-Mar-2012
200,Revenue,CCHD,Bed Purchasing - LD S28A- Over 65- South,Residential Homes,Aspects &  Milestones Trust,4343.92, 20-Mar-2012
201,Revenue,CCHD,Bed Purchasing - LD S28A- Over 65- South,Residential Homes,Aspects &  Milestones Trust,5080.6, 20-Mar-2012
202,Revenue,CCHD,Bed purchasing - Elderly MH - North,Residential Homes,Aspects &  Milestones Trust,1214, 20-Mar-2012
203,Revenue,CCHD,Bed Purchasing - LD S28A- Over 65- South,Residential Homes,Aspects &  Milestones Trust,4693.88, 20-Mar-2012
204,Revenue,CCHD,Bed purchasing - S28A Under 65 - South,Residential Homes,Aspects &  Milestones Trust,5336.24, 20-Mar-2012
205,Revenue,CCHD,South Glos Users in South Glos Homes,Nursing Homes,Aspects &  Milestones Trust,4441.17, 20-Mar-2012
206,Revenue,CCHD,Bed Purchasing - Elderly S117- North,Nursing Homes,Aspects &  Milestones Trust,1912, 20-Mar-2012
207,Revenue,CCHD,Bed Purchasing - Elderly S117- North,Nursing Homes,Aspects &  Milestones Trust,1912, 20-Mar-2012
208,Revenue,CCHD,Bed Purchasing - Elderly S117- North,Residential Homes,Aspects &  Milestones Trust,1304, 20-Mar-2012
209,Revenue,CCHD,Bed purchasing - Under 65s PWLD - North,Residential Homes,Aspects & Milestones Trust,8708.64, 20-Mar-2012
210,Revenue,CCHD,Supporting People Programme,Grants to Voluntary Bodies,Aspects and Milestones Trust,1375.38, 20-Mar-2012
211,Revenue,CCHD,Supporting People Programme,Grants to Voluntary Bodies,Aspects and Milestones Trust,1675.2, 20-Mar-2012
212,Revenue,CCHD,Supporting People Programme,Grants to Voluntary Bodies,Aspects and Milestones Trust,2087.71, 20-Mar-2012
213,Revenue,CCHD,Supporting People Programme,Grants to Voluntary Bodies,Aspects and Milestones Trust,2684.11, 20-Mar-2012
214,Revenue,CCHD,Supporting People Programme,Grants to Voluntary Bodies,Aspects and Milestones Trust,2743.35, 20-Mar-2012
215,Revenue,CCHD,Supporting People Programme,Grants to Voluntary Bodies,Aspects and Milestones Trust,3853.67, 20-Mar-2012
216,Revenue,CCHD,Under 65s PWLD - KH,Residential Homes,Autism Specialised Care Homes,5425.76, 20-Mar-2012
217,Revenue,CCHD,Younger Adult Mental Health,Management Contract - Unisys,Avon & Wiltshire Mental Health,4999, 02-Mar-2012
218,Revenue,CCHD,Newton House,Prop.Serv. General Repairs,Avon Armour Ltd,788, 27-Mar-2012
219,Revenue,CCHD,Frenchay Hospital Purchasing,Residential Homes,Beaufort House,670.32, 20-Mar-2012
220,Revenue,CCHD,Bed purchasing - Elderly MH - North,Residential Homes,Beaufort House,1399.92, 20-Mar-2012
221,Revenue,CCHD,Southmead Hospital Purchasing,Residential Homes,Beaufort House,1641, 20-Mar-2012
222,Revenue,CCHD,Frenchay Hospital Purchasing,Residential Homes,Beaufort House,1258.76, 20-Mar-2012
223,Revenue,CCHD,Bed purchasing - Elderly MH - North,Residential Homes,Beaufort House,1288.32, 20-Mar-2012
224,Revenue,CCHD,Bed purchasing - Elderly MH - North,Residential Homes,Beaufort House,1307.68, 20-Mar-2012
225,Revenue,CCHD,Bed Purchasing - Elderly - North,Residential Homes,Beaufort House,1670.64, 20-Mar-2012
226,Revenue,CCHD,Bed purchasing - Elderly MH - North,Residential Homes,Beaufort House,1032.16, 20-Mar-2012
227,Revenue,CCHD,Bed purchasing - Elderly MH - North,Residential Homes,Beaufort House,1654.92, 20-Mar-2012
228,Revenue,CCHD,Elderly PWLD - KH,Residential Homes,Bedrock Lodge,2821.28, 20-Mar-2012
229,Revenue,CCHD,Section 117 Placements MH Younger,Residential Homes,Bedrock Lodge,1790.12, 20-Mar-2012
230,Revenue,CCHD,South Glos Users in South Glos Homes,Nursing Homes,Beech House,667.73, 20-Mar-2012
231,Revenue,CCHD,South Glos Users in South Glos Homes,Nursing Homes,Beech House,652.2, 20-Mar-2012
232,Revenue,CCHD,South Glos Users in South Glos Homes,Nursing Homes,Beech House,605.61, 20-Mar-2012
233,Revenue,CCHD,South Glos Users in South Glos Homes,Nursing Homes,Beech House,605.61, 20-Mar-2012
234,Revenue,CCHD,South Glos Users in South Glos Homes,Nursing Homes,Beech House,1257.81, 20-Mar-2012
235,Revenue,CCHD,Frenchay Hospital Purchasing,Nursing Homes,Beech House,3130.16, 20-Mar-2012
236,Revenue,CCHD,South Glos Users in South Glos Homes,Nursing Homes,Beech House,1304.4, 20-Mar-2012
237,Revenue,CCHD,Bed Purchasing - Elderly - North,Nursing Homes,Beech House,3844.64, 20-Mar-2012
238,Revenue,CCHD,Southmead Hospital Purchasing,Nursing Homes,Beech House,3142.8, 20-Mar-2012
239,Revenue,CCHD,Bed Purchasing - Elderly - North,Nursing Homes,Beech House,2381.12, 20-Mar-2012
240,Revenue,CCHD,Southmead Hospital Purchasing,Nursing Homes,Blossom Field,1163.59, 20-Mar-2012
241,Revenue,CCHD,Bed Purchasing - Elderly S117- North,Nursing Homes,Blossom Field,1376.7, 20-Mar-2012
242,Revenue,CCHD,Bed Purchasing - Elderly - North,Residential Homes,Blossom Field,614.5, 20-Mar-2012
243,Revenue,CCHD,South Glos Users in South Glos Homes,Nursing Homes,Blossom Field,2065.3, 20-Mar-2012
244,Revenue,CCHD,Bed Purchasing - Elderly - North,Residential Homes,Blossom Field,614.5, 20-Mar-2012
245,Revenue,CCHD,Bed purchasing - Elderly MH - North,Nursing Homes,Blossom Field,1378.68, 20-Mar-2012
246,Revenue,CCHD,Bed Purchasing - Elderly - South,Nursing Homes,Blossom Fields,2615.45, 20-Mar-2012
247,Revenue,CCHD,Bed Purchasing - Elderly - North,Nursing Homes,Blossom Fields,5933.92, 20-Mar-2012
248,Revenue,CCHD,South Glos Users in South Glos Homes,Nursing Homes,Blossom Fields,1910.01, 20-Mar-2012
249,Revenue,CCHD,Bed purchasing - Elderly MH - North,Nursing Homes,Blossom Fields,1545.52, 20-Mar-2012
250,Revenue,CCHD,Training - Adult Services,Training Expenses,Bob Dawson,1102.5, 09-Mar-2012
251,Revenue,CCHD,Training - Adult Services,Training Expenses,Bob Dawson,11025, 09-Mar-2012
252,Revenue,CCHD,Finance,Training Expenses,BPP Professional Education,2075.01, 14-Mar-2012
253,Revenue,CCHD,Finance,Training Expenses,BPP Professional Education,1766.68, 07-Mar-2012
254,Revenue,CCHD,Frenchay Hospital Purchasing,Nursing Homes,Bradbury House,1350.32, 20-Mar-2012
255,Revenue,CCHD,Bed Purchasing - Elderly - North,Residential Homes,Bradley House,5431.45, 20-Mar-2012
256,Revenue,CCHD,Bed purchasing - Elderly MH - North,Residential Homes,Bradley House,2150.75, 20-Mar-2012
257,Revenue,CCHD,Home Care - Elderly - South,Other Small Contracts,Bradley House Home Care Services,82, 05-Mar-2012
258,Revenue,CCHD,Home Care - Elderly - North,Other Small Contracts,Bradley House Home Care Services,1361.2, 05-Mar-2012
259,Revenue,CCHD,Day Care - South,Private & Voluntary Day Care,Bradley House Home Care Services,49.2, 05-Mar-2012
260,Revenue,CCHD,Day Care - North,Private & Voluntary Day Care,Bradley House Home Care Services,131.2, 05-Mar-2012
261,Revenue,CCHD,Younger MH non-res purchasing,Private & Voluntary Day Care,Bradley House Home Care Services,65.6, 05-Mar-2012
262,Revenue,CCHD,Home Care - Elderly - South,Other Small Contracts,Bradley House Home Care Services,151.7, 19-Mar-2012
263,Revenue,CCHD,Home Care - Elderly - North,Other Small Contracts,Bradley House Home Care Services,1377.6, 19-Mar-2012
264,Revenue,CCHD,Day Care - South,Private & Voluntary Day Care,Bradley House Home Care Services,45.1, 19-Mar-2012
265,Revenue,CCHD,Day Care - North,Private & Voluntary Day Care,Bradley House Home Care Services,131.2, 19-Mar-2012
266,Revenue,CCHD,Younger MH non-res purchasing,Private & Voluntary Day Care,Bradley House Home Care Services,61.5, 19-Mar-2012
267,Revenue,CCHD,Home Care - Elderly - South,Other Small Contracts,Bradley House Home Care Services,139.4, 13-Mar-2012
268,Revenue,CCHD,Home Care - Elderly - North,Other Small Contracts,Bradley House Home Care Services,1287.4, 13-Mar-2012
269,Revenue,CCHD,Day Care - South,Private & Voluntary Day Care,Bradley House Home Care Services,49.2, 13-Mar-2012
270,Revenue,CCHD,Day Care - North,Private & Voluntary Day Care,Bradley House Home Care Services,127.1, 13-Mar-2012
271,Revenue,CCHD,Younger MH non-res purchasing,Private & Voluntary Day Care,Bradley House Home Care Services,69.7, 13-Mar-2012
272,Revenue,CCHD,Woodleaze,"Provisions (Food, etc)",Brake Bros,533.94, 12-Mar-2012
273,Revenue,CCHD,Woodleaze,Other Supplies & Services,Brake Bros,550.25, 16-Mar-2012
274,Revenue,CCHD,Newton House,"Provisions (Food, etc)",Brake Bros,519.6, 16-Mar-2012
275,Revenue,CCHD,Bed Purchasing - Elderly - North,Residential Homes,Bridge House Care Home,1232.6, 20-Mar-2012
276,Revenue,CCHD,Bed Purchasing - Elderly - North,Residential Homes,Bridge House Care Home,8357.52, 20-Mar-2012
277,Revenue,CCHD,Bed Purchasing - Elderly - South,Residential Homes,Bridge House Care Home,1074.32, 20-Mar-2012
278,Revenue,CCHD,Bed Purchasing - Elderly - North,Residential Homes,Bridge House Care Home,1029.16, 20-Mar-2012
279,Revenue,CCHD,Bed purchasing - Elderly MH - North,Residential Homes,Brightbow,2487.2, 20-Mar-2012
280,Revenue,CCHD,MH Purchasing - Younger,Residential Homes,Brightbow,904.84, 20-Mar-2012
281,Revenue,CCHD,Older People's Commissioned Se,Grants to Voluntary Bodies,Bristol Area Stroke Foundation,4575.5, 30-Mar-2012
282,Revenue,CCHD,Supporting People Programme,Grants to Voluntary Bodies,Bristol Care & Repair,2095.91, 29-Mar-2012
283,Revenue,CCHD,EDMO,Printing & Stationery,Bristol City Council,680, 16-Mar-2012
284,Revenue,CCHD,Day Care - North,Private & Voluntary Day Care,Bristol Houses UK Ltd,1474.57, 09-Mar-2012
285,Revenue,CCHD,Day Care - North,Private & Voluntary Day Care,Bristol Houses UK Ltd,2906.93, 20-Mar-2012
286,Revenue,CCHD,Charlton,Water Charges,Bristol Wessex Billing Services Limited,2681.24, 27-Mar-2012
287,Revenue,CCHD,Alexandra Way,Water Charges,Bristol Wessex Billing Services Limited,5442.34, 13-Mar-2012
288,Revenue,CCHD,Preventative Technology Grant,Other Supplies & Services,British Red Cross,8340, 15-Mar-2012
289,Revenue,CCHD,Bed Purchasing - Elderly S117- North,Residential Homes,Brockley Court Care Home,1788, 20-Mar-2012
290,Revenue,CCHD,Supporting People Programme,Grants to Voluntary Bodies,Bromford Housing Group,12821.2, 29-Mar-2012
291,Revenue,CCHD,Bed Purchasing - Elderly - North,Residential Homes,Brook Lane Residential Home,886.4, 20-Mar-2012
292,Revenue,CCHD,South Glos Users in South Glos Homes,Nursing Homes,Brunel Care,2810.67, 20-Mar-2012
293,Revenue,CCHD,Bed Purchasing - Elderly - South,Nursing Homes,Brunel Care,2488.15, 20-Mar-2012
294,Revenue,CCHD,Bed Purchasing - Elderly - South,Nursing Homes,Brunel Care,1421.8, 20-Mar-2012
295,Revenue,CCHD,Southmead Hospital Purchasing,Residential Homes,Brunel Care,1237.12, 20-Mar-2012
296,Revenue,CCHD,Bed purchasing - Elderly MH - North,Nursing Homes,Brunel Care,11464, 20-Mar-2012
297,Revenue,CCHD,Bed purchasing - Elderly MH - North,Nursing Homes,Brunel Care,2006.2, 20-Mar-2012
298,Revenue,CCHD,Southmead Hospital Purchasing,Nursing Homes,Brunel Care,1723.08, 20-Mar-2012
299,Revenue,CCHD,Southmead Hospital Purchasing,Nursing Homes,Brunel Care,1269.64, 20-Mar-2012
300,Revenue,CCHD,South Glos Users in South Glos Homes,Nursing Homes,Brunel Care,2965.96, 20-Mar-2012
301,Revenue,CCHD,South Glos Users in South Glos Homes,Nursing Homes,Brunel Care,1413.1, 20-Mar-2012
302,Revenue,CCHD,Southmead Hospital Purchasing,Residential Homes,Brunel Care,1300.32, 20-Mar-2012
303,Revenue,CCHD,Home Care - Elderly - North,Private & Voluntary Home Care,Brunelcare,6720, 05-Mar-2012
304,Revenue,CCHD,Home Care - Elderly - North,Private & Voluntary Home Care,Brunelcare,6720, 12-Mar-2012
305,Revenue,CCHD,Home Care - Elderly - North,Private & Voluntary Home Care,Brunelcare,6720, 19-Mar-2012
306,Revenue,CCHD,Home Care - Elderly - North,Private & Voluntary Home Care,Brunelcare,6720, 26-Mar-2012
307,Revenue,CCHD,Bed Purchasing - Elderly - South,Nursing Homes,Brunelcare,9502.68, 19-Mar-2012
308,Revenue,CCHD,Bed Purchasing - Elderly - North,Nursing Homes,Brunelcare,2945.16, 19-Mar-2012
309,Revenue,CCHD,Frenchay Hospital Purchasing,Nursing Homes,Brunelcare,2239.36, 19-Mar-2012
310,Revenue,CCHD,Southmead Hospital Purchasing,Nursing Homes,Brunelcare,6674.93, 19-Mar-2012
311,Revenue,CCHD,South Glos Users in South Glos Homes,Nursing Homes,Brunelcare,9270.56, 19-Mar-2012
312,Revenue,CCHD,Bed purchasing - Elderly MH - North,Nursing Homes,Brunelcare,11540.71, 19-Mar-2012
313,Revenue,CCHD,Bed Purchasing - Elderly S117- North,Nursing Homes,Brunelcare,6256.13, 19-Mar-2012
314,Revenue,CCHD,Home Care - Elderly - South,Other Small Contracts,Brunelcare,3066.65, 29-Mar-2012
315,Revenue,CCHD,Home Care - Elderly - North,Other Small Contracts,Brunelcare,5286.6, 29-Mar-2012
316,Revenue,CCHD,Day Care - South,Private & Voluntary Day Care,Brunelcare,142.56, 29-Mar-2012
317,Revenue,CCHD,Day Care - North,Private & Voluntary Day Care,Brunelcare,79.2, 29-Mar-2012
318,Revenue,CCHD,Home care - Elderly MH - North,Other Small Contracts,Brunelcare,463.32, 29-Mar-2012
319,Revenue,CCHD,Elderly MH Day Care North,Private & Voluntary Day Care,Brunelcare,435.6, 29-Mar-2012
320,Revenue,CCHD,Home Care - Elderly - South,Other Small Contracts,Brunelcare,3181.49, 29-Mar-2012
321,Revenue,CCHD,Home Care - Elderly - North,Other Small Contracts,Brunelcare,5163.84, 29-Mar-2012
322,Revenue,CCHD,Day Care - South,Private & Voluntary Day Care,Brunelcare,166.32, 29-Mar-2012
323,Revenue,CCHD,Day Care - North,Private & Voluntary Day Care,Brunelcare,47.52, 29-Mar-2012
324,Revenue,CCHD,Carer`s Grant - North,Carers Breaks & Services,Brunelcare,15.84, 29-Mar-2012
325,Revenue,CCHD,Home care - Elderly MH - North,Other Small Contracts,Brunelcare,483.12, 29-Mar-2012
326,Revenue,CCHD,Elderly MH Day Care North,Private & Voluntary Day Care,Brunelcare,459.36, 29-Mar-2012
327,Revenue,CCHD,Home Care - Elderly - South,Other Small Contracts,Brunelcare,3280.7, 29-Mar-2012
328,Revenue,CCHD,Home Care - Elderly - North,Other Small Contracts,Brunelcare,4922.28, 29-Mar-2012
329,Revenue,CCHD,Day Care - South,Private & Voluntary Day Care,Brunelcare,166.32, 29-Mar-2012
330,Revenue,CCHD,Day Care - North,Private & Voluntary Day Care,Brunelcare,51.48, 29-Mar-2012
331,Revenue,CCHD,Carer`s Grant - North,Carers Breaks & Services,Brunelcare,23.76, 29-Mar-2012
332,Revenue,CCHD,Home care - Elderly MH - North,Other Small Contracts,Brunelcare,613.8, 29-Mar-2012
333,Revenue,CCHD,Elderly MH Day Care North,Private & Voluntary Day Care,Brunelcare,491.04, 29-Mar-2012
334,Revenue,CCHD,Home Care - Elderly - South,Other Small Contracts,Brunelcare,2975.67, 29-Mar-2012
335,Revenue,CCHD,Home Care - Elderly - North,Other Small Contracts,Brunelcare,4494.6, 29-Mar-2012
336,Revenue,CCHD,Day Care - South,Private & Voluntary Day Care,Brunelcare,166.32, 29-Mar-2012
337,Revenue,CCHD,Day Care - North,Private & Voluntary Day Care,Brunelcare,75.24, 29-Mar-2012
338,Revenue,CCHD,Carer`s Grant - North,Carers Breaks & Services,Brunelcare,15.84, 29-Mar-2012
339,Revenue,CCHD,Home care - Elderly MH - North,Other Small Contracts,Brunelcare,594, 29-Mar-2012
340,Revenue,CCHD,Elderly MH Day Care North,Private & Voluntary Day Care,Brunelcare,459.36, 29-Mar-2012
341,Revenue,CCHD,Information Systems - Software,Computer Equipment - Purchase,BT Global Services Solutions,759.31, 14-Mar-2012
342,Revenue,CCHD,Woodleaze,Cleaning & Domestic Supplies,Bunzl Cleaning & Hygiene Supplies,723.62, 08-Mar-2012
343,Revenue,CCHD,Woodleaze,Equipment Maintenance,Bunzl Cleaning & Hygiene Supplies,11.02, 08-Mar-2012
344,Revenue,CCHD,Bed purchasing - Phys Dis - North,Nursing Homes,Bupa Care Services  Bridge House,5700.16, 20-Mar-2012
345,Revenue,CCHD,South Glos Users in all other LA Homes,Nursing Homes,Bupa Care Services  Bridge House,598.4, 20-Mar-2012
346,Revenue,CCHD,Bed purchasing - Elderly MH - North,Residential Homes,Bupa Care Services  Bridge House,1006.31, 20-Mar-2012
347,Revenue,CCHD,Woodleaze,Maintenance by Contractor,C B Decorators,785, 28-Mar-2012
348,Revenue,CCHD,Supported Living - KD,Private & Voluntary Home Care,Camphill Communities Thornbury Limited,2231.64, 02-Mar-2012
349,Revenue,CCHD,Supported Living - KD,Private & Voluntary Home Care,Camphill Communities Thornbury Limited,1996.72, 02-Mar-2012
350,Revenue,CCHD,Supported Living - KD,Private & Voluntary Home Care,Camphill Communities Thornbury Limited,2211.36, 08-Mar-2012
351,Revenue,CCHD,Supported Living - KD,Private & Voluntary Home Care,Camphill Communities Thornbury Limited,1964.32, 02-Mar-2012
352,Revenue,CCHD,Supported Living - KD,Private & Voluntary Home Care,Camphill Communities Thornbury Limited,2077.72, 09-Mar-2012
353,Revenue,CCHD,Supported Living - KD,Private & Voluntary Home Care,Camphill Communities Thornbury Limited,1017.22, 09-Mar-2012
354,Revenue,CCHD,Supported Living - KD,Private & Voluntary Home Care,Camphill Communities Thornbury Limited,1964.32, 12-Mar-2012
355,Revenue,CCHD,Supported Living - KD,Private & Voluntary Home Care,Camphill Communities Thornbury Limited,2179.44, 12-Mar-2012
356,Revenue,CCHD,Supported Living - KH,Private & Voluntary Home Care,Camphill Communities Thornbury Limited,1707.72, 26-Mar-2012
357,Revenue,CCHD,Bed purchasing - Under 65s PWLD - North,Residential Homes,Camphill Devon Community,3143.88, 20-Mar-2012
358,Revenue,CCHD,Bed purchasing - Under 65s PWLD - North,Residential Homes,Camphill Devon Community,2208.44, 20-Mar-2012
359,Revenue,CCHD,Supported Living - PS,Private & Voluntary Home Care,Camphill Village Trust,1449.11, 22-Mar-2012
360,Revenue,CCHD,Home Care - Elderly - South,Other Small Contracts,Care 1st Homecare,3160.12, 19-Mar-2012
361,Revenue,CCHD,Home Care - Elderly - North,Other Small Contracts,Care 1st Homecare,5583.66, 19-Mar-2012
362,Revenue,CCHD,Day Care - South,Private & Voluntary Day Care,Care 1st Homecare,143.28, 19-Mar-2012
363,Revenue,CCHD,Day Care - North,Private & Voluntary Day Care,Care 1st Homecare,401.98, 19-Mar-2012
364,Revenue,CCHD,Home care - Elderly MH - North,Other Small Contracts,Care 1st Homecare,274.62, 19-Mar-2012
365,Revenue,CCHD,Home Care - LD Under 65 - South,Private & Voluntary Home Care,Care 1st Homecare,15.92, 19-Mar-2012
366,Revenue,CCHD,PWLD Home Care - Under 65 - KH,Private & Voluntary Home Care,Care 1st Homecare,167.16, 19-Mar-2012
367,Revenue,CCHD,Home Care - Elderly - South,Other Small Contracts,Care 1st Homecare,3168.08, 19-Mar-2012
368,Revenue,CCHD,Home Care - Elderly - North,Other Small Contracts,Care 1st Homecare,4640.68, 19-Mar-2012
369,Revenue,CCHD,Day Care - South,Private & Voluntary Day Care,Care 1st Homecare,147.26, 19-Mar-2012
370,Revenue,CCHD,Day Care - North,Private & Voluntary Day Care,Care 1st Homecare,314.42, 19-Mar-2012
371,Revenue,CCHD,Home care - Elderly MH - North,Other Small Contracts,Care 1st Homecare,226.86, 19-Mar-2012
372,Revenue,CCHD,Home Care - LD Under 65 - South,Private & Voluntary Home Care,Care 1st Homecare,27.86, 19-Mar-2012
373,Revenue,CCHD,PWLD Home Care - Under 65 - KH,Private & Voluntary Home Care,Care 1st Homecare,167.16, 19-Mar-2012
374,Revenue,CCHD,Bed Purchasing - PWLD S 117 Placements,Residential Homes,Care Community Ltd,7341.4, 20-Mar-2012
375,Revenue,CCHD,Purchase of Non-Res Care - KD,Private & Voluntary Day Care,Care Horizons Limited,978.47, 23-Mar-2012
376,Revenue,CCHD,Purchase of Non-Res Care - KD,Private & Voluntary Day Care,Care Horizons Limited,1530.13, 23-Mar-2012
377,Revenue,CCHD,Purchase of Non-Res Care - KD,Private & Voluntary Day Care,Care Horizons Limited,1017.08, 29-Mar-2012
378,Revenue,CCHD,Purchase of Non-Res Care - KD,Private & Voluntary Day Care,Care Horizons Limited,1322.87, 23-Mar-2012
379,Revenue,CCHD,Purchase of Non-Res Care - KD,Private & Voluntary Day Care,Care Horizons Limited,1148.97, 23-Mar-2012
380,Revenue,CCHD,Supported Living - KH,Private & Voluntary Home Care,Care Horizons Limited,1746.46, 29-Mar-2012
381,Revenue,CCHD,Day Care - South,Private & Voluntary Day Care,Care Horizons Limited,694.72, 01-Mar-2012
382,Revenue,CCHD,Supported Living - KD,Private & Voluntary Home Care,Care Horizons Limited,5234.74, 01-Mar-2012
383,Revenue,CCHD,Electronic Home Care Monitoring,Other Supplies & Services,Care Monitoring 2000 Limited,1200, 22-Mar-2012
384,Revenue,CCHD,Electronic Home Care Monitoring,Other Supplies & Services,Care Monitoring 2000 Limited,5069.6, 22-Mar-2012
385,Revenue,CCHD,Home Care - General,Other Supplies & Services,Care Monitoring 2000 Limited,6971.8, 22-Mar-2012
386,Revenue,CCHD,Home Care - Elderly - South,Other Small Contracts,Care UK,8180.85, 09-Mar-2012
387,Revenue,CCHD,Home Care - Elderly - North,Other Small Contracts,Care UK,4717.5, 09-Mar-2012
388,Revenue,CCHD,Day Care - South,Private & Voluntary Day Care,Care UK,386.25, 09-Mar-2012
389,Revenue,CCHD,Day Care - North,Private & Voluntary Day Care,Care UK,900, 09-Mar-2012
390,Revenue,CCHD,Home care - Elderly MH - North,Other Small Contracts,Care UK,1158.75, 09-Mar-2012
391,Revenue,CCHD,Elderly MH Day Care North,Private & Voluntary Day Care,Care UK,217.5, 09-Mar-2012
392,Revenue,CCHD,Home Care - Elderly - South,Other Small Contracts,Care UK,8210.44, 05-Mar-2012
393,Revenue,CCHD,Home Care - Elderly - North,Other Small Contracts,Care UK,4773.75, 05-Mar-2012
394,Revenue,CCHD,Day Care - South,Private & Voluntary Day Care,Care UK,367.5, 05-Mar-2012
395,Revenue,CCHD,Day Care - North,Private & Voluntary Day Care,Care UK,855, 05-Mar-2012
396,Revenue,CCHD,Home care - Elderly MH - North,Other Small Contracts,Care UK,1260, 05-Mar-2012
397,Revenue,CCHD,Elderly MH Day Care North,Private & Voluntary Day Care,Care UK,273.75, 05-Mar-2012
398,Revenue,CCHD,Home Care - Elderly - South,Other Small Contracts,Care UK,7996.69, 05-Mar-2012
399,Revenue,CCHD,Home Care - Elderly - North,Other Small Contracts,Care UK,4770, 05-Mar-2012
400,Revenue,CCHD,Day Care - South,Private & Voluntary Day Care,Care UK,416.25, 05-Mar-2012
401,Revenue,CCHD,Day Care - North,Private & Voluntary Day Care,Care UK,926.25, 05-Mar-2012
402,Revenue,CCHD,Home care - Elderly MH - North,Other Small Contracts,Care UK,1218.75, 05-Mar-2012
403,Revenue,CCHD,Elderly MH Day Care North,Private & Voluntary Day Care,Care UK,258.75, 05-Mar-2012
404,Revenue,CCHD,Home Care - Elderly - South,Other Small Contracts,Care UK,8206.69, 05-Mar-2012
405,Revenue,CCHD,Home Care - Elderly - North,Other Small Contracts,Care UK,4263.75, 05-Mar-2012
406,Revenue,CCHD,Day Care - South,Private & Voluntary Day Care,Care UK,367.5, 05-Mar-2012
407,Revenue,CCHD,Day Care - North,Private & Voluntary Day Care,Care UK,1020, 05-Mar-2012
408,Revenue,CCHD,Home care - Elderly MH - North,Other Small Contracts,Care UK,1230, 05-Mar-2012
409,Revenue,CCHD,Elderly MH Day Care North,Private & Voluntary Day Care,Care UK,303.75, 05-Mar-2012
410,Revenue,CCHD,Home Care - Elderly - South,Other Small Contracts,Care UK,7955.44, 05-Mar-2012
411,Revenue,CCHD,Home Care - Elderly - North,Other Small Contracts,Care UK,4507.5, 05-Mar-2012
412,Revenue,CCHD,Day Care - South,Private & Voluntary Day Care,Care UK,420, 05-Mar-2012
413,Revenue,CCHD,Day Care - North,Private & Voluntary Day Care,Care UK,832.5, 05-Mar-2012
414,Revenue,CCHD,Home care - Elderly MH - North,Other Small Contracts,Care UK,1200, 05-Mar-2012
415,Revenue,CCHD,Elderly MH Day Care North,Private & Voluntary Day Care,Care UK,217.5, 05-Mar-2012
416,Revenue,CCHD,Home Care - Elderly - South,Other Small Contracts,Care UK,7640.44, 05-Mar-2012
417,Revenue,CCHD,Home Care - Elderly - North,Other Small Contracts,Care UK,4556.25, 05-Mar-2012
418,Revenue,CCHD,Day Care - South,Private & Voluntary Day Care,Care UK,382.5, 05-Mar-2012
419,Revenue,CCHD,Day Care - North,Private & Voluntary Day Care,Care UK,941.25, 05-Mar-2012
420,Revenue,CCHD,Home care - Elderly MH - North,Other Small Contracts,Care UK,1215, 05-Mar-2012
421,Revenue,CCHD,Elderly MH Day Care North,Private & Voluntary Day Care,Care UK,240, 05-Mar-2012
422,Revenue,CCHD,Home Care - Elderly - South,Other Small Contracts,Care UK,7524.19, 13-Mar-2012
423,Revenue,CCHD,Home Care - Elderly - North,Other Small Contracts,Care UK,4683.75, 13-Mar-2012
424,Revenue,CCHD,Day Care - South,Private & Voluntary Day Care,Care UK,363.75, 13-Mar-2012
425,Revenue,CCHD,Day Care - North,Private & Voluntary Day Care,Care UK,926.25, 13-Mar-2012
426,Revenue,CCHD,Home care - Elderly MH - North,Other Small Contracts,Care UK,1113.75, 13-Mar-2012
427,Revenue,CCHD,Elderly MH Day Care North,Private & Voluntary Day Care,Care UK,270, 13-Mar-2012
428,Revenue,CCHD,Home Care - Elderly - South,Other Small Contracts,Carewatch (Bristol),231.84, 29-Mar-2012
429,Revenue,CCHD,Home Care - Elderly - North,Other Small Contracts,Carewatch (Bristol),314.64, 29-Mar-2012
430,Revenue,CCHD,Home Care - Elderly - South,Other Small Contracts,Carewatch (Bristol),231.84, 29-Mar-2012
431,Revenue,CCHD,Home Care - Elderly - North,Other Small Contracts,Carewatch (Bristol),310.5, 29-Mar-2012
432,Revenue,CCHD,Home Care - Elderly - South,Other Small Contracts,Carewatch (Bristol),235.98, 29-Mar-2012
433,Revenue,CCHD,Home Care - Elderly - North,Other Small Contracts,Carewatch (Bristol),314.64, 29-Mar-2012
434,Revenue,CCHD,Day Care - North,Private & Voluntary Day Care,Carewatch (Bristol),99.36, 29-Mar-2012
435,Revenue,CCHD,Home Care - Elderly - South,Other Small Contracts,Carewatch (Bristol),240.12, 29-Mar-2012
436,Revenue,CCHD,Home Care - Elderly - North,Other Small Contracts,Carewatch (Bristol),293.94, 29-Mar-2012
437,Revenue,CCHD,Day Care - North,Private & Voluntary Day Care,Carewatch (Bristol),99.36, 29-Mar-2012
438,Revenue,CCHD,Home Care - Elderly - South,Other Small Contracts,Cash Friday at Lloyds TSB,181.92, 05-Mar-2012
439,Revenue,CCHD,Home Care - Elderly - North,Other Small Contracts,Cash Friday at Lloyds TSB,1394.72, 05-Mar-2012
440,Revenue,CCHD,Day Care - South,Private & Voluntary Day Care,Cash Friday at Lloyds TSB,30.32, 05-Mar-2012
441,Revenue,CCHD,Day Care - North,Private & Voluntary Day Care,Cash Friday at Lloyds TSB,87.17, 05-Mar-2012
442,Revenue,CCHD,Home Care - Elderly - South,Other Small Contracts,Cash Friday at Lloyds TSB,181.92, 05-Mar-2012
443,Revenue,CCHD,Home Care - Elderly - North,Other Small Contracts,Cash Friday at Lloyds TSB,1409.88, 05-Mar-2012
444,Revenue,CCHD,Day Care - South,Private & Voluntary Day Care,Cash Friday at Lloyds TSB,30.32, 05-Mar-2012
445,Revenue,CCHD,Day Care - North,Private & Voluntary Day Care,Cash Friday at Lloyds TSB,106.12, 05-Mar-2012
446,Revenue,CCHD,Home Care - Elderly - South,Other Small Contracts,Cash Friday at Lloyds TSB,181.92, 12-Mar-2012
447,Revenue,CCHD,Home Care - Elderly - North,Other Small Contracts,Cash Friday at Lloyds TSB,1390.93, 12-Mar-2012
448,Revenue,CCHD,Day Care - South,Private & Voluntary Day Care,Cash Friday at Lloyds TSB,30.32, 12-Mar-2012
449,Revenue,CCHD,Day Care - North,Private & Voluntary Day Care,Cash Friday at Lloyds TSB,87.17, 12-Mar-2012
450,Revenue,CCHD,Home Care - Elderly - South,Other Small Contracts,Cash Friday at Lloyds TSB,178.13, 12-Mar-2012
451,Revenue,CCHD,Home Care - Elderly - North,Other Small Contracts,Cash Friday at Lloyds TSB,1394.72, 12-Mar-2012
452,Revenue,CCHD,Day Care - South,Private & Voluntary Day Care,Cash Friday at Lloyds TSB,30.32, 12-Mar-2012
453,Revenue,CCHD,Day Care - North,Private & Voluntary Day Care,Cash Friday at Lloyds TSB,87.17, 12-Mar-2012
454,Revenue,CCHD,Home Care - Elderly - South,Other Small Contracts,Cash Friday at Lloyds TSB,181.92, 19-Mar-2012
455,Revenue,CCHD,Home Care - Elderly - North,Other Small Contracts,Cash Friday at Lloyds TSB,1402.3, 19-Mar-2012
456,Revenue,CCHD,Day Care - South,Private & Voluntary Day Care,Cash Friday at Lloyds TSB,22.74, 19-Mar-2012
457,Revenue,CCHD,Day Care - North,Private & Voluntary Day Care,Cash Friday at Lloyds TSB,87.17, 19-Mar-2012
458,Revenue,CCHD,Detained,Nursing Homes,Castlebeck Care (Teesdale) Limited,15172.59, 22-Mar-2012
459,Revenue,CCHD,User Involvement,Other Supplies & Services,Cathy Truman,2000, 13-Mar-2012
460,Revenue,CCHD,Bed Purchasing - Elderly - North,Nursing Homes,Cedar Care Homes Ltd,3107.14, 20-Mar-2012
461,Revenue,CCHD,Frenchay Hospital Purchasing,Nursing Homes,Cedar Care Homes Ltd,702.32, 20-Mar-2012
462,Revenue,CCHD,Frenchay Hospital Purchasing,Nursing Homes,Cedar Care Homes Ltd,1051.8, 20-Mar-2012
463,Revenue,CCHD,Home Care - Elderly - North,Other Small Contracts,Cedar Community Care,567.36, 13-Mar-2012
464,Revenue,CCHD,Home Care - Elderly - North,Other Small Contracts,Cedar Community Care,508.26, 13-Mar-2012
465,Revenue,CCHD,Frenchay Hospital Purchasing,Residential Homes,Centenary Care Homes Ltd,1229, 20-Mar-2012
466,Revenue,CCHD,Bed Purchasing - Elderly - South,Residential Homes,Cepen Lodge Care Home,2120, 20-Mar-2012
467,Revenue,CCHD,Bed Purchasing - Elderly - South,Residential Homes,Cepen Lodge Care Home,2120, 20-Mar-2012
468,Revenue,CCHD,Southmead Hospital Purchasing,Residential Homes,Charlton House Residential Home,1695.74, 20-Mar-2012
469,Revenue,CCHD,Frenchay Hospital Purchasing,Residential Homes,Chatsworth House,1389, 20-Mar-2012
470,Revenue,CCHD,Southmead Hospital Purchasing,Residential Homes,Chatsworth House,1008.6, 20-Mar-2012
471,Revenue,CCHD,Home Care - Elderly - South,Other Small Contracts,Cherish Able Care Limited,1352.7, 02-Mar-2012
472,Revenue,CCHD,Home care - Elderly MH - North,Other Small Contracts,Cherish Able Care Limited,356.4, 02-Mar-2012
473,Revenue,CCHD,Home Care - Elderly - South,Other Small Contracts,Cherish Able Care Limited,1381.05, 09-Mar-2012
474,Revenue,CCHD,Home care - Elderly MH - North,Other Small Contracts,Cherish Able Care Limited,376.65, 09-Mar-2012
475,Revenue,CCHD,Home Care - Elderly - South,Other Small Contracts,Cherish Able Care Limited,1466.1, 16-Mar-2012
476,Revenue,CCHD,Home care - Elderly MH - North,Other Small Contracts,Cherish Able Care Limited,348.3, 16-Mar-2012
477,Revenue,CCHD,Home Care - Elderly - South,Other Small Contracts,Cherish Able Care Limited,1449.9, 23-Mar-2012
478,Revenue,CCHD,Home care - Elderly MH - North,Other Small Contracts,Cherish Able Care Limited,368.55, 23-Mar-2012
479,Revenue,CCHD,Home Care - Elderly - South,Other Small Contracts,Cherish Able Care Limited,1534.95, 30-Mar-2012
480,Revenue,CCHD,Home care - Elderly MH - North,Other Small Contracts,Cherish Able Care Limited,396.9, 30-Mar-2012
481,Revenue,CCHD,Bed purchasing - S28A Under 65 - South,Residential Homes,Chescombe Lodge,8360.04, 20-Mar-2012
482,Revenue,CCHD,Bed Purchasing - Under 65s PWLD - South,Residential Homes,Chosen Court,6873.44, 20-Mar-2012
483,Revenue,CCHD,Bed Purchasing - Under 65s PWLD - South,Residential Homes,Chosen Court,7040.44, 20-Mar-2012
484,Revenue,CCHD,Bed purchasing - Under 65s PWLD - North,Residential Homes,Church House,5668, 20-Mar-2012
485,Revenue,CCHD,Under 65s PWLD - KH,Nursing Homes,Churchill House,9504.88, 20-Mar-2012
486,Revenue,CCHD,Bed Purchasing - Under 65s PWLD - South,Residential Homes,Churchill House,12402.6, 20-Mar-2012
487,Revenue,CCHD,Training - Adult Services,Training Expenses,City of Bristol College,595, 01-Mar-2012
488,Revenue,CCHD,Training - Adult Services,Training Expenses,City of Bristol College,595, 01-Mar-2012
489,Revenue,CCHD,Finance - FAB,Training Expenses,City of Bristol College,1165, 08-Mar-2012
490,Revenue,CCHD,Social Lettings Agency,Computer Services,Civica UK Limited,737.8, 15-Mar-2012
491,Revenue,CCHD,Bed Purchasing - Elderly - North,Residential Homes,Cleeve Lodge,1596.44, 20-Mar-2012
492,Revenue,CCHD,Southmead Hospital Purchasing,Residential Homes,Cleeve Lodge,1406.2, 20-Mar-2012
493,Revenue,CCHD,Bed Purchasing - Elderly - North,Residential Homes,Cleeve Lodge,1639.24, 20-Mar-2012
494,Revenue,CCHD,Bed Purchasing - Elderly - South,Residential Homes,Cleeve Lodge,1229, 20-Mar-2012
495,Revenue,CCHD,Bed Purchasing - Elderly - South,Residential Homes,Cleeve Lodge,1272.24, 20-Mar-2012
496,Revenue,CCHD,Bed Purchasing - Elderly - North,Residential Homes,Cleeve Lodge,1647.6, 20-Mar-2012
497,Revenue,CCHD,Bed Purchasing - Elderly - South,Residential Homes,Cleeve Lodge,1439.52, 20-Mar-2012
498,Revenue,CCHD,Bed Purchasing - Elderly - South,Residential Homes,Cleeve Lodge,2200, 20-Mar-2012
499,Revenue,CCHD,Bed Purchasing - Elderly - North,Residential Homes,Cleeve Lodge,1752.2, 20-Mar-2012
500,Revenue,CCHD,Southmead Hospital Purchasing,Residential Homes,Cleeve Lodge,1419.76, 20-Mar-2012
501,Revenue,CCHD,Day Care - South,Private & Voluntary Day Care,Cleeve Lodge Care Limited,585, 22-Mar-2012
502,Revenue,CCHD,Southmead Hospital Purchasing,Residential Homes,Clifftop Care Home,1175.72, 20-Mar-2012
503,Revenue,CCHD,Frenchay Hospital Purchasing,Residential Homes,Collingwood Residential Home,1035.92, 20-Mar-2012
504,Revenue,CCHD,Bed Purchasing - Elderly - South,Residential Homes,Collingwood Residential Home,1253.4, 20-Mar-2012
505,Revenue,CCHD,Bed Purchasing - Elderly - South,Residential Homes,Collingwood Residential Home,859.12, 20-Mar-2012
506,Revenue,CCHD,Bed Purchasing - Elderly - South,Residential Homes,Collingwood Residential Home,1338.52, 20-Mar-2012
507,Revenue,CCHD,Bed Purchasing - Elderly - South,Residential Homes,Collingwood Residential Home,1066.44, 20-Mar-2012
508,Revenue,CCHD,Bed Purchasing - Elderly - South,Residential Homes,Collingwood Residential Home,1297.84, 20-Mar-2012
509,Revenue,CCHD,Frenchay Hospital Purchasing,Residential Homes,Collingwood Residential Home,1214.6, 20-Mar-2012
510,Revenue,CCHD,Bed purchasing - Elderly MH - North,Residential Homes,Collingwood Residential Home,1286.88, 20-Mar-2012
511,Revenue,CCHD,Bed Purchasing - Elderly - South,Residential Homes,Collingwood Residential Home,1231, 20-Mar-2012
512,Revenue,CCHD,Bed Purchasing - Elderly - South,Residential Homes,Collingwood Residential Home,1361, 20-Mar-2012
513,Revenue,CCHD,Bed Purchasing - Elderly - South,Residential Homes,Collingwood Residential Home,1176.32, 20-Mar-2012
514,Revenue,CCHD,Bed Purchasing - Elderly - South,Residential Homes,Collingwood Residential Home,1363.88, 20-Mar-2012
515,Revenue,CCHD,Enabling Activities,Training Expenses,ComputerWorld Training Limited,500, 12-Mar-2012
516,Revenue,CCHD,Bed and Breakfast,Bed & Breakfast,Connolly & Callaghan Limited,581, 08-Mar-2012
517,Revenue,CCHD,Bed and Breakfast,Bed & Breakfast,Connolly & Callaghan Limited,546, 13-Mar-2012
518,Revenue,CCHD,Bed and Breakfast,Bed & Breakfast,Connolly & Callaghan Limited,511, 08-Mar-2012
519,Revenue,CCHD,Bed and Breakfast,Bed & Breakfast,Connolly & Callaghan Limited,581, 30-Mar-2012
520,Revenue,CCHD,Bed and Breakfast,Bed & Breakfast,Connolly & Callaghan Limited,511, 30-Mar-2012
521,Revenue,CCHD,Bed purchasing - Under 65s PWLD - North,Residential Homes,Consensus Support Services Ltd,8938, 07-Mar-2012
522,Revenue,CCHD,Cambrian Drive,Gas,Corona Energy Retail 3 Limited,454.19, 26-Mar-2012
523,Revenue,CCHD,Cambrian Drive,Gas,Corona Energy Retail 3 Limited,539.95, 26-Mar-2012
524,Revenue,CCHD,Cambrian Drive,Gas,Corona Energy Retail 3 Limited,605.81, 26-Mar-2012
525,Revenue,CCHD,Cambrian Drive,Gas,Corona Energy Retail 3 Limited,558.59, 26-Mar-2012
526,Revenue,CCHD,Woodleaze,Furniture & Fittings Loose,Countrywide Healthcare Supplies Ltd,451.36, 27-Mar-2012
527,Revenue,CCHD,Woodleaze,Furniture & Fittings Loose,Countrywide Healthcare Supplies Ltd,599, 27-Mar-2012
528,Revenue,CCHD,Research & Conferences,Consultation Expenses,CPEA Ltd,2100, 07-Mar-2012
529,Revenue,CCHD,Bed purchasing - S28A Under 65 - South,Residential Homes,Cream Ii Ltd,7725.68, 20-Mar-2012
530,Revenue,CCHD,Bed purchasing - S28A Under 65 - South,Residential Homes,Creedy Court,8934.84, 20-Mar-2012
531,Revenue,CCHD,Bed Purchasing - LD S28A- Over 65- South,Residential Homes,Creedy Court,7434.12, 20-Mar-2012
532,Revenue,CCHD,Brokerage and Information Service,Grants to Voluntary Bodies,D H I,6566.99, 27-Mar-2012
533,Revenue,CCHD,Supporting People Programme,Grants to Voluntary Bodies,D H I,57364, 16-Mar-2012
534,Revenue,CCHD,Purchase of Non-Res Care - KH,Private & Voluntary Day Care,Daneswood,5187, 13-Mar-2012
535,Revenue,CCHD,Bed Purchasing - Under 65s PWLD - South,Residential Homes,Daneswood,10588.2, 20-Mar-2012
536,Revenue,CCHD,Bed purchasing - Under 65s PWLD - North,Residential Homes,Daneswood,8756, 20-Mar-2012
537,Revenue,CCHD,Learning Difficulties PSL,Other Supplies & Services,Individual,2016.44, 22-Mar-2012
538,Revenue,CCHD,Day Care - North,Private & Voluntary Day Care,Deafblind UK,1241.24, 06-Mar-2012
539,Revenue,CCHD,Day Care - South,Private & Voluntary Day Care,Deafblind UK,1251.25, 05-Mar-2012
540,Revenue,CCHD,Day Care - South,Private & Voluntary Day Care,Deafblind UK,1980, 05-Mar-2012
541,Revenue,CCHD,Day Care - North,Private & Voluntary Day Care,Deafblind UK,1091.09, 29-Mar-2012
542,Revenue,CCHD,Day Care - South,Private & Voluntary Day Care,Deafblind UK,1224.6, 27-Mar-2012
543,Revenue,CCHD,Training - Adult Services,Training Expenses,Dennis Casling,550, 02-Mar-2012
544,Revenue,CCHD,Purchase of Non-Res Care - KD,Private & Voluntary Day Care,Design 4 Life Ltd,1368, 20-Mar-2012
545,Revenue,CCHD,Day Care - South,Private & Voluntary Day Care,Dhek Bhal,898.27, 19-Mar-2012
546,Revenue,CCHD,Day Care - South,Private & Voluntary Day Care,Dhek Bhal,898.27, 19-Mar-2012
547,Revenue,CCHD,Day Care - South,Private & Voluntary Day Care,Dhek Bhal,740.96, 19-Mar-2012
548,Revenue,CCHD,User Involvement,Other Supplies & Services,Dhek Bhal,2000, 15-Mar-2012
549,Revenue,CCHD,Under 65s PWLD - KH,Residential Homes,Dimensions(Uk) Ltd,4696, 20-Mar-2012
550,Revenue,CCHD,Bed Purchasing - Under 65s PWLD - South,Residential Homes,Dimensions(Uk) Ltd,1708.92, 20-Mar-2012
551,Revenue,CCHD,Home Care - Elderly - South,Other Small Contracts,DoCare Ltd,2692.23, 13-Mar-2012
552,Revenue,CCHD,Home Care - Elderly - North,Other Small Contracts,DoCare Ltd,2914.68, 13-Mar-2012
553,Revenue,CCHD,Day Care - South,Private & Voluntary Day Care,DoCare Ltd,145.28, 13-Mar-2012
554,Revenue,CCHD,Day Care - North,Private & Voluntary Day Care,DoCare Ltd,444.93, 13-Mar-2012
555,Revenue,CCHD,Home care - Elderly MH - North,Other Small Contracts,DoCare Ltd,181.6, 13-Mar-2012
556,Revenue,CCHD,Elderly MH Day Care North,Private & Voluntary Day Care,DoCare Ltd,108.96, 13-Mar-2012
557,Revenue,CCHD,Home Care - Elderly - South,Other Small Contracts,DoCare Ltd,2224.61, 13-Mar-2012
558,Revenue,CCHD,Home Care - Elderly - North,Other Small Contracts,DoCare Ltd,3191.63, 13-Mar-2012
559,Revenue,CCHD,Day Care - South,Private & Voluntary Day Care,DoCare Ltd,99.88, 13-Mar-2012
560,Revenue,CCHD,Day Care - North,Private & Voluntary Day Care,DoCare Ltd,435.85, 13-Mar-2012
561,Revenue,CCHD,Home care - Elderly MH - North,Other Small Contracts,DoCare Ltd,186.14, 13-Mar-2012
562,Revenue,CCHD,Elderly MH Day Care North,Private & Voluntary Day Care,DoCare Ltd,49.94, 13-Mar-2012
563,Revenue,CCHD,Home Care - Elderly - South,Other Small Contracts,DoCare Ltd,2474.31, 13-Mar-2012
564,Revenue,CCHD,Home Care - Elderly - North,Other Small Contracts,DoCare Ltd,3155.31, 13-Mar-2012
565,Revenue,CCHD,Day Care - South,Private & Voluntary Day Care,DoCare Ltd,154.36, 13-Mar-2012
566,Revenue,CCHD,Day Care - North,Private & Voluntary Day Care,DoCare Ltd,476.72, 13-Mar-2012
567,Revenue,CCHD,Home care - Elderly MH - North,Other Small Contracts,DoCare Ltd,190.68, 13-Mar-2012
568,Revenue,CCHD,Elderly MH Day Care North,Private & Voluntary Day Care,DoCare Ltd,54.48, 13-Mar-2012
569,Revenue,CCHD,Home Care - Elderly - South,Other Small Contracts,DoCare Ltd,2674.07, 29-Mar-2012
570,Revenue,CCHD,Home Care - Elderly - North,Other Small Contracts,DoCare Ltd,3604.76, 29-Mar-2012
571,Revenue,CCHD,Day Care - South,Private & Voluntary Day Care,DoCare Ltd,158.9, 29-Mar-2012
572,Revenue,CCHD,Day Care - North,Private & Voluntary Day Care,DoCare Ltd,440.4, 29-Mar-2012
573,Revenue,CCHD,Home care - Elderly MH - North,Other Small Contracts,DoCare Ltd,181.6, 29-Mar-2012
574,Revenue,CCHD,Elderly MH Day Care North,Private & Voluntary Day Care,DoCare Ltd,118.04, 29-Mar-2012
575,Revenue,CCHD,Home Care - Elderly - South,Other Small Contracts,DoCare Ltd,2560.57, 29-Mar-2012
576,Revenue,CCHD,Home Care - Elderly - North,Other Small Contracts,DoCare Ltd,3268.81, 29-Mar-2012
577,Revenue,CCHD,Day Care - South,Private & Voluntary Day Care,DoCare Ltd,99.88, 29-Mar-2012
578,Revenue,CCHD,Day Care - North,Private & Voluntary Day Care,DoCare Ltd,472.18, 29-Mar-2012
579,Revenue,CCHD,Home care - Elderly MH - North,Other Small Contracts,DoCare Ltd,181.6, 29-Mar-2012
580,Revenue,CCHD,Elderly MH Day Care North,Private & Voluntary Day Care,DoCare Ltd,59.02, 29-Mar-2012
581,Revenue,CCHD,Getting a Life Project,Other Supplies & Services,Dr Carol Robinson,547.6, 30-Mar-2012
582,Revenue,CCHD,Elderly Mental Health,Long Service Awards,DSG Retail Limited,548.3, 09-Mar-2012
583,Revenue,CCHD,Information Systems - Software,Telephones,DSPG Limited,560, 16-Mar-2012
584,Revenue,CCHD,Bed Purchasing - Elderly - South,Nursing Homes,Dunkirk Memorial House,1163.84, 20-Mar-2012
585,Revenue,CCHD,MH Purchasing - Younger,Residential Homes,Dunraven House,3583.2, 20-Mar-2012
586,Revenue,CCHD,Bed and Breakfast,Bed & Breakfast,E J Bartlett,420, 09-Mar-2012
587,Revenue,CCHD,Bed and Breakfast,Bed & Breakfast,E J Bartlett,1050, 08-Mar-2012
588,Revenue,CCHD,Bed and Breakfast,Bed & Breakfast,E J Bartlett,735, 08-Mar-2012
589,Revenue,CCHD,Bed and Breakfast,Bed & Breakfast,E J Bartlett,420, 08-Mar-2012
590,Revenue,CCHD,Bed and Breakfast,Bed & Breakfast,E J Bartlett,420, 13-Mar-2012
591,Revenue,CCHD,Bed and Breakfast,Bed & Breakfast,E J Bartlett,1050, 09-Mar-2012
592,Revenue,CCHD,Bed and Breakfast,Bed & Breakfast,E J Bartlett,735, 09-Mar-2012
593,Revenue,CCHD,Bed and Breakfast,Bed & Breakfast,E J Bartlett,525, 09-Mar-2012
594,Revenue,CCHD,Bed and Breakfast,Bed & Breakfast,E J Bartlett,540, 09-Mar-2012
595,Revenue,CCHD,Bed and Breakfast,Bed & Breakfast,E J Bartlett,630, 26-Mar-2012
596,Revenue,CCHD,Bed and Breakfast,Bed & Breakfast,E J Bartlett,1050, 30-Mar-2012
597,Revenue,CCHD,Bed and Breakfast,Bed & Breakfast,E J Bartlett,735, 26-Mar-2012
598,Revenue,CCHD,Bed and Breakfast,Bed & Breakfast,E J Bartlett,420, 26-Mar-2012
599,Revenue,CCHD,Bed and Breakfast,Bed & Breakfast,E J Bartlett,525, 26-Mar-2012
600,Revenue,CCHD,Bed and Breakfast,Bed & Breakfast,E J Bartlett,420, 26-Mar-2012
601,Revenue,CCHD,Bed and Breakfast,Bed & Breakfast,E J Bartlett,630, 26-Mar-2012
602,Revenue,CCHD,Bed and Breakfast,Bed & Breakfast,E J Bartlett,420, 27-Mar-2012
603,Revenue,CCHD,Bed and Breakfast,Bed & Breakfast,E J Bartlett,450, 30-Mar-2012
604,Revenue,CCHD,Bed and Breakfast,Bed & Breakfast,E J Bartlett,735, 26-Mar-2012
605,Revenue,CCHD,Bed and Breakfast,Bed & Breakfast,E J Bartlett,420, 26-Mar-2012
606,Revenue,CCHD,Bed and Breakfast,Bed & Breakfast,E J Bartlett,525, 30-Mar-2012
607,Revenue,CCHD,Bed and Breakfast,Bed & Breakfast,E J Bartlett,420, 26-Mar-2012
608,Revenue,CCHD,Cambrian Drive,Electricity,E.ON,507.11, 21-Mar-2012
609,Revenue,CCHD,Under 65s PWLD - KH,Residential Homes,East Court,4272.72, 20-Mar-2012
610,Revenue,CCHD,Woodleaze,Electricity,EDF Energy 1 Limited,1071.37, 26-Mar-2012
611,Revenue,CCHD,Woodleaze,Electricity,EDF Energy 1 Limited,1258.94, 26-Mar-2012
612,Revenue,CCHD,Woodleaze,Electricity,EDF Energy 1 Limited,1386.44, 26-Mar-2012
613,Revenue,CCHD,Woodleaze,Electricity,EDF Energy 1 Limited,1283.26, 26-Mar-2012
614,Revenue,CCHD,Woodleaze,Electricity,EDF Energy 1 Limited,924.12, 26-Mar-2012
615,Revenue,CCHD,Woodleaze,Electricity,EDF Energy 1 Limited,960, 26-Mar-2012
616,Revenue,CCHD,Woodleaze,Electricity,EDF Energy 1 Limited,958.71, 26-Mar-2012
617,Revenue,CCHD,Woodleaze,Electricity,EDF Energy 1 Limited,1127.94, 26-Mar-2012
618,Revenue,CCHD,Woodleaze,Electricity,EDF Energy 1 Limited,1111.66, 26-Mar-2012
619,Revenue,CCHD,Woodleaze,Electricity,EDF Energy 1 Limited,934.08, 26-Mar-2012
620,Revenue,CCHD,Woodleaze,Electricity,EDF Energy 1 Limited,984.82, 26-Mar-2012
621,Revenue,CCHD,Charlton,Electricity,EDF Energy 1 Limited,1242.61, 14-Mar-2012
622,Revenue,CCHD,Woodleaze,Electricity,EDF Energy 1 Limited,927.89, 26-Mar-2012
623,Revenue,CCHD,Woodleaze,Electricity,EDF Energy 1 Limited,1019.03, 26-Mar-2012
624,Revenue,CCHD,Woodleaze,Electricity,EDF Energy 1 Limited,1142.49, 26-Mar-2012
625,Revenue,CCHD,Woodleaze,Electricity,EDF Energy 1 Limited,1203.53, 12-Mar-2012
626,Revenue,CCHD,Newton House,Electricity,EDF Energy 1 Limited,1097.78, 14-Mar-2012
627,Revenue,CCHD,Newton House,Electricity,EDF Energy 1 Limited,977.78, 19-Mar-2012
628,Revenue,CCHD,Alexandra Way,Electricity,EDF Energy 1 Limited,1287.97, 14-Mar-2012
629,Revenue,CCHD,Frenchay Hospital Purchasing,Residential Homes,Edgecumbe Lodge,1170, 20-Mar-2012
630,Revenue,CCHD,Southmead Hospital Purchasing,Residential Homes,Edgecumbe Lodge,1229, 20-Mar-2012
631,Revenue,CCHD,Southmead Hospital Purchasing,Residential Homes,Edgecumbe Lodge,746.18, 20-Mar-2012
632,Revenue,CCHD,Southmead Hospital Purchasing,Residential Homes,Edgecumbe Lodge,570.6, 20-Mar-2012
633,Revenue,CCHD,Bed Purchasing - Elderly - South,Residential Homes,Edgecumbe Lodge,1216.68, 20-Mar-2012
634,Revenue,CCHD,Frenchay Hospital Purchasing,Residential Homes,Edgecumbe Lodge,1100.32, 20-Mar-2012
635,Revenue,CCHD,Frenchay Hospital Purchasing,Residential Homes,Edgecumbe Lodge,1062.8, 20-Mar-2012
636,Revenue,CCHD,Bed purchasing - Elderly MH - North,Residential Homes,Edgecumbe Lodge,1146.36, 20-Mar-2012
637,Revenue,CCHD,Bed purchasing - Elderly MH - North,Residential Homes,Edgecumbe Lodge,1350.6, 20-Mar-2012
638,Revenue,CCHD,Bed purchasing - Elderly PWLD - South,Residential Homes,Edgemont House Ltd,1299.16, 20-Mar-2012
639,Revenue,CCHD,Bed Purchasing - Elderly - South,Residential Homes,Edgemont House Ltd,1341, 20-Mar-2012
640,Revenue,CCHD,Bed Purchasing - Elderly - South,Residential Homes,Edgemont House Ltd,724.9, 20-Mar-2012
641,Revenue,CCHD,Bed Purchasing - Elderly - North,Residential Homes,Edgemont House Ltd,1229, 20-Mar-2012
642,Revenue,CCHD,Bed Purchasing - Elderly - South,Residential Homes,Edgemont House Ltd,1122.4, 20-Mar-2012
643,Revenue,CCHD,Frenchay Hospital Purchasing,Residential Homes,Edgemont House Ltd,1349, 20-Mar-2012
644,Revenue,CCHD,Bed Purchasing - Elderly - South,Nursing Homes,Edgemont View Nursing Home,1405, 20-Mar-2012
645,Revenue,CCHD,Frenchay Hospital Purchasing,Nursing Homes,Edgemont View Nursing Home,1335.8, 20-Mar-2012
646,Revenue,CCHD,Bed Purchasing - Elderly - South,Nursing Homes,Edgemont View Nursing Home,1247.8, 20-Mar-2012
647,Revenue,CCHD,Bed Purchasing - Elderly - South,Nursing Homes,Edgemont View Nursing Home,1586.2, 20-Mar-2012
648,Revenue,CCHD,Frenchay Hospital Purchasing,Nursing Homes,Edgemont View Nursing Home,636.04, 20-Mar-2012
649,Revenue,CCHD,Frenchay Hospital Purchasing,Nursing Homes,Edgemont View Nursing Home,1253.16, 20-Mar-2012
650,Revenue,CCHD,Training - Adult Services,Training Expenses,Eils/Scils,3150, 08-Mar-2012
651,Revenue,CCHD,Supporting People Programme,Grants to Voluntary Bodies,Elim Housing Association Ltd,4276.18, 12-Mar-2012
652,Revenue,CCHD,Home Care - Elderly - South,Other Small Contracts,Elite Home Care Ltd,2201.5, 19-Mar-2012
653,Revenue,CCHD,Home care - Elderly MH - North,Other Small Contracts,Elite Home Care Ltd,280.5, 19-Mar-2012
654,Revenue,CCHD,Bed Purchasing - Elderly - South,Residential Homes,Elmbridge Residential Home Ltd,1294.4, 20-Mar-2012
655,Revenue,CCHD,Frenchay Hospital Purchasing,Nursing Homes,Elmwood Nursing Home,2162.96, 20-Mar-2012
656,Revenue,CCHD,Younger MH non-res purchasing,Private & Voluntary Day Care,Enham,638.72, 16-Mar-2012
657,Revenue,CCHD,Bed purchasing - Elderly MH - North,Residential Homes,Exmouth House,1305.6, 20-Mar-2012
658,Revenue,CCHD,South Glos Users in South Glos Homes,Nursing Homes,Fairview Court,2127.41, 20-Mar-2012
659,Revenue,CCHD,Bed purchasing - Elderly MH - North,Residential Homes,Fairview Court,1389, 20-Mar-2012
660,Revenue,CCHD,Bed Purchasing - Elderly - South,Residential Homes,Fairview Court,2580, 20-Mar-2012
661,Revenue,CCHD,Bed Purchasing - Elderly - South,Residential Homes,Fairview Court,2093, 20-Mar-2012
662,Revenue,CCHD,Southmead Hospital Purchasing,Nursing Homes,Fairview Court,1389, 20-Mar-2012
663,Revenue,CCHD,Southmead Hospital Purchasing,Nursing Homes,Fairview Court,1289.79, 20-Mar-2012
664,Revenue,CCHD,Southmead Hospital Purchasing,Residential Homes,Fairview Court,1140.96, 20-Mar-2012
665,Revenue,CCHD,South Glos Users in South Glos Homes,Nursing Homes,Fairview Court Care Home,2251.64, 06-Mar-2012
666,Revenue,CCHD,Bed purchasing - Phys Dis - North,Nursing Homes,Fairview Court Care Home,1823.52, 06-Mar-2012
667,Revenue,CCHD,Bed purchasing - Elderly MH - North,Nursing Homes,Fairview Court Care Home,6356.8, 06-Mar-2012
668,Revenue,CCHD,Bed Purchasing - Elderly S117- North,Nursing Homes,Fairview Court Care Home,2346.1, 06-Mar-2012
669,Revenue,CCHD,Bed Purchasing - Elderly - South,Residential Homes,Fairview House,637.28, 20-Mar-2012
670,Revenue,CCHD,Frenchay Hospital Purchasing,Residential Homes,Fairview House,1234.4, 20-Mar-2012
671,Revenue,CCHD,Frenchay Hospital Purchasing,Residential Homes,Fairview House,1005.24, 20-Mar-2012
672,Revenue,CCHD,Bed Purchasing - Elderly S117- North,Residential Homes,Fairview House,1840, 20-Mar-2012
673,Revenue,CCHD,Southmead Hospital Purchasing,Residential Homes,Fairview House,1029.52, 20-Mar-2012
674,Revenue,CCHD,Southmead Hospital Purchasing,Residential Homes,Fairview House,1101.04, 20-Mar-2012
675,Revenue,CCHD,Bed purchasing - Elderly MH - North,Residential Homes,Fairview House,1084.72, 20-Mar-2012
676,Revenue,CCHD,Frenchay Hospital Purchasing,Residential Homes,Fairview House,1229, 20-Mar-2012
677,Revenue,CCHD,Southmead Hospital Purchasing,Residential Homes,Fairview House,588.92, 20-Mar-2012
678,Revenue,CCHD,Bed purchasing - Elderly MH - North,Residential Homes,Fairview House,1049.28, 20-Mar-2012
679,Revenue,CCHD,Bed purchasing - Elderly MH - North,Residential Homes,Fairview House,1163.88, 20-Mar-2012
680,Revenue,CCHD,Frenchay Hospital Purchasing,Residential Homes,Fairview House,1269.32, 20-Mar-2012
681,Revenue,CCHD,Bed Purchasing - Elderly - North,Residential Homes,Faith House,892.2, 20-Mar-2012
682,Revenue,CCHD,Frenchay Hospital Purchasing,Residential Homes,Faith House,1284.48, 20-Mar-2012
683,Revenue,CCHD,Bed Purchasing - Elderly - North,Residential Homes,Faith House,1110.8, 20-Mar-2012
684,Revenue,CCHD,Bed purchasing - Under 65s PWLD - North,Residential Homes,Fernbank,8350.56, 20-Mar-2012
685,Revenue,CCHD,Bed Purchasing - Elderly - South,Nursing Homes,Four Seasons Health Care,1256.2, 20-Mar-2012
686,Revenue,CCHD,Frenchay Hospital Purchasing,Residential Homes,Four Seasons Health Care,907.04, 20-Mar-2012
687,Revenue,CCHD,Bed purchasing - Elderly MH - North,Nursing Homes,Four Seasons Health Care,1349, 20-Mar-2012
688,Revenue,CCHD,Frenchay Hospital Purchasing,Nursing Homes,Four Seasons Health Care,1349, 20-Mar-2012
689,Revenue,CCHD,Frenchay Hospital Purchasing,Nursing Homes,Four Seasons Health Care,1808, 20-Mar-2012
690,Revenue,CCHD,Southmead Hospital Purchasing,Nursing Homes,Four Seasons Health Care,1349, 20-Mar-2012
691,Revenue,CCHD,Southmead Hospital Purchasing,Nursing Homes,Four Seasons Health Care,1349, 20-Mar-2012
692,Revenue,CCHD,Southmead Hospital Purchasing,Nursing Homes,Four Seasons Health Care,3372.5, 20-Mar-2012
693,Revenue,CCHD,South Glos Users in South Glos Homes,Nursing Homes,Four Seasons Health Care,1257.81, 20-Mar-2012
694,Revenue,CCHD,Bed Purchasing - Elderly - South,Nursing Homes,Four Seasons Health Care,835.52, 20-Mar-2012
695,Revenue,CCHD,Southmead Hospital Purchasing,Nursing Homes,Four Seasons Health Care,1349, 20-Mar-2012
696,Revenue,CCHD,Bed Purchasing - Elderly - South,Nursing Homes,Four Seasons Health Care,1345.8, 20-Mar-2012
697,Revenue,CCHD,Cash for Change Discharges,Nursing Homes,Four Seasons Health Care,1349, 20-Mar-2012
698,Revenue,CCHD,Bed Purchasing - Elderly - South,Nursing Homes,Four Seasons Health Care,1205, 20-Mar-2012
699,Revenue,CCHD,Southmead Hospital Purchasing,Nursing Homes,Four Seasons Health Care,1349, 20-Mar-2012
700,Revenue,CCHD,Bed Purchasing - Elderly - South,Nursing Homes,Four Seasons Health Care,1245.4, 20-Mar-2012
701,Revenue,CCHD,Southmead Hospital Purchasing,Residential Homes,Four Seasons Health Care,580.48, 20-Mar-2012
702,Revenue,CCHD,South Glos Users in South Glos Homes,Nursing Homes,Four Seasons Health Care,1319.93, 20-Mar-2012
703,Revenue,CCHD,Southmead Hospital Purchasing,Nursing Homes,Four Seasons Health Care,1253.28, 20-Mar-2012
704,Revenue,CCHD,Bed Purchasing - Elderly - South,Nursing Homes,Four Seasons Health Care,1349, 20-Mar-2012
705,Revenue,CCHD,Bed Purchasing - Elderly - South,Nursing Homes,Four Seasons Health Care,1290.4, 20-Mar-2012
706,Revenue,CCHD,Bed purchasing - Elderly MH - North,Nursing Homes,Four Seasons Health Care,1342.84, 20-Mar-2012
707,Revenue,CCHD,Bed Purchasing - Elderly - South,Nursing Homes,Four Seasons Health Care,1068.64, 20-Mar-2012
708,Revenue,CCHD,Bed Purchasing - Elderly - North,Nursing Homes,Four Seasons Health Care,1313, 20-Mar-2012
709,Revenue,CCHD,Frenchay Hospital Purchasing,Nursing Homes,Four Seasons Health Care,1052.2, 20-Mar-2012
710,Revenue,CCHD,Bed purchasing - Elderly MH - North,Residential Homes,Four Seasons Health Care,1056.64, 20-Mar-2012
711,Revenue,CCHD,Bed Purchasing - Elderly - South,Nursing Homes,Four Seasons Health Care,1349, 20-Mar-2012
712,Revenue,CCHD,Bed Purchasing - Elderly - South,Nursing Homes,Four Seasons Health Care,1341.32, 20-Mar-2012
713,Revenue,CCHD,Frenchay Hospital Purchasing,Nursing Homes,Four Seasons Health Care,1297, 20-Mar-2012
714,Revenue,CCHD,Bed purchasing - Elderly MH - North,Nursing Homes,Four Seasons Health Care,1199.32, 20-Mar-2012
715,Revenue,CCHD,Bed Purchasing - Elderly - North,Nursing Homes,Four Seasons Health Care,1000, 20-Mar-2012
716,Revenue,CCHD,Frenchay Hospital Purchasing,Nursing Homes,Four Seasons Health Care,1517, 20-Mar-2012
717,Revenue,CCHD,Frenchay Hospital Purchasing,Nursing Homes,Four Seasons Health Care,1283.16, 20-Mar-2012
718,Revenue,CCHD,Southmead Hospital Purchasing,Residential Homes,Four Seasons Health Care,1232, 20-Mar-2012
719,Revenue,CCHD,Bed Purchasing - Elderly - North,Residential Homes,Four Seasons Health Care,1022.72, 20-Mar-2012
720,Revenue,CCHD,Bed Purchasing - Elderly - South,Nursing Homes,Four Seasons Health Care,1206.96, 20-Mar-2012
721,Revenue,CCHD,Bed purchasing - Elderly MH - North,Nursing Homes,Four Seasons Health Care,1313, 20-Mar-2012
722,Revenue,CCHD,Frenchay Hospital Purchasing,Nursing Homes,Four Seasons Health Care,1268.08, 20-Mar-2012
723,Revenue,CCHD,Bed Purchasing - Elderly - South,Nursing Homes,Four Seasons Health Care,1349, 20-Mar-2012
724,Revenue,CCHD,Southmead Hospital Purchasing,Nursing Homes,Four Seasons Health Care,1349, 20-Mar-2012
725,Revenue,CCHD,Bed Purchasing - Elderly - South,Nursing Homes,Four Seasons Health Care,1349, 20-Mar-2012
726,Revenue,CCHD,Bed purchasing - Elderly MH - North,Nursing Homes,Four Seasons Health Care,1431.72, 20-Mar-2012
727,Revenue,CCHD,Bed Purchasing - Elderly - North,Nursing Homes,Four Seasons Health Care,1248.52, 20-Mar-2012
728,Revenue,CCHD,Bed Purchasing - Elderly - North,Nursing Homes,Four Seasons Health Care,1103.48, 20-Mar-2012
729,Revenue,CCHD,Southmead Hospital Purchasing,Nursing Homes,Four Seasons Health Care,1336.4, 20-Mar-2012
730,Revenue,CCHD,Frenchay Hospital Purchasing,Nursing Homes,Four Seasons Health Care,1284.56, 20-Mar-2012
731,Revenue,CCHD,Bed purchasing - Elderly MH - North,Nursing Homes,Four Seasons Health Care,1416, 20-Mar-2012
732,Revenue,CCHD,Frenchay Hospital Purchasing,Nursing Homes,Four Seasons Health Care,1323.8, 20-Mar-2012
733,Revenue,CCHD,Southmead Hospital Purchasing,Nursing Homes,Four Seasons Health Care,1397.36, 20-Mar-2012
734,Revenue,CCHD,Bed Purchasing - Elderly - North,Nursing Homes,Four Seasons Health Care,1373, 20-Mar-2012
735,Revenue,CCHD,Bed Purchasing - Elderly - North,Nursing Homes,Four Seasons Health Care,1349, 20-Mar-2012
736,Revenue,CCHD,Bed Purchasing - Elderly - South,Residential Homes,Four Seasons Health Care,1229, 20-Mar-2012
737,Revenue,CCHD,Bed Purchasing - Elderly - North,Nursing Homes,Four Seasons Health Care,1412.48, 20-Mar-2012
738,Revenue,CCHD,Southmead Hospital Purchasing,Residential Homes,Four Seasons Health Care,729.36, 20-Mar-2012
739,Revenue,CCHD,Bed purchasing - Elderly MH - North,Nursing Homes,Four Seasons Health Care,1402.52, 20-Mar-2012
740,Revenue,CCHD,Southmead Hospital Purchasing,Nursing Homes,Four Seasons Health Care,1422.32, 20-Mar-2012
741,Revenue,CCHD,Frenchay Hospital Purchasing,Nursing Homes,Four Seasons Health Care,1199.6, 20-Mar-2012
742,Revenue,CCHD,Southmead Hospital Purchasing,Nursing Homes,Four Seasons Health Care,1517, 20-Mar-2012
743,Revenue,CCHD,Frenchay Hospital Purchasing,Nursing Homes,Four Seasons Health Care,1161.72, 20-Mar-2012
744,Revenue,CCHD,Bed purchasing - Elderly MH - North,Residential Homes,Four Seasons Health Care,1202.24, 20-Mar-2012
745,Revenue,CCHD,Southmead Hospital Purchasing,Residential Homes,Four Seasons Health Care,1229, 20-Mar-2012
746,Revenue,CCHD,Southmead Hospital Purchasing,Nursing Homes,Four Seasons Health Care,955.32, 20-Mar-2012
747,Revenue,CCHD,Bed purchasing - Elderly MH - North,Residential Homes,Four Seasons Health Care,1344.16, 20-Mar-2012
748,Revenue,CCHD,Bed Purchasing - Elderly - North,Nursing Homes,Four Seasons Health Care,1341.32, 20-Mar-2012
749,Revenue,CCHD,Bed purchasing - Elderly MH - North,Nursing Homes,Four Seasons Health Care,1034.84, 20-Mar-2012
750,Revenue,CCHD,Frenchay Hospital Purchasing,Nursing Homes,Four Seasons Health Care,1349, 20-Mar-2012
751,Revenue,CCHD,South Glos Users in South Glos Homes,Nursing Homes,Four Seasons Health Care,512.44, 20-Mar-2012
752,Revenue,CCHD,Bed Purchasing - Elderly - North,Nursing Homes,Four Seasons Health Care,1011.75, 20-Mar-2012
753,Revenue,CCHD,Frenchay Hospital Purchasing,Nursing Homes,Four Seasons Health Care,1349, 20-Mar-2012
754,Revenue,CCHD,Bed Purchasing - Elderly - South,Nursing Homes,Four Seasons Health Care,1251.72, 20-Mar-2012
755,Revenue,CCHD,Frenchay Hospital Purchasing,Nursing Homes,Four Seasons Health Care,1277, 20-Mar-2012
756,Revenue,CCHD,Frenchay Hospital Purchasing,Nursing Homes,Four Seasons Health Care,1349, 20-Mar-2012
757,Revenue,CCHD,Bed Purchasing - Elderly - North,Nursing Homes,Four Seasons Health Care,1385, 20-Mar-2012
758,Revenue,CCHD,Frenchay Hospital Purchasing,Nursing Homes,Four Seasons Health Care,1349, 20-Mar-2012
759,Revenue,CCHD,Frenchay Hospital Purchasing,Nursing Homes,Four Seasons Health Care,1349, 20-Mar-2012
760,Revenue,CCHD,Frenchay Hospital Purchasing,Nursing Homes,Four Seasons Health Care,1365, 20-Mar-2012
761,Revenue,CCHD,Bed Purchasing - Elderly - South,Nursing Homes,Four Seasons Health Care,1057.92, 20-Mar-2012
762,Revenue,CCHD,Southmead Hospital Purchasing,Residential Homes,Four Seasons Health Care,1103.44, 20-Mar-2012
763,Revenue,CCHD,Southmead Hospital Purchasing,Nursing Homes,Four Seasons Health Care,1349, 20-Mar-2012
764,Revenue,CCHD,Southmead Hospital Purchasing,Nursing Homes,Four Seasons Health Care,1349, 20-Mar-2012
765,Revenue,CCHD,Southmead Hospital Purchasing,Nursing Homes,Four Seasons Health Care,529.97, 20-Mar-2012
766,Revenue,CCHD,Southmead Hospital Purchasing,Nursing Homes,Four Seasons Health Care,5019.28, 20-Mar-2012
767,Revenue,CCHD,Bed purchasing - Phys Dis - North,Nursing Homes,Four Seasons Health Care,1152.8, 20-Mar-2012
768,Revenue,CCHD,Southmead Hospital Purchasing,Nursing Homes,Four Seasons Health Care,1317.56, 20-Mar-2012
769,Revenue,CCHD,Bed purchasing - Phys Dis - North,Nursing Homes,Four Seasons Health Care,1355.08, 20-Mar-2012
770,Revenue,CCHD,Bed Purchasing - Elderly - South,Nursing Homes,Four Seasons Health Care,1225.28, 20-Mar-2012
771,Revenue,CCHD,Southmead Hospital Purchasing,Nursing Homes,Four Seasons Health Care,1275.28, 20-Mar-2012
772,Revenue,CCHD,Bed purchasing - Elderly MH - North,Residential Homes,Four Seasons Health Care,1375.96, 20-Mar-2012
773,Revenue,CCHD,Southmead Hospital Purchasing,Residential Homes,Four Seasons Health Care,1151.56, 20-Mar-2012
774,Revenue,CCHD,Bed Purchasing - Elderly - South,Nursing Homes,Four Seasons Health Care,1878.97, 20-Mar-2012
775,Revenue,CCHD,Frenchay Hospital Purchasing,Nursing Homes,Four Seasons Health Care,1211.8, 20-Mar-2012
776,Revenue,CCHD,Southmead Hospital Purchasing,Nursing Homes,Four Seasons Health Care,1185.2, 20-Mar-2012
777,Revenue,CCHD,Bed purchasing - Elderly PWLD - South,Residential Homes,Four Seasons Health Care,1229, 20-Mar-2012
778,Revenue,CCHD,Frenchay Hospital Purchasing,Nursing Homes,Four Seasons Health Care,1349, 20-Mar-2012
779,Revenue,CCHD,Southmead Hospital Purchasing,Nursing Homes,Four Seasons Health Care,6582.85, 20-Mar-2012
780,Revenue,CCHD,Southmead Hospital Purchasing,Nursing Homes,Four Seasons Health Care,1110.36, 20-Mar-2012
781,Revenue,CCHD,Bed Purchasing - Elderly - South,Nursing Homes,Four Seasons Health Care,1265.52, 20-Mar-2012
782,Revenue,CCHD,Bed Purchasing - Elderly - South,Nursing Homes,Four Seasons Health Care,1349, 20-Mar-2012
783,Revenue,CCHD,Bed Purchasing - Elderly - South,Nursing Homes,Four Seasons Health Care,1335.64, 20-Mar-2012
784,Revenue,CCHD,Frenchay Hospital Purchasing,Residential Homes,Four Seasons Health Care,751.52, 20-Mar-2012
785,Revenue,CCHD,Bed Purchasing - Elderly - South,Residential Homes,Four Seasons Health Care,1229, 20-Mar-2012
786,Revenue,CCHD,Southmead Hospital Purchasing,Nursing Homes,Four Seasons Health Care,1125.12, 20-Mar-2012
787,Revenue,CCHD,Bed Purchasing - Elderly - South,Residential Homes,Four Seasons Health Care,859.68, 20-Mar-2012
788,Revenue,CCHD,Southmead Hospital Purchasing,Nursing Homes,Four Seasons Health Care,1287.24, 20-Mar-2012
789,Revenue,CCHD,Southmead Hospital Purchasing,Residential Homes,Four Seasons Health Care,1367.48, 20-Mar-2012
790,Revenue,CCHD,Bed Purchasing - Elderly - South,Residential Homes,Four Seasons Health Care,862.54, 20-Mar-2012
791,Revenue,CCHD,Frenchay Hospital Purchasing,Nursing Homes,Four Seasons Health Care,774.32, 20-Mar-2012
792,Revenue,CCHD,Bed Purchasing - Elderly - South,Nursing Homes,Four Seasons Health Care,960.32, 20-Mar-2012
793,Revenue,CCHD,Frenchay Hospital Purchasing,Residential Homes,Four Seasons Health Care,1227.8, 20-Mar-2012
794,Revenue,CCHD,Bed Purchasing - Elderly S117- North,Nursing Homes,Four Seasons Health Care,1808, 20-Mar-2012
795,Revenue,CCHD,Frenchay Hospital Purchasing,Residential Homes,Four Seasons Health Care,1092.96, 20-Mar-2012
796,Revenue,CCHD,Bed purchasing - Elderly MH - North,Nursing Homes,Four Seasons Health Care,1173.4, 20-Mar-2012
797,Revenue,CCHD,Frenchay Hospital Purchasing,Nursing Homes,Four Seasons Health Care,1251.72, 20-Mar-2012
798,Revenue,CCHD,Frenchay Hospital Purchasing,Nursing Homes,Four Seasons Health Care,503.96, 20-Mar-2012
799,Revenue,CCHD,Frenchay Hospital Purchasing,Nursing Homes,Four Seasons Health Care,1345.8, 20-Mar-2012
800,Revenue,CCHD,South Glos Users in South Glos Homes,Nursing Homes,Four Seasons Health Care,2701.97, 20-Mar-2012
801,Revenue,CCHD,Southmead Hospital Purchasing,Nursing Homes,Four Seasons Health Care,1337.68, 20-Mar-2012
802,Revenue,CCHD,Bed purchasing - Elderly MH - North,Residential Homes,Four Seasons Health Care,954.64, 20-Mar-2012
803,Revenue,CCHD,Frenchay Hospital Purchasing,Nursing Homes,Four Seasons Health Care,1115.84, 20-Mar-2012
804,Revenue,CCHD,Southmead Hospital Purchasing,Nursing Homes,Four Seasons Health Care,739, 20-Mar-2012
805,Revenue,CCHD,Bed Purchasing - Elderly - North,Nursing Homes,Four Seasons Health Care,1285.16, 20-Mar-2012
806,Revenue,CCHD,Southmead Hospital Purchasing,Nursing Homes,Four Seasons Health Care,999.56, 20-Mar-2012
807,Revenue,CCHD,Southmead Hospital Purchasing,Nursing Homes,Four Seasons Health Care,895.64, 20-Mar-2012
808,Revenue,CCHD,Bed Purchasing - Elderly S117- North,Residential Homes,Four Seasons Health Care,10877.9, 20-Mar-2012
809,Revenue,CCHD,Frenchay Hospital Purchasing,Residential Homes,Four Seasons Health Care,8222.28, 20-Mar-2012
810,Revenue,CCHD,Frenchay Hospital Purchasing,Nursing Homes,Four Seasons Health Care,4606.96, 20-Mar-2012
811,Revenue,CCHD,Freeways,Residential Homes,Freeways Trust Limited,54477.86, 02-Mar-2012
812,Revenue,CCHD,Freeways,Residential Homes,Freeways Trust Limited,43359.68, 20-Mar-2012
813,Revenue,CCHD,Purchase of Non-Res Care - KD,Private & Voluntary Day Care,Freeways Trust Limited,620.88, 19-Mar-2012
814,Revenue,CCHD,Purchase of Non-Res Care - KD,Private & Voluntary Day Care,Freeways Trust Limited,620.88, 19-Mar-2012
815,Revenue,CCHD,Supported Living - PS,Private & Voluntary Home Care,Freeways Trust Limited,1390.2, 14-Mar-2012
816,Revenue,CCHD,Purchase of Non-Res Care - KD,Private & Voluntary Day Care,Freeways Trust Limited,620.88, 19-Mar-2012
817,Revenue,CCHD,Bed purchasing - Under 65s PWLD - North,Residential Homes,Freeways Trust Ltd,2757, 20-Mar-2012
818,Revenue,CCHD,Bed purchasing - S28A Under 65 - South,Residential Homes,Freeways Trust Ltd,2838.8, 20-Mar-2012
819,Revenue,CCHD,Bed purchasing - Under 65s PWLD - North,Residential Homes,Freeways Trust Ltd,2206.88, 20-Mar-2012
820,Revenue,CCHD,Bed purchasing - Under 65s PWLD - North,Residential Homes,Freeways Trust Ltd,2625, 20-Mar-2012
821,Revenue,CCHD,Bed purchasing - Under 65s PWLD - North,Residential Homes,Freeways Trust Ltd,2217.28, 20-Mar-2012
822,Revenue,CCHD,Bed purchasing - Under 65s PWLD - North,Residential Homes,Freeways Trust Ltd,2633.48, 20-Mar-2012
823,Revenue,CCHD,Under 65s PWLD - KH,Residential Homes,Freeways Trust Ltd,3216.52, 20-Mar-2012
824,Revenue,CCHD,Bed purchasing - Elderly PWLD - North,Residential Homes,Freeways Trust Ltd,2192.48, 20-Mar-2012
825,Revenue,CCHD,Under 65s PWLD - KH,Residential Homes,Freeways Trust Ltd,2335.12, 20-Mar-2012
826,Revenue,CCHD,Under 65s PWLD - KH,Residential Homes,Freeways Trust Ltd,2633.48, 20-Mar-2012
827,Revenue,CCHD,Bed purchasing - Elderly PWLD - North,Residential Homes,Freeways Trust Ltd,2461, 20-Mar-2012
828,Revenue,CCHD,Section 117 Placements MH Younger,Residential Homes,Freeways Trust Ltd,3238, 20-Mar-2012
829,Revenue,CCHD,Frenchay Hospital Purchasing,Nursing Homes,Frenchay Park Nursing Home,1198, 20-Mar-2012
830,Revenue,CCHD,Management & Support costs,Other Supplies & Services,Geo Testing Services Limited,1885, 08-Mar-2012
831,Revenue,CCHD,Bed Purchasing - Under 65s PWLD - South,Residential Homes,Glasallt Fawr,4442.2, 20-Mar-2012
832,Revenue,CCHD,Bed Purchasing - Elderly - North,Nursing Homes,Glebe House Nursing Home,1366.64, 20-Mar-2012
833,Revenue,CCHD,Bed Purchasing - Elderly - South,Residential Homes,Glebe House Nursing Home,1941, 20-Mar-2012
834,Revenue,CCHD,Bed Purchasing - Elderly - North,Nursing Homes,Glebe House Nursing Home,1285, 20-Mar-2012
835,Revenue,CCHD,Southmead Hospital Purchasing,Nursing Homes,Glebe House Nursing Home,1285, 20-Mar-2012
836,Revenue,CCHD,Southmead Hospital Purchasing,Nursing Homes,Glebe House Nursing Home,1644, 20-Mar-2012
837,Revenue,CCHD,Bed purchasing - Phys Dis - South,Nursing Homes,Glenside Centre For Brain Injury,6955.52, 20-Mar-2012
838,Revenue,CCHD,Under 65s PWLD - KH,Residential Homes,Gordena Care Home,2040.52, 20-Mar-2012
839,Revenue,CCHD,Elderly PWLD - KH,Residential Homes,Gordena Care Home,4624.36, 20-Mar-2012
840,Revenue,CCHD,Elderly PWLD - KH,Residential Homes,Gordena Care Home,2866.12, 20-Mar-2012
841,Revenue,CCHD,Under 65s PWLD - KH,Residential Homes,Gordena Care Home,2036.68, 20-Mar-2012
842,Revenue,CCHD,Home Care - Elderly - South,Other Small Contracts,Greenbanks Homecare (Western) Limited,3582.08, 29-Mar-2012
843,Revenue,CCHD,Home Care - Elderly - North,Other Small Contracts,Greenbanks Homecare (Western) Limited,227.74, 29-Mar-2012
844,Revenue,CCHD,Day Care - South,Private & Voluntary Day Care,Greenbanks Homecare (Western) Limited,231.6, 29-Mar-2012
845,Revenue,CCHD,Day Care - North,Private & Voluntary Day Care,Greenbanks Homecare (Western) Limited,185.28, 29-Mar-2012
846,Revenue,CCHD,Carer`s Grant - South,Carers Breaks & Services,Greenbanks Homecare (Western) Limited,108.08, 29-Mar-2012
847,Revenue,CCHD,Home care - Elderly MH - North,Other Small Contracts,Greenbanks Homecare (Western) Limited,463.2, 29-Mar-2012
848,Revenue,CCHD,Elderly MH Day Care North,Private & Voluntary Day Care,Greenbanks Homecare (Western) Limited,19.3, 29-Mar-2012
849,Revenue,CCHD,Home Care - Elderly - South,Other Small Contracts,Greenbanks Homecare (Western) Limited,3844.56, 29-Mar-2012
850,Revenue,CCHD,Home Care - Elderly - North,Other Small Contracts,Greenbanks Homecare (Western) Limited,289.5, 29-Mar-2012
851,Revenue,CCHD,Day Care - South,Private & Voluntary Day Care,Greenbanks Homecare (Western) Limited,266.34, 29-Mar-2012
852,Revenue,CCHD,Day Care - North,Private & Voluntary Day Care,Greenbanks Homecare (Western) Limited,169.84, 29-Mar-2012
853,Revenue,CCHD,Carer`s Grant - South,Carers Breaks & Services,Greenbanks Homecare (Western) Limited,108.08, 29-Mar-2012
854,Revenue,CCHD,Home care - Elderly MH - North,Other Small Contracts,Greenbanks Homecare (Western) Limited,513.38, 29-Mar-2012
855,Revenue,CCHD,Elderly MH Day Care North,Private & Voluntary Day Care,Greenbanks Homecare (Western) Limited,23.16, 29-Mar-2012
856,Revenue,CCHD,Home Care - Elderly - South,Other Small Contracts,Greenbanks Homecare (Western) Limited,3724.9, 29-Mar-2012
857,Revenue,CCHD,Home Care - Elderly - North,Other Small Contracts,Greenbanks Homecare (Western) Limited,320.38, 29-Mar-2012
858,Revenue,CCHD,Day Care - South,Private & Voluntary Day Care,Greenbanks Homecare (Western) Limited,220.02, 29-Mar-2012
859,Revenue,CCHD,Day Care - North,Private & Voluntary Day Care,Greenbanks Homecare (Western) Limited,162.12, 29-Mar-2012
860,Revenue,CCHD,Carer`s Grant - South,Carers Breaks & Services,Greenbanks Homecare (Western) Limited,108.08, 29-Mar-2012
861,Revenue,CCHD,Home care - Elderly MH - North,Other Small Contracts,Greenbanks Homecare (Western) Limited,424.6, 29-Mar-2012
862,Revenue,CCHD,Elderly MH Day Care North,Private & Voluntary Day Care,Greenbanks Homecare (Western) Limited,23.16, 29-Mar-2012
863,Revenue,CCHD,Home Care - Elderly - South,Other Small Contracts,Greenbanks Homecare (Western) Limited,3639.98, 29-Mar-2012
864,Revenue,CCHD,Home Care - Elderly - North,Other Small Contracts,Greenbanks Homecare (Western) Limited,304.94, 29-Mar-2012
865,Revenue,CCHD,Day Care - South,Private & Voluntary Day Care,Greenbanks Homecare (Western) Limited,289.5, 29-Mar-2012
866,Revenue,CCHD,Day Care - North,Private & Voluntary Day Care,Greenbanks Homecare (Western) Limited,165.98, 29-Mar-2012
867,Revenue,CCHD,Carer`s Grant - South,Carers Breaks & Services,Greenbanks Homecare (Western) Limited,108.08, 29-Mar-2012
868,Revenue,CCHD,Home care - Elderly MH - North,Other Small Contracts,Greenbanks Homecare (Western) Limited,409.16, 29-Mar-2012
869,Revenue,CCHD,Elderly MH Day Care North,Private & Voluntary Day Care,Greenbanks Homecare (Western) Limited,23.16, 29-Mar-2012
870,Revenue,CCHD,Bed purchasing - Under 65s PWLD - North,Residential Homes,Greyhound Care Home,3557.96, 20-Mar-2012
871,Revenue,CCHD,Frenchay Hospital Purchasing,Residential Homes,Gwendoline House,1176.84, 20-Mar-2012
872,Revenue,CCHD,Bed Purchasing - Elderly - South,Residential Homes,Gwendoline House,1465, 20-Mar-2012
873,Revenue,CCHD,Bed Purchasing - Elderly - South,Residential Homes,Gwendoline House,1146.28, 20-Mar-2012
874,Revenue,CCHD,Bed purchasing - Elderly MH - North,Residential Homes,Gwendoline House,1219.6, 20-Mar-2012
875,Revenue,CCHD,Bed Purchasing - Elderly - South,Residential Homes,Gwendoline House,1413.96, 20-Mar-2012
876,Revenue,CCHD,Bed Purchasing - Elderly - South,Residential Homes,Gwendoline House,1111.56, 20-Mar-2012
877,Revenue,CCHD,Bed Purchasing - Elderly - South,Residential Homes,Gwendoline House,987.72, 20-Mar-2012
878,Revenue,CCHD,Bed Purchasing - Elderly - South,Residential Homes,Harefield Hall,1351.42, 20-Mar-2012
879,Revenue,CCHD,Bed purchasing - Elderly MH - North,Residential Homes,Harefield Hall,1019.89, 20-Mar-2012
880,Revenue,CCHD,Bed Purchasing - Elderly - South,Residential Homes,Harefield Hall,1229, 20-Mar-2012
881,Revenue,CCHD,Bed Purchasing - Elderly - South,Residential Homes,Harefield Hall,984.3, 20-Mar-2012
882,Revenue,CCHD,Bed purchasing - Elderly MH - North,Residential Homes,Harefield Hall,1109.4, 20-Mar-2012
883,Revenue,CCHD,Southmead Hospital Purchasing,Nursing Homes,Hc-One Ltd,1586.2, 20-Mar-2012
884,Revenue,CCHD,Supported Living - KD,Private & Voluntary Home Care,HFT,1995.12, 01-Mar-2012
885,Revenue,CCHD,Supported Living - KD,Private & Voluntary Home Care,HFT,1995.12, 08-Mar-2012
886,Revenue,CCHD,Supported Living - KH,Private & Voluntary Home Care,HFT,3660.6, 08-Mar-2012
887,Revenue,CCHD,Supported Living - KH,Private & Voluntary Home Care,HFT,3660.6, 26-Mar-2012
888,Revenue,CCHD,Southmead Hospital Purchasing,Residential Homes,Highgate Studios,1174.88, 20-Mar-2012
889,Revenue,CCHD,Bed purchasing - Under 65s PWLD - North,Residential Homes,Holmleigh Care Homes Ltd,3908.68, 20-Mar-2012
890,Revenue,CCHD,Under 65s PWLD - KH,Residential Homes,Holmleigh Care Homes Ltd,4909.68, 20-Mar-2012
891,Revenue,CCHD,Bed purchasing - Under 65s PWLD - North,Residential Homes,Home Farm Trust Ltd  5-6 Brook Office Pa,2749.36, 20-Mar-2012
892,Revenue,CCHD,Bed Purchasing - Under 65s PWLD - South,Residential Homes,Home Farm Trust Ltd  5-6 Brook Office Pa,2398.8, 20-Mar-2012
893,Revenue,CCHD,Bed Purchasing - Under 65s PWLD - South,Residential Homes,Home Farm Trust Ltd  5-6 Brook Office Pa,3764.43, 20-Mar-2012
894,Revenue,CCHD,Bed purchasing - Under 65s PWLD - North,Residential Homes,Home Farm Trust Ltd  5-6 Brook Office Pa,3319.88, 20-Mar-2012
895,Revenue,CCHD,Bed Purchasing - Under 65s PWLD - South,Residential Homes,Home Farm Trust Ltd  5-6 Brook Office Pa,4428.64, 20-Mar-2012
896,Revenue,CCHD,Bed purchasing - Under 65s PWLD - North,Residential Homes,Home From Home Care Ltd,9751.3, 20-Mar-2012
897,Revenue,CCHD,Bed Purchasing - Elderly - North,Nursing Homes,Horfield Care Limited,6005.9, 06-Mar-2012
898,Revenue,CCHD,Frenchay Hospital Purchasing,Nursing Homes,Horfield Care Limited,4199.12, 06-Mar-2012
899,Revenue,CCHD,Southmead Hospital Purchasing,Nursing Homes,Horfield Care Limited,2782.42, 06-Mar-2012
900,Revenue,CCHD,Supporting People Programme,Grants to Voluntary Bodies,Housing 21,526.11, 22-Mar-2012
901,Revenue,CCHD,Supporting People Programme,Grants to Voluntary Bodies,Housing 21,798.43, 22-Mar-2012
902,Revenue,CCHD,Home Care - Elderly - North,Private & Voluntary Home Care,Housing 21,35812.8, 09-Mar-2012
903,Revenue,CCHD,Home Care - Elderly - South,Private & Voluntary Home Care,Housing 21,22092.54, 01-Mar-2012
904,Revenue,CCHD,Home Care - Elderly - South,Private & Voluntary Home Care,Housing 21,22092.54, 30-Mar-2012
905,Revenue,CCHD,Minor Adaptations Service,Prop.Serv. General Repairs,Ideal Home Constructor,446, 29-Mar-2012
906,Revenue,CCHD,Private Sector Housing,Software Support & Maintenance,Iris Legal Solutions,1436, 06-Mar-2012
907,Revenue,CCHD,Bed Purchasing - Elderly - South,Residential Homes,Jah-Jireh Charity Homes,1241, 20-Mar-2012
908,Revenue,CCHD,Yate District Office,Office Supplies & Equipment,K N Office Supplies,731.25, 13-Mar-2012
909,Revenue,CCHD,Swift Dump Code,Residential Homes,Katherine House,8185.26, 07-Mar-2012
910,Revenue,CCHD,Bed Purchasing - Elderly - North,Residential Homes,Katherine House,9360.58, 20-Mar-2012
911,Revenue,CCHD,Southmead Hospital Purchasing,Residential Homes,Katherine House,2137.37, 20-Mar-2012
912,Revenue,CCHD,Tenancy Start Up Scheme,Other Supplies & Services,Individual,625, 14-Mar-2012
913,Revenue,CCHD,Bed purchasing - Under 65s PWLD - North,Residential Homes,Kelly House,3482.2, 20-Mar-2012
914,Revenue,CCHD,Bed purchasing - S28A Under 65 - South,Residential Homes,Kelly House,3366.04, 20-Mar-2012
915,Revenue,CCHD,Bed purchasing - Elderly MH - North,Residential Homes,Kenver House Residential Home,1496.44, 20-Mar-2012
916,Revenue,CCHD,Bed Purchasing - Elderly S117- North,Residential Homes,Kenver House Residential Home,1848, 20-Mar-2012
917,Revenue,CCHD,Frenchay Hospital Purchasing,Residential Homes,Kenver House Residential Home,1595.93, 20-Mar-2012
918,Revenue,CCHD,Frenchay Hospital Purchasing,Residential Homes,Kenver House Residential Home,911.96, 20-Mar-2012
919,Revenue,CCHD,Bed purchasing - Elderly MH - North,Residential Homes,Kenver House Residential Home,1358.84, 20-Mar-2012
920,Revenue,CCHD,Bed purchasing - Elderly MH - North,Residential Homes,Kenver House Residential Home,1621, 20-Mar-2012
921,Revenue,CCHD,Frenchay Hospital Purchasing,Residential Homes,Kenver House Residential Home,876.39, 20-Mar-2012
922,Revenue,CCHD,Bed Purchasing - Elderly S117- North,Residential Homes,Kenver House Residential Home,2772, 20-Mar-2012
923,Revenue,CCHD,Bed Purchasing - Elderly S117- North,Residential Homes,Kenver House Residential Home,1848, 20-Mar-2012
924,Revenue,CCHD,Bed purchasing - Elderly MH - North,Residential Homes,Kenver House Residential Home,1255.52, 20-Mar-2012
925,Revenue,CCHD,Frenchay Hospital Purchasing,Residential Homes,Kenver House Residential Home,1404.57, 20-Mar-2012
926,Revenue,CCHD,Bed Purchasing - Elderly S117- North,Residential Homes,Kenver House Residential Home,2033.89, 20-Mar-2012
927,Revenue,CCHD,Frenchay Hospital Purchasing,Residential Homes,Kenver House Residential Home,655.71, 20-Mar-2012
928,Revenue,CCHD,Southmead Hospital Purchasing,Residential Homes,Kenver House Residential Home,1510.32, 20-Mar-2012
929,Revenue,CCHD,Bed purchasing - Elderly MH - North,Residential Homes,Kenver House Residential Home,1621, 20-Mar-2012
930,Revenue,CCHD,Frenchay Hospital Purchasing,Residential Homes,Kenver House Residential Home,1621, 20-Mar-2012
931,Revenue,CCHD,Frenchay Hospital Purchasing,Residential Homes,Kenver House Residential Home,1105.4, 20-Mar-2012
932,Revenue,CCHD,Bed purchasing - Elderly MH - North,Residential Homes,Kenver House Residential Home,1178.52, 20-Mar-2012
933,Revenue,CCHD,Bed purchasing - Elderly MH - North,Residential Homes,Kenver House Residential Home,1210.44, 20-Mar-2012
934,Revenue,CCHD,Frenchay Hospital Purchasing,Residential Homes,Kenver House Residential Home,1409.04, 20-Mar-2012
935,Revenue,CCHD,Bed purchasing - Elderly MH - North,Residential Homes,Kenver House Residential Home,1174.16, 20-Mar-2012
936,Revenue,CCHD,Bed purchasing - Elderly MH - North,Residential Homes,Kenver House Residential Home,1387.64, 20-Mar-2012
937,Revenue,CCHD,Bed Purchasing - Elderly - South,Residential Homes,Kenver House Residential Home,1382.24, 20-Mar-2012
938,Revenue,CCHD,Frenchay Hospital Purchasing,Residential Homes,Kenver House Residential Home,1536.6, 20-Mar-2012
939,Revenue,CCHD,Bed purchasing - Elderly MH - North,Residential Homes,Kenver House Residential Home,1447.92, 20-Mar-2012
940,Revenue,CCHD,Bed purchasing - Elderly MH - North,Residential Homes,Kenver House Residential Home,1284.48, 20-Mar-2012
941,Revenue,CCHD,Supporting People Programme,Grants to Voluntary Bodies,Keyring Living Support Networks,2485.54, 22-Mar-2012
942,Revenue,CCHD,Supporting People Programme,Grants to Voluntary Bodies,Kingswood Young Homeless Project,15764.4, 29-Mar-2012
943,Revenue,CCHD,Under 65s PWLD - KH,Residential Homes,Kisimul Group,11078.72, 20-Mar-2012
944,Revenue,CCHD,Supporting People Programme,Grants to Voluntary Bodies,Knightstone Housing Association Limited,1718, 29-Mar-2012
945,Revenue,CCHD,Supporting People Programme,Grants to Voluntary Bodies,Knightstone Housing Association Limited,1968, 29-Mar-2012
946,Revenue,CCHD,Supporting People Programme,Grants to Voluntary Bodies,Knightstone Housing Association Limited,6717.92, 29-Mar-2012
947,Revenue,CCHD,Supporting People Programme,Grants to Voluntary Bodies,Knightstone Housing Association Limited,19485.84, 29-Mar-2012
948,Revenue,CCHD,Home Care - Elderly - North,Other Small Contracts,Kumari Care Limited,809.87, 13-Mar-2012
949,Revenue,CCHD,Home Care - Elderly - North,Other Small Contracts,Kumari Care Limited,809.87, 13-Mar-2012
950,Revenue,CCHD,Home Care - Elderly - North,Other Small Contracts,Kumari Care Limited,809.87, 13-Mar-2012
951,Revenue,CCHD,Home Care - Elderly - South,Other Small Contracts,Kumari Care Limited,4432.5, 08-Mar-2012
952,Revenue,CCHD,Home Care - Elderly - North,Other Small Contracts,Kumari Care Limited,812.05, 08-Mar-2012
953,Revenue,CCHD,Day Care - South,Private & Voluntary Day Care,Kumari Care Limited,270, 08-Mar-2012
954,Revenue,CCHD,Under 65s -MH  Home Care Purch,Other Small Contracts,Kumari Care Limited,142.5, 08-Mar-2012
955,Revenue,CCHD,Home care - Elderly MH - North,Other Small Contracts,Kumari Care Limited,37.5, 08-Mar-2012
956,Revenue,CCHD,PWLD Home Care - Under 65 - KH,Private & Voluntary Home Care,Kumari Care Limited,75, 08-Mar-2012
957,Revenue,CCHD,Home Care - Elderly - South,Other Small Contracts,Kumari Care Limited,4061.25, 08-Mar-2012
958,Revenue,CCHD,Home Care - Elderly - North,Other Small Contracts,Kumari Care Limited,862.68, 08-Mar-2012
959,Revenue,CCHD,Day Care - South,Private & Voluntary Day Care,Kumari Care Limited,105, 08-Mar-2012
960,Revenue,CCHD,Under 65s -MH  Home Care Purch,Other Small Contracts,Kumari Care Limited,147.24, 08-Mar-2012
961,Revenue,CCHD,Home care - Elderly MH - North,Other Small Contracts,Kumari Care Limited,37.5, 08-Mar-2012
962,Revenue,CCHD,PWLD Home Care - Under 65 - KH,Private & Voluntary Home Care,Kumari Care Limited,288.75, 08-Mar-2012
963,Revenue,CCHD,Home Care - Elderly - South,Other Small Contracts,Kumari Care Limited,4143.75, 08-Mar-2012
964,Revenue,CCHD,Home Care - Elderly - North,Other Small Contracts,Kumari Care Limited,862.68, 08-Mar-2012
965,Revenue,CCHD,Day Care - South,Private & Voluntary Day Care,Kumari Care Limited,266.25, 08-Mar-2012
966,Revenue,CCHD,Under 65s -MH  Home Care Purch,Other Small Contracts,Kumari Care Limited,150, 08-Mar-2012
967,Revenue,CCHD,Home care - Elderly MH - North,Other Small Contracts,Kumari Care Limited,37.5, 08-Mar-2012
968,Revenue,CCHD,PWLD Home Care - Under 65 - KH,Private & Voluntary Home Care,Kumari Care Limited,270, 08-Mar-2012
969,Revenue,CCHD,Home Care - Elderly - South,Other Small Contracts,Kumari Care Limited,4072.5, 13-Mar-2012
970,Revenue,CCHD,Home Care - Elderly - North,Other Small Contracts,Kumari Care Limited,862.68, 13-Mar-2012
971,Revenue,CCHD,Day Care - South,Private & Voluntary Day Care,Kumari Care Limited,285, 13-Mar-2012
972,Revenue,CCHD,Under 65s -MH  Home Care Purch,Other Small Contracts,Kumari Care Limited,142.5, 13-Mar-2012
973,Revenue,CCHD,Home care - Elderly MH - North,Other Small Contracts,Kumari Care Limited,37.5, 13-Mar-2012
974,Revenue,CCHD,PWLD Home Care - Under 65 - KH,Private & Voluntary Home Care,Kumari Care Limited,296.25, 13-Mar-2012
975,Revenue,CCHD,Home Care - Elderly - South,Other Small Contracts,Kumari Care Limited,4097.86, 13-Mar-2012
976,Revenue,CCHD,Home Care - Elderly - North,Other Small Contracts,Kumari Care Limited,863.15, 13-Mar-2012
977,Revenue,CCHD,Day Care - South,Private & Voluntary Day Care,Kumari Care Limited,225, 13-Mar-2012
978,Revenue,CCHD,Under 65s -MH  Home Care Purch,Other Small Contracts,Kumari Care Limited,138.75, 13-Mar-2012
979,Revenue,CCHD,Home care - Elderly MH - North,Other Small Contracts,Kumari Care Limited,37.5, 13-Mar-2012
980,Revenue,CCHD,PWLD Home Care - Under 65 - KH,Private & Voluntary Home Care,Kumari Care Limited,82.5, 13-Mar-2012
981,Revenue,CCHD,Private Sector Housing,Other Employee Expenses,L Sawicki,861.6, 13-Mar-2012
982,Revenue,CCHD,Bed purchasing - Phys Dis - North,Nursing Homes,Leonard Cheshire  National Account Centr,2588.28, 20-Mar-2012
983,Revenue,CCHD,Bed purchasing - Phys Dis - North,Residential Homes,Leonard Cheshire  National Account Centr,2303.36, 20-Mar-2012
984,Revenue,CCHD,Under 65s PWLD - KH,Residential Homes,Leonard Cheshire  National Account Centr,2894.92, 20-Mar-2012
985,Revenue,CCHD,Bed Purchasing - Elderly - North,Nursing Homes,Leonard Cheshire  National Account Centr,11043.41, 20-Mar-2012
986,Revenue,CCHD,Bed purchasing - Phys Dis - North,Residential Homes,Leonard Cheshire  National Account Centr,980.23, 20-Mar-2012
987,Revenue,CCHD,Bed purchasing - Phys Dis - North,Nursing Homes,Leonard Cheshire  National Account Centr,2693.2, 20-Mar-2012
988,Revenue,CCHD,Bed Purchasing - Elderly - North,Residential Homes,Leonard Cheshire  National Account Centr,3084.48, 20-Mar-2012
989,Revenue,CCHD,Bed purchasing - Under 65s PWLD - North,Residential Homes,Leonard Cheshire  National Account Centr,17196.72, 20-Mar-2012
990,Revenue,CCHD,Bed purchasing - Under 65s PWLD - North,Residential Homes,Leonard Cheshire  National Account Centr,17192.16, 20-Mar-2012
991,Revenue,CCHD,Bed Purchasing - Elderly - South,Residential Homes,Leonard Cheshire  National Account Centr,8672.32, 20-Mar-2012
992,Revenue,CCHD,Bed purchasing - Phys Dis - North,Nursing Homes,Leonard Cheshire  National Account Centr,2777.24, 20-Mar-2012
993,Revenue,CCHD,Bed purchasing - Phys Dis - North,Residential Homes,Leonard Cheshire  National Account Centr,2837.08, 20-Mar-2012
994,Revenue,CCHD,Bed purchasing - Phys Dis - South,Nursing Homes,Leonard Cheshire  National Account Centr,6280.8, 20-Mar-2012
995,Revenue,CCHD,Bed purchasing - Phys Dis - South,Nursing Homes,Leonard Cheshire  National Account Centr,11913.12, 20-Mar-2012
996,Revenue,CCHD,Bed purchasing - Phys Dis - North,Nursing Homes,Leonard Cheshire  National Account Centr,10756.96, 20-Mar-2012
997,Revenue,CCHD,Southmead Hospital Purchasing,Nursing Homes,Leonard Cheshire  National Account Centr,2940.48, 20-Mar-2012
998,Revenue,CCHD,South Glos Users in all other LA Homes,Nursing Homes,Leonard Cheshire  National Account Centr,598.4, 20-Mar-2012
999,Revenue,CCHD,Bed purchasing - Phys Dis - North,Nursing Homes,Leonard Cheshire  National Account Centr,3235.6, 20-Mar-2012
1000,Revenue,CCHD,Bed Purchasing - Elderly - North,Nursing Homes,Leonard Cheshire  National Account Centr,8529.68, 20-Mar-2012
1001,Revenue,CCHD,Bed Purchasing - LD S28A- Over 65- South,Residential Homes,Leonard Cheshire  National Account Centr,5682.88, 20-Mar-2012
1002,Revenue,CCHD,Supported Living - KH,Private & Voluntary Home Care,Lifeways Community Care (Gloucester) Ltd,11373, 09-Mar-2012
1003,Revenue,CCHD,Supported Living - KH,Private & Voluntary Home Care,Lifeways Community Care (Gloucester) Ltd,11373, 09-Mar-2012
1004,Revenue,CCHD,Bed Purchasing - Elderly - South,Residential Homes,Little Croft,1238.96, 20-Mar-2012
1005,Revenue,CCHD,Bed Purchasing - Elderly - South,Residential Homes,Little Croft,1229, 20-Mar-2012
1006,Revenue,CCHD,Bed Purchasing - Elderly - South,Residential Homes,Little Croft,1396, 20-Mar-2012
1007,Revenue,CCHD,Bed Purchasing - Elderly - South,Residential Homes,Little Croft,1808, 20-Mar-2012
1008,Revenue,CCHD,Bed Purchasing - Elderly - South,Residential Homes,Little Croft,1242.8, 20-Mar-2012
1009,Revenue,CCHD,Southmead Hospital Purchasing,Residential Homes,Little Croft,738.56, 20-Mar-2012
1010,Revenue,CCHD,Southmead Hospital Purchasing,Residential Homes,Little Croft,1199.04, 20-Mar-2012
1011,Revenue,CCHD,Bed purchasing - Elderly MH - North,Residential Homes,Little Croft,2091.2, 20-Mar-2012
1012,Revenue,CCHD,Southmead Hospital Purchasing,Residential Homes,Little Croft,1232.16, 20-Mar-2012
1013,Revenue,CCHD,Bed purchasing - Under 65s PWLD - North,Residential Homes,Littlecroft Residential Homes  Longcroft,6427.88, 20-Mar-2012
1014,Revenue,CCHD,Supported Living - KH,Private & Voluntary Home Care,Lloyds TSB Commercial Finance Limited,5215.73, 19-Mar-2012
1015,Revenue,CCHD,Supported Living - PS,Private & Voluntary Home Care,Lloyds TSB Commercial Finance Limited,3812.34, 06-Mar-2012
1016,Revenue,CCHD,Supported Living - PS,Private & Voluntary Home Care,Lloyds TSB Commercial Finance Limited,3869.54, 07-Mar-2012
1017,Revenue,CCHD,Supported Living - KD,Private & Voluntary Home Care,Lloyds TSB Commercial Finance Limited,3628.81, 16-Mar-2012
1018,Revenue,CCHD,Supported Living - KD,Private & Voluntary Home Care,Lloyds TSB Commercial Finance Limited,3528.82, 16-Mar-2012
1019,Revenue,CCHD,Supported Living - PS,Private & Voluntary Home Care,Lloyds TSB Commercial Finance Limited,3627.53, 06-Mar-2012
1020,Revenue,CCHD,Purchase of Non-Res Care - KH,Private & Voluntary Day Care,Lloyds TSB Commercial Finance Limited,3043.5, 23-Mar-2012
1021,Revenue,CCHD,Supported Living - KD,Private & Voluntary Home Care,Lloyds TSB Commercial Finance Limited,3214.6, 16-Mar-2012
1022,Revenue,CCHD,Supported Living - KH,Private & Voluntary Home Care,Lloyds TSB Commercial Finance Limited,502.4, 19-Mar-2012
1023,Revenue,CCHD,Under 65s PWLD - KH,Residential Homes,Longton Court,9361.2, 20-Mar-2012
1024,Revenue,CCHD,Under 65s PWLD - KH,Residential Homes,Lufton Manor College,2767.78, 20-Mar-2012
1025,Revenue,CCHD,Southmead Hospital Purchasing,Nursing Homes,Majestic 3 Limited,1017.44, 20-Mar-2012
1026,Revenue,CCHD,Bed Purchasing - Elderly - South,Residential Homes,Manor Cottage,738.68, 20-Mar-2012
1027,Revenue,CCHD,Bed Purchasing - Elderly - South,Residential Homes,Manor Cottage,1421.44, 20-Mar-2012
1028,Revenue,CCHD,Southmead Hospital Purchasing,Residential Homes,Manor Cottage,1667.44, 20-Mar-2012
1029,Revenue,CCHD,Bed Purchasing - Elderly - South,Residential Homes,Manor Cottage,1296.68, 20-Mar-2012
1030,Revenue,CCHD,Supporting People Programme,Grants to Voluntary Bodies,Maples Community Housing Limited,514.55, 29-Mar-2012
1031,Revenue,CCHD,Bed Purchasing - Under 65s PWLD - South,Residential Homes,Marsden Healthcare Limited,865.12, 16-Mar-2012
1032,Revenue,CCHD,Bed purchasing - Elderly PWLD - South,Residential Homes,Marsden Healthcare Limited,3134.56, 16-Mar-2012
1033,Revenue,CCHD,Elderly PWLD - KH,Residential Homes,Marsden Healthcare Limited,1481.4, 16-Mar-2012
1034,Revenue,CCHD,Bed purchasing - Elderly MH - North,Nursing Homes,Meadow Care Home,1452.96, 20-Mar-2012
1035,Revenue,CCHD,Home Care - Elderly - South,Private & Voluntary Home Care,Mears Care,47442.58, 28-Mar-2012
1036,Revenue,CCHD,Home Care - Elderly - South,Other Small Contracts,Mears Care,442.8, 13-Mar-2012
1037,Revenue,CCHD,Home Care - Elderly - North,Other Small Contracts,Mears Care,6364.8, 13-Mar-2012
1038,Revenue,CCHD,Day Care - South,Private & Voluntary Day Care,Mears Care,208.8, 13-Mar-2012
1039,Revenue,CCHD,Day Care - North,Private & Voluntary Day Care,Mears Care,266.4, 13-Mar-2012
1040,Revenue,CCHD,Under 65s -MH  Home Care Purch,Other Small Contracts,Mears Care,108, 13-Mar-2012
1041,Revenue,CCHD,Home care - Elderly MH - North,Other Small Contracts,Mears Care,770.4, 13-Mar-2012
1042,Revenue,CCHD,Elderly MH Day Care North,Private & Voluntary Day Care,Mears Care,95.2, 13-Mar-2012
1043,Revenue,CCHD,Home Care - Elderly LD - KH,Private & Voluntary Home Care,Mears Care,50.4, 13-Mar-2012
1044,Revenue,CCHD,Home Care - Elderly - South,Other Small Contracts,Mears Care,594, 13-Mar-2012
1045,Revenue,CCHD,Home Care - Elderly - North,Other Small Contracts,Mears Care,7041.6, 13-Mar-2012
1046,Revenue,CCHD,Day Care - South,Private & Voluntary Day Care,Mears Care,230.4, 13-Mar-2012
1047,Revenue,CCHD,Day Care - North,Private & Voluntary Day Care,Mears Care,288, 13-Mar-2012
1048,Revenue,CCHD,Under 65s -MH  Home Care Purch,Other Small Contracts,Mears Care,108, 13-Mar-2012
1049,Revenue,CCHD,Home care - Elderly MH - North,Other Small Contracts,Mears Care,748.8, 13-Mar-2012
1050,Revenue,CCHD,Elderly MH Day Care North,Private & Voluntary Day Care,Mears Care,99.9, 13-Mar-2012
1051,Revenue,CCHD,Home Care - Elderly LD - KH,Private & Voluntary Home Care,Mears Care,50.4, 13-Mar-2012
1052,Revenue,CCHD,Home Care - Elderly - South,Other Small Contracts,Mears Care,590.4, 19-Mar-2012
1053,Revenue,CCHD,Home Care - Elderly - North,Other Small Contracts,Mears Care,6987.6, 19-Mar-2012
1054,Revenue,CCHD,Day Care - South,Private & Voluntary Day Care,Mears Care,219.6, 19-Mar-2012
1055,Revenue,CCHD,Day Care - North,Private & Voluntary Day Care,Mears Care,309.6, 19-Mar-2012
1056,Revenue,CCHD,Under 65s -MH  Home Care Purch,Other Small Contracts,Mears Care,108, 19-Mar-2012
1057,Revenue,CCHD,Home care - Elderly MH - North,Other Small Contracts,Mears Care,741.6, 19-Mar-2012
1058,Revenue,CCHD,Elderly MH Day Care North,Private & Voluntary Day Care,Mears Care,95.2, 19-Mar-2012
1059,Revenue,CCHD,Home Care - Elderly LD - KH,Private & Voluntary Home Care,Mears Care,50.4, 19-Mar-2012
1060,Revenue,CCHD,Kingswood Centre - Maples Suite,Operational Equipment,Medaco,1069, 23-Mar-2012
1061,Revenue,CCHD,Downend Day Centre,Cleaning & Domestic Supplies,Medaco,532, 28-Mar-2012
1062,Revenue,CCHD,Kingswood Centre - Maples Suite,Operational Equipment,Medaco,438, 28-Mar-2012
1063,Revenue,CCHD,Home Care - Elderly - South,Other Small Contracts,Medacs Home Care,54.4, 29-Mar-2012
1064,Revenue,CCHD,Home Care - Elderly - North,Other Small Contracts,Medacs Home Care,941.8, 29-Mar-2012
1065,Revenue,CCHD,Home care - Elderly MH - North,Other Small Contracts,Medacs Home Care,108.8, 29-Mar-2012
1066,Revenue,CCHD,Elderly MH Day Care North,Private & Voluntary Day Care,Medacs Home Care,34, 29-Mar-2012
1067,Revenue,CCHD,Home Care - Elderly - South,Other Small Contracts,Medacs Home Care,54.4, 29-Mar-2012
1068,Revenue,CCHD,Home Care - Elderly - North,Other Small Contracts,Medacs Home Care,775.2, 29-Mar-2012
1069,Revenue,CCHD,Home care - Elderly MH - North,Other Small Contracts,Medacs Home Care,108.8, 29-Mar-2012
1070,Revenue,CCHD,Elderly MH Day Care North,Private & Voluntary Day Care,Medacs Home Care,74.8, 29-Mar-2012
1071,Revenue,CCHD,Home Care - Elderly - South,Other Small Contracts,Medacs Home Care,54.4, 29-Mar-2012
1072,Revenue,CCHD,Home Care - Elderly - North,Other Small Contracts,Medacs Home Care,829.6, 29-Mar-2012
1073,Revenue,CCHD,Home care - Elderly MH - North,Other Small Contracts,Medacs Home Care,105.4, 29-Mar-2012
1074,Revenue,CCHD,Elderly MH Day Care North,Private & Voluntary Day Care,Medacs Home Care,68, 29-Mar-2012
1075,Revenue,CCHD,Home Care - Elderly - South,Other Small Contracts,Medico Nursing & Homecare Ltd,2178.75, 14-Mar-2012
1076,Revenue,CCHD,Home Care - Elderly - North,Other Small Contracts,Medico Nursing & Homecare Ltd,7456.66, 14-Mar-2012
1077,Revenue,CCHD,Day Care - South,Private & Voluntary Day Care,Medico Nursing & Homecare Ltd,33.2, 14-Mar-2012
1078,Revenue,CCHD,Day Care - North,Private & Voluntary Day Care,Medico Nursing & Homecare Ltd,630.8, 14-Mar-2012
1079,Revenue,CCHD,Home care - Elderly MH - North,Other Small Contracts,Medico Nursing & Homecare Ltd,1033.35, 14-Mar-2012
1080,Revenue,CCHD,Elderly MH Day Care North,Private & Voluntary Day Care,Medico Nursing & Homecare Ltd,149.4, 14-Mar-2012
1081,Revenue,CCHD,Home Care - LD Under 65 - South,Private & Voluntary Home Care,Medico Nursing & Homecare Ltd,282.2, 14-Mar-2012
1082,Revenue,CCHD,PWLD Home Care - Under 65 - KH,Private & Voluntary Home Care,Medico Nursing & Homecare Ltd,659.85, 14-Mar-2012
1083,Revenue,CCHD,Home Care - Elderly - South,Other Small Contracts,Medico Nursing & Homecare Ltd,2128.95, 30-Mar-2012
1084,Revenue,CCHD,Home Care - Elderly - North,Other Small Contracts,Medico Nursing & Homecare Ltd,7831.82, 30-Mar-2012
1085,Revenue,CCHD,Day Care - South,Private & Voluntary Day Care,Medico Nursing & Homecare Ltd,83, 30-Mar-2012
1086,Revenue,CCHD,Day Care - North,Private & Voluntary Day Care,Medico Nursing & Homecare Ltd,717.95, 30-Mar-2012
1087,Revenue,CCHD,Home care - Elderly MH - North,Other Small Contracts,Medico Nursing & Homecare Ltd,1029.2, 30-Mar-2012
1088,Revenue,CCHD,Elderly MH Day Care North,Private & Voluntary Day Care,Medico Nursing & Homecare Ltd,157.7, 30-Mar-2012
1089,Revenue,CCHD,Home Care - LD Under 65 - South,Private & Voluntary Home Care,Medico Nursing & Homecare Ltd,261.45, 30-Mar-2012
1090,Revenue,CCHD,Home Care - LD Under 65 - North,Private & Voluntary Home Care,Medico Nursing & Homecare Ltd,124.5, 30-Mar-2012
1091,Revenue,CCHD,PWLD Home Care - Under 65 - KH,Private & Voluntary Home Care,Medico Nursing & Homecare Ltd,722.1, 30-Mar-2012
1092,Revenue,CCHD,Under 65s PWLD - KH,Residential Homes,Mencap,2173.8, 20-Mar-2012
1093,Revenue,CCHD,Supported Living (S28a) South,Private & Voluntary Home Care,Mencap - PS North,3689, 29-Mar-2012
1094,Revenue,CCHD,Supported Living (S28a) South,Private & Voluntary Home Care,Mencap - PS North,3689, 29-Mar-2012
1095,Revenue,CCHD,Supported Living (S28a) South,Private & Voluntary Home Care,Mencap - PS North,3689, 29-Mar-2012
1096,Revenue,CCHD,Supported Living (S28a) South,Private & Voluntary Home Care,Mencap - PS North,3689, 29-Mar-2012
1097,Revenue,CCHD,Supporting People Programme,Grants to Voluntary Bodies,Merlin Housing Society,517.79, 29-Mar-2012
1098,Revenue,CCHD,Supporting People Programme,Grants to Voluntary Bodies,Merlin Housing Society,8876.68, 29-Mar-2012
1099,Revenue,CCHD,Supporting People Programme,Grants to Voluntary Bodies,Merlin Housing Society,13808.8, 29-Mar-2012
1100,Revenue,CCHD,Preventative Technology Grant,Other Supplies & Services,Merlin Housing Society,15567, 30-Mar-2012
1101,Revenue,CCHD,Intermediate Care Accommodation,Other Supplies & Services,Merlin Housing Society,925.72, 16-Mar-2012
1102,Revenue,CCHD,Alexandra Way,Prop.Serv. General Repairs,Merlin Housing Society,250, 26-Mar-2012
1103,Revenue,CCHD,Intermediate Care Accommodation,Other Supplies & Services,Merlin Housing Society,925.72, 16-Mar-2012
1104,Revenue,CCHD,Home Care - Elderly - South,Other Small Contracts,Milestones Outreach Dementia Services,543.75, 12-Mar-2012
1105,Revenue,CCHD,Day Care - South,Private & Voluntary Day Care,Milestones Outreach Dementia Services,45, 12-Mar-2012
1106,Revenue,CCHD,Day Care - North,Private & Voluntary Day Care,Milestones Outreach Dementia Services,60, 12-Mar-2012
1107,Revenue,CCHD,Home care - Elderly MH - North,Other Small Contracts,Milestones Outreach Dementia Services,1005, 12-Mar-2012
1108,Revenue,CCHD,Elderly MH Day Care North,Private & Voluntary Day Care,Milestones Outreach Dementia Services,742.5, 12-Mar-2012
1109,Revenue,CCHD,Home Care - Elderly - South,Other Small Contracts,Milestones Outreach Dementia Services,543.75, 05-Mar-2012
1110,Revenue,CCHD,Home Care - Elderly - North,Other Small Contracts,Milestones Outreach Dementia Services,82.5, 05-Mar-2012
1111,Revenue,CCHD,Day Care - South,Private & Voluntary Day Care,Milestones Outreach Dementia Services,45, 05-Mar-2012
1112,Revenue,CCHD,Day Care - North,Private & Voluntary Day Care,Milestones Outreach Dementia Services,60, 05-Mar-2012
1113,Revenue,CCHD,Home care - Elderly MH - North,Other Small Contracts,Milestones Outreach Dementia Services,990, 05-Mar-2012
1114,Revenue,CCHD,Elderly MH Day Care North,Private & Voluntary Day Care,Milestones Outreach Dementia Services,802.5, 05-Mar-2012
1115,Revenue,CCHD,Home Care - Elderly - South,Other Small Contracts,Milestones Outreach Dementia Services,547.5, 12-Mar-2012
1116,Revenue,CCHD,Home Care - Elderly - North,Other Small Contracts,Milestones Outreach Dementia Services,30, 12-Mar-2012
1117,Revenue,CCHD,Day Care - South,Private & Voluntary Day Care,Milestones Outreach Dementia Services,45, 12-Mar-2012
1118,Revenue,CCHD,Day Care - North,Private & Voluntary Day Care,Milestones Outreach Dementia Services,60, 12-Mar-2012
1119,Revenue,CCHD,Home care - Elderly MH - North,Other Small Contracts,Milestones Outreach Dementia Services,907.5, 12-Mar-2012
1120,Revenue,CCHD,Elderly MH Day Care North,Private & Voluntary Day Care,Milestones Outreach Dementia Services,746.25, 12-Mar-2012
1121,Revenue,CCHD,Home Care - Elderly - South,Other Small Contracts,Milestones Outreach Dementia Services,487.5, 12-Mar-2012
1122,Revenue,CCHD,Day Care - South,Private & Voluntary Day Care,Milestones Outreach Dementia Services,45, 12-Mar-2012
1123,Revenue,CCHD,Day Care - North,Private & Voluntary Day Care,Milestones Outreach Dementia Services,60, 12-Mar-2012
1124,Revenue,CCHD,Home care - Elderly MH - North,Other Small Contracts,Milestones Outreach Dementia Services,791.25, 12-Mar-2012
1125,Revenue,CCHD,Elderly MH Day Care North,Private & Voluntary Day Care,Milestones Outreach Dementia Services,836.25, 12-Mar-2012
1126,Revenue,CCHD,Home Care - Elderly - South,Other Small Contracts,Milestones Outreach Dementia Services,543.75, 05-Mar-2012
1127,Revenue,CCHD,Day Care - South,Private & Voluntary Day Care,Milestones Outreach Dementia Services,45, 05-Mar-2012
1128,Revenue,CCHD,Home care - Elderly MH - North,Other Small Contracts,Milestones Outreach Dementia Services,888.75, 05-Mar-2012
1129,Revenue,CCHD,Elderly MH Day Care North,Private & Voluntary Day Care,Milestones Outreach Dementia Services,783.75, 05-Mar-2012
1130,Revenue,CCHD,Supported Living - PS,Private & Voluntary Home Care,Milestones Trust,649.77, 07-Mar-2012
1131,Revenue,CCHD,Home Care - Elderly - North,Other Small Contracts,Milestones Trust,936.48, 13-Mar-2012
1132,Revenue,CCHD,Supported Living - PS,Private & Voluntary Home Care,Milestones Trust,541.48, 12-Mar-2012
1133,Revenue,CCHD,Supported Living (S28a) South,Private & Voluntary Home Care,Milestones Trust,5179.2, 22-Mar-2012
1134,Revenue,CCHD,Elderly MH Day Care North,Private & Voluntary Day Care,Milestones Trust,680, 01-Mar-2012
1135,Revenue,CCHD,Supported Living - PS,Private & Voluntary Home Care,Milestones Trust,779.2, 14-Mar-2012
1136,Revenue,CCHD,Elderly MH Day Care North,Private & Voluntary Day Care,Milestones Trust,569.67, 05-Mar-2012
1137,Revenue,CCHD,Younger MH non-res purchasing,Private & Voluntary Day Care,Milestones Trust,762.03, 06-Mar-2012
1138,Revenue,CCHD,Section 117 Placements MH Younger,Private & Voluntary Day Care,Milestones Trust,1315.74, 05-Mar-2012
1139,Revenue,CCHD,Younger MH non-res purchasing,Private & Voluntary Day Care,Milestones Trust,793.82, 05-Mar-2012
1140,Revenue,CCHD,Bed Purchasing - Elderly S117- North,Private & Voluntary Day Care,Milestones Trust,559.93, 05-Mar-2012
1141,Revenue,CCHD,Supported Living - PS,Private & Voluntary Home Care,Milestones Trust,1273.81, 14-Mar-2012
1142,Revenue,CCHD,Supported Living - PS,Private & Voluntary Home Care,Milestones Trust,1095.64, 14-Mar-2012
1143,Revenue,CCHD,Supported Living - PS,Private & Voluntary Home Care,Milestones Trust,1021.4, 14-Mar-2012
1144,Revenue,CCHD,Supported Living - PS,Private & Voluntary Home Care,Milestones Trust,919.08, 19-Mar-2012
1145,Revenue,CCHD,Supported Living - KH,Private & Voluntary Home Care,Milestones Trust,1556.53, 13-Mar-2012
1146,Revenue,CCHD,Supported Living - KD,Private & Voluntary Home Care,Milestones Trust,5612.37, 01-Mar-2012
1147,Revenue,CCHD,Elderly MH Day Care North,Private & Voluntary Day Care,Milestones Trust,697.32, 16-Mar-2012
1148,Revenue,CCHD,Supported Living - PS,Private & Voluntary Home Care,Milestones Trust,592.73, 14-Mar-2012
1149,Revenue,CCHD,Elderly MH Day Care North,Private & Voluntary Day Care,Milestones Trust,711.79, 16-Mar-2012
1150,Revenue,CCHD,Bed Purchasing - Elderly S117- North,Private & Voluntary Day Care,Milestones Trust,861.54, 16-Mar-2012
1151,Revenue,CCHD,Younger MH non-res purchasing,Private & Voluntary Day Care,Milestones Trust,895.5, 16-Mar-2012
1152,Revenue,CCHD,Supported Living - KD,Private & Voluntary Home Care,Milestones Trust,2019.15, 08-Mar-2012
1153,Revenue,CCHD,Supported Living - KH,Private & Voluntary Home Care,Milestones Trust,882.99, 15-Mar-2012
1154,Revenue,CCHD,Purchase of Non-Res Care - KH,Private & Voluntary Day Care,Milestones Trust,1615.75, 15-Mar-2012
1155,Revenue,CCHD,Purchase of Non-Res Care - PS,Private & Voluntary Day Care,Milestones Trust,1250.99, 20-Mar-2012
1156,Revenue,CCHD,Purchase of Non-Res Care - PS,Private & Voluntary Day Care,Milestones Trust,1693.29, 20-Mar-2012
1157,Revenue,CCHD,Purchase of Non-Res Care - KH,Private & Voluntary Day Care,Milestones Trust,1472.46, 15-Mar-2012
1158,Revenue,CCHD,Purchase of Non-Res Care - KH,Private & Voluntary Day Care,Milestones Trust,1423.92, 12-Mar-2012
1159,Revenue,CCHD,Purchase of Non-Res Care - KH,Private & Voluntary Day Care,Milestones Trust,1403.73, 15-Mar-2012
1160,Revenue,CCHD,Purchase of Non-Res Care - KH,Private & Voluntary Day Care,Milestones Trust,1634.74, 15-Mar-2012
1161,Revenue,CCHD,Bed Purchasing - Under 65s PWLD - South,Residential Homes,Miller Farm,3305, 20-Mar-2012
1162,Revenue,CCHD,Bed Purchasing - Elderly S117- North,Nursing Homes,Mimosa Healthcare Holdings Ltd,1888, 20-Mar-2012
1163,Revenue,CCHD,Under 65s PWLD - KH,Residential Homes,Mmcg  Westcourt,12882.59, 20-Mar-2012
1164,Revenue,CCHD,Bed Purchasing - Elderly - North,Nursing Homes,Mortimer House Nursing Home,2552.88, 16-Mar-2012
1165,Revenue,CCHD,Bed Purchasing - LD S28A- Over 65- South,Nursing Homes,Mortimer House Nursing Home,2521.56, 16-Mar-2012
1166,Revenue,CCHD,Bed Purchasing - LD S28A- Over 65- South,Nursing Homes,Mortimer House Nursing Home,2953, 16-Mar-2012
1167,Revenue,CCHD,Bed Purchasing - LD S28A- Over 65- South,Nursing Homes,Mortimer House Nursing Home,2521.56, 16-Mar-2012
1168,Revenue,CCHD,Bed Purchasing - LD S28A- Over 65- South,Nursing Homes,Mortimer House Nursing Home,3227.8, 16-Mar-2012
1169,Revenue,CCHD,Bed purchasing - Elderly PWLD - South,Nursing Homes,Mortimer House Nursing Home,2910.2, 16-Mar-2012
1170,Revenue,CCHD,Bed Purchasing - LD S28A- Over 65- South,Nursing Homes,Mortimer House Nursing Home,3233, 16-Mar-2012
1171,Revenue,CCHD,Southmead Hospital Purchasing,Residential Homes,Mostyn Lodge Residential Home,1253, 20-Mar-2012
1172,Revenue,CCHD,Bed Purchasing - Elderly S117- North,Residential Homes,Mostyn Lodge Residential Home,1848, 20-Mar-2012
1173,Revenue,CCHD,Older People's Commissioned Se,Grants to Voluntary Bodies,Mothers for Mothers,2135.25, 30-Mar-2012
1174,Revenue,CCHD,Social Lettings Agency,Other Supplies & Services,Individual,950, 08-Mar-2012
1175,Revenue,CCHD,Bed purchasing - Elderly MH - North,Residential Homes,Mr Gordon Heddington,2118.5, 16-Mar-2012
1176,Revenue,CCHD,Under 65s PWLD - KH,Residential Homes,Mr J Davis & Mrs S Davis,1840, 27-Mar-2012
1177,Revenue,CCHD,Social Lettings Agency,Other Supplies & Services,Individual,565, 13-Mar-2012
1178,Revenue,CCHD,Management & Support costs,Other Supplies & Services,Mr John Livesey,1000, 06-Mar-2012
1179,Revenue,CCHD,Tenancy Start Up Scheme,Other Supplies & Services,Individual,625, 14-Mar-2012
1180,Revenue,CCHD,Social Lettings Agency,Other Supplies & Services,Individual,632.81, 02-Mar-2012
1181,Revenue,CCHD,Social Lettings Agency,Other Supplies & Services,Individual,632.81, 23-Mar-2012
1182,Revenue,CCHD,Social Lettings Agency,Other Supplies & Services,Individual,551.44, 13-Mar-2012
1183,Revenue,CCHD,Social Lettings Agency,Other Supplies & Services,Individual,632.81, 20-Mar-2012
1184,Revenue,CCHD,Tenancy Start Up Scheme,Other Supplies & Services,Individual,625, 06-Mar-2012
1185,Revenue,CCHD,Supported Living - KH,Private & Voluntary Home Care,Mrs B Kimber,804.02, 05-Mar-2012
1186,Revenue,CCHD,Supported Living - KH,Private & Voluntary Home Care,Mrs B Kimber,1300.85, 05-Mar-2012
1187,Revenue,CCHD,Elderly MH Day Care North,Private & Voluntary Day Care,Mrs B Kimber,690.46, 01-Mar-2012
1188,Revenue,CCHD,Elderly MH Day Care North,Private & Voluntary Day Care,Mrs B Kimber,508.76, 01-Mar-2012
1189,Revenue,CCHD,Elderly MH Day Care North,Private & Voluntary Day Care,Mrs B Kimber,654.12, 01-Mar-2012
1190,Revenue,CCHD,Day Care - South,Private & Voluntary Day Care,Mrs B Kimber,853.97, 02-Mar-2012
1191,Revenue,CCHD,Supported Living - KH,Private & Voluntary Home Care,Mrs B Kimber,867.62, 29-Mar-2012
1192,Revenue,CCHD,Supported Living - KH,Private & Voluntary Home Care,Mrs B Kimber,1162.71, 22-Mar-2012
1193,Revenue,CCHD,Day Care - South,Private & Voluntary Day Care,Mrs B Kimber,661.92, 20-Mar-2012
1194,Revenue,CCHD,Supported Living - KD,Private & Voluntary Home Care,Mrs B Kimber,1114.56, 16-Mar-2012
1195,Revenue,CCHD,Day Care - North,Private & Voluntary Day Care,Mrs B Kimber,534.44, 21-Mar-2012
1196,Revenue,CCHD,Day Care - North,Private & Voluntary Day Care,Mrs B Kimber,1194.68, 23-Mar-2012
1197,Revenue,CCHD,Home Care - Elderly - South,Other Small Contracts,Mrs B Kimber - Stepping Stones,3396.28, 13-Mar-2012
1198,Revenue,CCHD,Home Care - Elderly - North,Other Small Contracts,Mrs B Kimber - Stepping Stones,2895.9, 13-Mar-2012
1199,Revenue,CCHD,Day Care - South,Private & Voluntary Day Care,Mrs B Kimber - Stepping Stones,705.26, 13-Mar-2012
1200,Revenue,CCHD,Day Care - North,Private & Voluntary Day Care,Mrs B Kimber - Stepping Stones,224.58, 13-Mar-2012
1201,Revenue,CCHD,Under 65s -MH  Home Care Purch,Other Small Contracts,Mrs B Kimber - Stepping Stones,179.75, 13-Mar-2012
1202,Revenue,CCHD,Home care - Elderly MH - North,Other Small Contracts,Mrs B Kimber - Stepping Stones,346.72, 13-Mar-2012
1203,Revenue,CCHD,Elderly MH Day Care North,Private & Voluntary Day Care,Mrs B Kimber - Stepping Stones,413.7, 13-Mar-2012
1204,Revenue,CCHD,Supported Living - KD,Private & Voluntary Home Care,Mrs B Kimber - Stepping Stones,764.36, 13-Mar-2012
1205,Revenue,CCHD,Home Care - LD Under 65 - South,Private & Voluntary Home Care,Mrs B Kimber - Stepping Stones,78.8, 13-Mar-2012
1206,Revenue,CCHD,Home Care - LD Under 65 - North,Private & Voluntary Home Care,Mrs B Kimber - Stepping Stones,47.28, 13-Mar-2012
1207,Revenue,CCHD,PWLD Home Care - Under 65 - KH,Private & Voluntary Home Care,Mrs B Kimber - Stepping Stones,90.62, 13-Mar-2012
1208,Revenue,CCHD,Home Care - Elderly LD - North,Private & Voluntary Home Care,Mrs B Kimber - Stepping Stones,941.66, 13-Mar-2012
1209,Revenue,CCHD,Social Lettings Agency,Other Supplies & Services,Individual,632.81, 08-Mar-2012
1210,Revenue,CCHD,Social Lettings Agency,Other Supplies & Services,Individual,565, 13-Mar-2012
1211,Revenue,CCHD,Tenancy Start Up Scheme,Other Supplies & Services,Individual,610, 13-Mar-2012
1212,Revenue,CCHD,Tenancy Start Up Scheme,Other Supplies & Services,Individual,625, 27-Mar-2012
1213,Revenue,CCHD,Purchase of Non-Res Care - KD,Private & Voluntary Day Care,Mrs W Thompson,554, 08-Mar-2012
1214,Revenue,CCHD,Purchase of Non-Res Care - KD,Private & Voluntary Day Care,Mrs W Thompson,1460, 08-Mar-2012
1215,Revenue,CCHD,Tenancy Start Up Scheme,Other Supplies & Services,Individual,1300, 12-Mar-2012
1216,Revenue,CCHD,Home Care - General,Uniforms & Clothing,Muzzell Healthcare,918, 08-Mar-2012
1217,Revenue,CCHD,Home Care - General,Uniforms & Clothing,Muzzell Healthcare,780, 13-Mar-2012
1218,Revenue,CCHD,Younger MH non-res purchasing,Private & Voluntary Day Care,NAS Services Limited,1324.21, 16-Mar-2012
1219,Revenue,CCHD,Younger MH non-res purchasing,Private & Voluntary Day Care,NAS Services Limited,508.95, 16-Mar-2012
1220,Revenue,CCHD,Younger MH non-res purchasing,Private & Voluntary Day Care,NAS Services Limited,1394.9, 23-Mar-2012
1221,Revenue,CCHD,Community Support ACM - South,Preventative Assistance,National Star College FDY Limited,5367.33, 13-Mar-2012
1222,Revenue,CCHD,Community Support ACM - South,Preventative Assistance,National Star College FDY Limited,1214.3, 14-Mar-2012
1223,Revenue,CCHD,Home Care - Elderly - South,Other Small Contracts,Network Health & Social Care,529.2, 08-Mar-2012
1224,Revenue,CCHD,Home Care - Elderly - North,Other Small Contracts,Network Health & Social Care,2256.66, 08-Mar-2012
1225,Revenue,CCHD,Home Care - Elderly - South,Other Small Contracts,Network Health & Social Care,929.88, 08-Mar-2012
1226,Revenue,CCHD,Home Care - Elderly - North,Other Small Contracts,Network Health & Social Care,2279.34, 08-Mar-2012
1227,Revenue,CCHD,Home Care - Elderly - South,Other Small Contracts,Network Health & Social Care,918.54, 08-Mar-2012
1228,Revenue,CCHD,Home Care - Elderly - North,Other Small Contracts,Network Health & Social Care,2313.36, 08-Mar-2012
1229,Revenue,CCHD,Bed Purchasing - Elderly - North,Residential Homes,Newton House,850.48, 20-Mar-2012
1230,Revenue,CCHD,Supporting People Programme,Grants to Voluntary Bodies,Next Link,11506, 15-Mar-2012
1231,Revenue,CCHD,Under 65s PWLD - KH,Residential Homes,Nightingale Nursing Home,3037.08, 20-Mar-2012
1232,Revenue,CCHD,Delayed Transfers of Care Gran,Other Supplies & Services,North Bristol NHS Trust,2100, 09-Mar-2012
1233,Revenue,CCHD,South Glos Users in South Glos Homes,Nursing Homes,North Somerset Council,791.96, 13-Mar-2012
1234,Revenue,CCHD,Purchase of RAC places,Other L.A.'s - General,North Somerset Council,5501.35, 30-Mar-2012
1235,Revenue,CCHD,Cambrian Green Day Service,Furniture & Fittings Loose,Northavon Blinds Limited,468.34, 08-Mar-2012
1236,Revenue,CCHD,Information Systems - Software,Software Support & Maintenance,Northgate Information Solutions UK Limited,20000, 02-Mar-2012
1237,Revenue,CCHD,Information Systems - Software,Software Support & Maintenance,Northgate Information Solutions UK Limited,2000, 30-Mar-2012
1238,Revenue,CCHD,Bed Purchasing - Under 65s PWLD - South,Residential Homes,Norwood   Broadway House,4784.72, 20-Mar-2012
1239,Revenue,CCHD,Home Care - Elderly - South,Other Small Contracts,Nursing Solutions Limited,803.48, 09-Mar-2012
1240,Revenue,CCHD,Home care - Elderly MH - North,Other Small Contracts,Nursing Solutions Limited,162.97, 09-Mar-2012
1241,Revenue,CCHD,Elderly MH Day Care North,Private & Voluntary Day Care,Nursing Solutions Limited,204.66, 09-Mar-2012
1242,Revenue,CCHD,Home Care - Elderly - South,Other Small Contracts,Nursing Solutions Limited,685.99, 09-Mar-2012
1243,Revenue,CCHD,Home care - Elderly MH - North,Other Small Contracts,Nursing Solutions Limited,170.55, 09-Mar-2012
1244,Revenue,CCHD,Elderly MH Day Care North,Private & Voluntary Day Care,Nursing Solutions Limited,136.44, 09-Mar-2012
1245,Revenue,CCHD,Home Care - Elderly - South,Other Small Contracts,Nursing Solutions Limited,674.62, 16-Mar-2012
1246,Revenue,CCHD,Home care - Elderly MH - North,Other Small Contracts,Nursing Solutions Limited,170.55, 16-Mar-2012
1247,Revenue,CCHD,Elderly MH Day Care North,Private & Voluntary Day Care,Nursing Solutions Limited,197.08, 16-Mar-2012
1248,Revenue,CCHD,Bed Purchasing - Elderly - South,Residential Homes,Oaktree Lodge,1257, 20-Mar-2012
1249,Revenue,CCHD,Alexandra Way,Printing & Stationery,OfficeStar Group Limited,572.61, 13-Mar-2012
1250,Revenue,CCHD,Bed purchasing - S28A Under 65 - South,Residential Homes,Orchard End Limited,7466.16, 20-Mar-2012
1251,Revenue,CCHD,Bed purchasing - Elderly MH - North,Residential Homes,Osborne House,1404.12, 20-Mar-2012
1252,Revenue,CCHD,Bed Purchasing - Elderly - North,Residential Homes,Osbourne Court,800, 23-Mar-2012
1253,Revenue,CCHD,Bed Purchasing - Elderly - North,Residential Homes,Osbourne Court,1935.68, 20-Mar-2012
1254,Revenue,CCHD,Under 65s PWLD - KH,Residential Homes,Osbourne Court,3039.2, 20-Mar-2012
1255,Revenue,CCHD,Bed Purchasing - Elderly S117- North,Residential Homes,Osbourne Court,1554.05, 20-Mar-2012
1256,Revenue,CCHD,Bed purchasing - Elderly MH - North,Residential Homes,Osbourne Court,1692.82, 20-Mar-2012
1257,Revenue,CCHD,Bed Purchasing - Elderly S117- North,Residential Homes,Osbourne Court,3696, 20-Mar-2012
1258,Revenue,CCHD,Bed Purchasing - Elderly S117- North,Residential Homes,Osbourne Court,3376, 20-Mar-2012
1259,Revenue,CCHD,Bed Purchasing - Elderly - North,Residential Homes,Osbourne Court,2061.52, 20-Mar-2012
1260,Revenue,CCHD,Bed purchasing - Elderly MH - North,Residential Homes,Osbourne Court,2842, 20-Mar-2012
1261,Revenue,CCHD,Bed Purchasing - Elderly S117- North,Residential Homes,Osbourne Court,3696, 20-Mar-2012
1262,Revenue,CCHD,Frenchay Hospital Purchasing,Residential Homes,Osbourne Court,2375.6, 20-Mar-2012
1263,Revenue,CCHD,Bed Purchasing - Under 65s PWLD - South,Residential Homes,Osprey Court,7465.04, 20-Mar-2012
1264,Revenue,CCHD,Bed purchasing - S28A Under 65 - South,Residential Homes,Osprey Court,4168.96, 20-Mar-2012
1265,Revenue,CCHD,Bed purchasing - S28A Under 65 - South,Residential Homes,Osprey Court,6557.75, 20-Mar-2012
1266,Revenue,CCHD,Bed purchasing - Elderly MH - North,Residential Homes,Park Farm House,1331.48, 20-Mar-2012
1267,Revenue,CCHD,Frenchay Hospital Purchasing,Residential Homes,Park Farm House,1288.48, 20-Mar-2012
1268,Revenue,CCHD,Bed Purchasing - Elderly - South,Residential Homes,Park Farm House,1498.8, 20-Mar-2012
1269,Revenue,CCHD,Bed purchasing - Elderly MH - North,Residential Homes,Park Farm House,1566.4, 20-Mar-2012
1270,Revenue,CCHD,Under 65s PWLD - KH,Residential Homes,Park Hall,4825.08, 20-Mar-2012
1271,Revenue,CCHD,Elderly PWLD - KH,Residential Homes,Park Hall,4785.48, 20-Mar-2012
1272,Revenue,CCHD,Under 65s PWLD - KH,Residential Homes,Park Hall,4235.75, 20-Mar-2012
1273,Revenue,CCHD,Under 65s PWLD - KH,Residential Homes,Park Hall,12264.97, 20-Mar-2012
1274,Revenue,CCHD,Bed Purchasing - Under 65s PWLD - South,Residential Homes,Park Hall,5420.4, 20-Mar-2012
1275,Revenue,CCHD,Elderly PWLD - KH,Residential Homes,Park Hall,2470.16, 20-Mar-2012
1276,Revenue,CCHD,Bed purchasing - Under 65s PWLD - North,Residential Homes,Park Hall,2720.8, 20-Mar-2012
1277,Revenue,CCHD,Bed purchasing - S28A Under 65 - South,Residential Homes,Park Hall,4506.8, 20-Mar-2012
1278,Revenue,CCHD,Bed Purchasing - LD S28A- Over 65- South,Residential Homes,Park Hall,5163.72, 20-Mar-2012
1279,Revenue,CCHD,Under 65s PWLD - KH,Residential Homes,Park Hall,6231.09, 20-Mar-2012
1280,Revenue,CCHD,Bed purchasing - Under 65s PWLD - North,Residential Homes,Park Hall,2149.28, 20-Mar-2012
1281,Revenue,CCHD,Under 65s PWLD - KH,Residential Homes,Park Hall,4801.96, 20-Mar-2012
1282,Revenue,CCHD,Bed purchasing - S28A Under 65 - South,Residential Homes,Park Hall,5705, 20-Mar-2012
1283,Revenue,CCHD,Bed purchasing - S28A Under 65 - South,Residential Homes,Park Hall,5436.32, 20-Mar-2012
1284,Revenue,CCHD,Southmead Hospital Purchasing,Nursing Homes,Park House,1593.38, 20-Mar-2012
1285,Revenue,CCHD,Southmead Hospital Purchasing,Nursing Homes,Park House,1351.96, 20-Mar-2012
1286,Revenue,CCHD,Southmead Hospital Purchasing,Residential Homes,Park House,1287.96, 20-Mar-2012
1287,Revenue,CCHD,Southmead Hospital Purchasing,Residential Homes,Park House,1389, 20-Mar-2012
1288,Revenue,CCHD,Bed Purchasing - Elderly - South,Residential Homes,Park Street Home,2012.48, 20-Mar-2012
1289,Revenue,CCHD,Under 65s PWLD - KH,Residential Homes,Penleigh House Care Home,4389.32, 20-Mar-2012
1290,Revenue,CCHD,Bed purchasing - Under 65s PWLD - North,Residential Homes,Penleigh House Care Home,5101.28, 20-Mar-2012
1291,Revenue,CCHD,Bed purchasing - Elderly PWLD - North,Residential Homes,Penleigh House Care Home,4162.72, 20-Mar-2012
1292,Revenue,CCHD,Bed purchasing - Under 65s PWLD - North,Residential Homes,Penleigh House Care Home,4326.72, 20-Mar-2012
1293,Revenue,CCHD,Bed purchasing - S28A Under 65 - South,Residential Homes,Penleigh House Care Home,5288.92, 20-Mar-2012
1294,Revenue,CCHD,Bed purchasing - Under 65s PWLD - North,Residential Homes,Penleigh House Care Home,4778.72, 20-Mar-2012
1295,Revenue,CCHD,Southmead Hospital Purchasing,Residential Homes,Petersfield Ad Care Home,815.76, 20-Mar-2012
1296,Revenue,CCHD,Bed Purchasing - Elderly - North,Residential Homes,Petersfield Ad Care Home,1229, 20-Mar-2012
1297,Revenue,CCHD,Kingswood Centre - Maples Suite,Contract Hire & Operational Leases,PHS Group Plc,673.92, 16-Mar-2012
1298,Revenue,CCHD,Bed and Breakfast,Bed & Breakfast,Pleasant Bed & Breakfast Limited,504, 16-Mar-2012
1299,Revenue,CCHD,Bed and Breakfast,Bed & Breakfast,Pleasant Bed & Breakfast Limited,588, 23-Mar-2012
1300,Revenue,CCHD,Home Care - Elderly - North,Other Small Contracts,Premier Homecare Limited,4648.83, 13-Mar-2012
1301,Revenue,CCHD,Day Care - North,Private & Voluntary Day Care,Premier Homecare Limited,240.71, 13-Mar-2012
1302,Revenue,CCHD,Home care - Elderly MH - North,Other Small Contracts,Premier Homecare Limited,266.69, 13-Mar-2012
1303,Revenue,CCHD,Elderly MH Day Care North,Private & Voluntary Day Care,Premier Homecare Limited,382.46, 13-Mar-2012
1304,Revenue,CCHD,Home Care - Elderly - North,Other Small Contracts,Premier Homecare Limited,4252.5, 13-Mar-2012
1305,Revenue,CCHD,Day Care - North,Private & Voluntary Day Care,Premier Homecare Limited,181.63, 13-Mar-2012
1306,Revenue,CCHD,Home care - Elderly MH - North,Other Small Contracts,Premier Homecare Limited,302.13, 13-Mar-2012
1307,Revenue,CCHD,Elderly MH Day Care North,Private & Voluntary Day Care,Premier Homecare Limited,424.98, 13-Mar-2012
1308,Revenue,CCHD,Home Care - Elderly - North,Other Small Contracts,Premier Homecare Limited,4686.35, 26-Mar-2012
1309,Revenue,CCHD,Day Care - North,Private & Voluntary Day Care,Premier Homecare Limited,305.09, 26-Mar-2012
1310,Revenue,CCHD,Home care - Elderly MH - North,Other Small Contracts,Premier Homecare Limited,306.56, 26-Mar-2012
1311,Revenue,CCHD,Elderly MH Day Care North,Private & Voluntary Day Care,Premier Homecare Limited,422.93, 26-Mar-2012
1312,Revenue,CCHD,Home Care - Elderly - South,Other Small Contracts,Prestige Nursing,764.4, 12-Mar-2012
1313,Revenue,CCHD,Home Care - Elderly - North,Other Small Contracts,Prestige Nursing,697.2, 12-Mar-2012
1314,Revenue,CCHD,Day Care - South,Private & Voluntary Day Care,Prestige Nursing,499.8, 12-Mar-2012
1315,Revenue,CCHD,Day Care - North,Private & Voluntary Day Care,Prestige Nursing,1003.8, 12-Mar-2012
1316,Revenue,CCHD,Home care - Elderly MH - North,Other Small Contracts,Prestige Nursing,323.4, 12-Mar-2012
1317,Revenue,CCHD,Elderly MH Day Care North,Private & Voluntary Day Care,Prestige Nursing,634.2, 12-Mar-2012
1318,Revenue,CCHD,Home Care - Elderly - South,Other Small Contracts,Prestige Nursing,840, 05-Mar-2012
1319,Revenue,CCHD,Home Care - Elderly - North,Other Small Contracts,Prestige Nursing,747.6, 05-Mar-2012
1320,Revenue,CCHD,Day Care - South,Private & Voluntary Day Care,Prestige Nursing,537.6, 05-Mar-2012
1321,Revenue,CCHD,Day Care - North,Private & Voluntary Day Care,Prestige Nursing,1352.4, 05-Mar-2012
1322,Revenue,CCHD,Home care - Elderly MH - North,Other Small Contracts,Prestige Nursing,403.2, 05-Mar-2012
1323,Revenue,CCHD,Elderly MH Day Care North,Private & Voluntary Day Care,Prestige Nursing,743.4, 05-Mar-2012
1324,Revenue,CCHD,Home Care - Elderly - South,Other Small Contracts,Prestige Nursing,764.4, 05-Mar-2012
1325,Revenue,CCHD,Home Care - Elderly - North,Other Small Contracts,Prestige Nursing,693, 05-Mar-2012
1326,Revenue,CCHD,Day Care - South,Private & Voluntary Day Care,Prestige Nursing,525, 05-Mar-2012
1327,Revenue,CCHD,Day Care - North,Private & Voluntary Day Care,Prestige Nursing,1310.4, 05-Mar-2012
1328,Revenue,CCHD,Home care - Elderly MH - North,Other Small Contracts,Prestige Nursing,344.4, 05-Mar-2012
1329,Revenue,CCHD,Elderly MH Day Care North,Private & Voluntary Day Care,Prestige Nursing,819, 05-Mar-2012
1330,Revenue,CCHD,Home Care - Elderly - South,Other Small Contracts,Prestige Nursing,798, 12-Mar-2012
1331,Revenue,CCHD,Home Care - Elderly - North,Other Small Contracts,Prestige Nursing,697.2, 12-Mar-2012
1332,Revenue,CCHD,Day Care - South,Private & Voluntary Day Care,Prestige Nursing,525, 12-Mar-2012
1333,Revenue,CCHD,Day Care - North,Private & Voluntary Day Care,Prestige Nursing,1302, 12-Mar-2012
1334,Revenue,CCHD,Home care - Elderly MH - North,Other Small Contracts,Prestige Nursing,340.2, 12-Mar-2012
1335,Revenue,CCHD,Elderly MH Day Care North,Private & Voluntary Day Care,Prestige Nursing,785.4, 12-Mar-2012
1336,Revenue,CCHD,Home Care - Elderly - South,Other Small Contracts,Prestige Nursing,760.2, 19-Mar-2012
1337,Revenue,CCHD,Home Care - Elderly - North,Other Small Contracts,Prestige Nursing,735, 19-Mar-2012
1338,Revenue,CCHD,Day Care - South,Private & Voluntary Day Care,Prestige Nursing,541.8, 19-Mar-2012
1339,Revenue,CCHD,Day Care - North,Private & Voluntary Day Care,Prestige Nursing,1251.6, 19-Mar-2012
1340,Revenue,CCHD,Home care - Elderly MH - North,Other Small Contracts,Prestige Nursing,268.8, 19-Mar-2012
1341,Revenue,CCHD,Elderly MH Day Care North,Private & Voluntary Day Care,Prestige Nursing,701.4, 19-Mar-2012
1342,Revenue,CCHD,Home Care - Elderly - North,Other Small Contracts,Prestige Nursing,14, 27-Mar-2012
1343,Revenue,CCHD,Day Care - South,Private & Voluntary Day Care,Prestige Nursing,266.4, 27-Mar-2012
1344,Revenue,CCHD,Day Care - North,Private & Voluntary Day Care,Prestige Nursing,728, 27-Mar-2012
1345,Revenue,CCHD,Home care - Elderly MH - North,Other Small Contracts,Prestige Nursing,48, 27-Mar-2012
1346,Revenue,CCHD,Elderly MH Day Care North,Private & Voluntary Day Care,Prestige Nursing,672, 27-Mar-2012
1347,Revenue,CCHD,Management & Support costs,Other Supplies & Services,Price Waterhouse Coopers LLp,17367, 29-Mar-2012
1348,Revenue,CCHD,Older People's Commissioned Se,Grants to Voluntary Bodies,Princess Royal Trust Carers Centre,38130, 30-Mar-2012
1349,Revenue,CCHD,Older People's Commissioned Se,Grants to Voluntary Bodies,Princess Royal Trust Carers Centre,1930.75, 30-Mar-2012
1350,Revenue,CCHD,Kingswood District Office,Postages,Purchase Power,564.37, 13-Mar-2012
1351,Revenue,CCHD,Kingswood Centre - Maples Suite,"Provisions (Food, etc)",R Jays Cafe,590, 06-Mar-2012
1352,Revenue,CCHD,Kingswood Centre - Maples Suite,"Provisions (Food, etc)",R Jays Cafe,590, 06-Mar-2012
1353,Revenue,CCHD,Kingswood Centre - Maples Suite,"Provisions (Food, etc)",R Jays Cafe,600, 06-Mar-2012
1354,Revenue,CCHD,Kingswood Centre - Maples Suite,"Provisions (Food, etc)",R Jays Cafe,585, 22-Mar-2012
1355,Revenue,CCHD,Bed purchasing - Elderly MH - North,Nursing Homes,Ravenswood,1266.8, 20-Mar-2012
1356,Revenue,CCHD,Bed purchasing - Elderly MH - North,Residential Homes,Ravenswood,2148.24, 20-Mar-2012
1357,Revenue,CCHD,Bed Purchasing - Elderly - North,Nursing Homes,Ravenswood,1138.17, 20-Mar-2012
1358,Revenue,CCHD,Bed Purchasing - Elderly S117- North,Nursing Homes,Redholme Memory Care Limited,1912, 20-Mar-2012
1359,Revenue,CCHD,Bed Purchasing - Elderly - South,Nursing Homes,Regent House,1620.8, 20-Mar-2012
1360,Revenue,CCHD,Southmead Hospital Purchasing,Nursing Homes,Regent House,975.52, 20-Mar-2012
1361,Revenue,CCHD,Bed Purchasing - Elderly - South,Nursing Homes,Regent House,2006.2, 20-Mar-2012
1362,Revenue,CCHD,Bed Purchasing - Elderly - South,Nursing Homes,Regent House,1719.6, 20-Mar-2012
1363,Revenue,CCHD,South Glos Users in South Glos Homes,Nursing Homes,Regent House,3773.44, 20-Mar-2012
1364,Revenue,CCHD,Bed Purchasing - Elderly - South,Nursing Homes,Regent House,1620.8, 20-Mar-2012
1365,Revenue,CCHD,Bed Purchasing - Elderly - South,Nursing Homes,Regent House,621.2, 20-Mar-2012
1366,Revenue,CCHD,Southmead Hospital Purchasing,Nursing Homes,Regent House,1367, 20-Mar-2012
1367,Revenue,CCHD,Bed Purchasing - Elderly - South,Nursing Homes,Regent House,2465.2, 20-Mar-2012
1368,Revenue,CCHD,Bed Purchasing - Elderly - South,Nursing Homes,Regent House,1102.6, 20-Mar-2012
1369,Revenue,CCHD,Bed purchasing - Elderly MH - North,Nursing Homes,Regent House,1906.2, 20-Mar-2012
1370,Revenue,CCHD,Bed Purchasing - Elderly - South,Nursing Homes,Regent House,5048.06, 20-Mar-2012
1371,Revenue,CCHD,Bed Purchasing - Elderly - South,Nursing Homes,Regent House,1606.2, 20-Mar-2012
1372,Revenue,CCHD,Bed purchasing - Elderly MH - North,Nursing Homes,Regent House,1053.04, 20-Mar-2012
1373,Revenue,CCHD,Bed purchasing - Elderly MH - North,Nursing Homes,Regent House,1282.72, 20-Mar-2012
1374,Revenue,CCHD,Bed purchasing - Elderly PWLD - South,Residential Homes,Renaissance,2156.6, 20-Mar-2012
1375,Revenue,CCHD,Bed Purchasing - Under 65s PWLD - South,Residential Homes,Ridgeway House,3373.32, 20-Mar-2012
1376,Revenue,CCHD,Bed Purchasing - Elderly - South,Nursing Homes,Riversway Nursing Home,1146.88, 20-Mar-2012
1377,Revenue,CCHD,Southmead Hospital Purchasing,Nursing Homes,Riversway Nursing Home,1334.52, 20-Mar-2012
1378,Revenue,CCHD,Southmead Hospital Purchasing,Nursing Homes,Riversway Nursing Home,1690.2, 20-Mar-2012
1379,Revenue,CCHD,Bed purchasing - Elderly PWLD - South,Residential Homes,Rockleaze,2134.16, 20-Mar-2012
1380,Revenue,CCHD,Bed purchasing - Elderly PWLD - South,Residential Homes,Rockleaze,1386.56, 20-Mar-2012
1381,Revenue,CCHD,Bed Purchasing - LD S28A- Over 65- South,Residential Homes,Rockleaze,2015.52, 20-Mar-2012
1382,Revenue,CCHD,Bed Purchasing - Under 65s PWLD - South,Residential Homes,Rockleaze,2335.08, 20-Mar-2012
1383,Revenue,CCHD,Bed purchasing - Elderly PWLD - South,Residential Homes,Rockleaze,1386.56, 20-Mar-2012
1384,Revenue,CCHD,Turnberries,Educational Materials,Rompa Limited,920.25, 08-Mar-2012
1385,Revenue,CCHD,Bed purchasing - Elderly MH - North,Residential Homes,Ross Healthcare,1265.36, 20-Mar-2012
1386,Revenue,CCHD,Frenchay Hospital Purchasing,Residential Homes,Roundham Court,1229, 20-Mar-2012
1387,Revenue,CCHD,Training - Adult Services,Training Expenses,S R Orchard,895, 27-Mar-2012
1388,Revenue,CCHD,Home Care - Elderly - North,Other Small Contracts,Saga Homecare,1914.35, 27-Mar-2012
1389,Revenue,CCHD,Home Care - Elderly - North,Other Small Contracts,Saga Homecare,1927.73, 27-Mar-2012
1390,Revenue,CCHD,Home Care - Elderly - North,Other Small Contracts,Saga Homecare,1927.55, 27-Mar-2012
1391,Revenue,CCHD,Bed Purchasing - Under 65s PWLD - South,Residential Homes,Salters Hill Barn,1964.08, 20-Mar-2012
1392,Revenue,CCHD,Learning Difficulties PSL,Rent,Individual,1400, 01-Mar-2012
1393,Revenue,CCHD,Learning Difficulties PSL,Rent,Individual,1400, 30-Mar-2012
1394,Revenue,CCHD,Woodleaze,"Provisions (Food, etc)",School Milk Services Limited,897.34, 01-Mar-2012
1395,Revenue,CCHD,Charlton,"Provisions (Food, etc)",School Milk Services Limited,666.88, 01-Mar-2012
1396,Revenue,CCHD,Woodleaze,"Provisions (Food, etc)",School Milk Services Limited,805.12, 30-Mar-2012
1397,Revenue,CCHD,Charlton,"Provisions (Food, etc)",School Milk Services Limited,685.54, 30-Mar-2012
1398,Revenue,CCHD,Under 65s PWLD - KH,Residential Homes,Scope   Accounts Dept,4926.6, 20-Mar-2012
1399,Revenue,CCHD,Under 65s PWLD - KH,Residential Homes,Scope   Accounts Dept,3016.28, 20-Mar-2012
1400,Revenue,CCHD,Supported Living - KD,Private & Voluntary Home Care,SeeAbility,1650, 08-Mar-2012
1401,Revenue,CCHD,Supported Living - KD,Private & Voluntary Home Care,SeeAbility,1029, 08-Mar-2012
1402,Revenue,CCHD,Supported Living - KD,Private & Voluntary Home Care,SeeAbility,4557, 08-Mar-2012
1403,Revenue,CCHD,Supported Living - KD,Private & Voluntary Home Care,SeeAbility,4410, 08-Mar-2012
1404,Revenue,CCHD,Supported Living - KD,Private & Voluntary Home Care,SeeAbility,4457, 08-Mar-2012
1405,Revenue,CCHD,Supported Living - KD,Private & Voluntary Home Care,SeeAbility,4410, 08-Mar-2012
1406,Revenue,CCHD,Supported Living - KD,Private & Voluntary Home Care,SeeAbility,4457, 08-Mar-2012
1407,Revenue,CCHD,Supported Living - KH,Private & Voluntary Home Care,SeeAbility,510, 15-Mar-2012
1408,Revenue,CCHD,Supported Living - KD,Private & Voluntary Home Care,SeeAbility,4457, 08-Mar-2012
1409,Revenue,CCHD,Day Care - North,Private & Voluntary Day Care,SeeAbility,1893.22, 08-Mar-2012
1410,Revenue,CCHD,Supported Living - KH,Private & Voluntary Home Care,SeeAbility,1336.5, 12-Mar-2012
1411,Revenue,CCHD,Supported Living - KH,Private & Voluntary Home Care,SeeAbility,6729.15, 12-Mar-2012
1412,Revenue,CCHD,Supported Living - KD,Private & Voluntary Home Care,SeeAbility,1419, 09-Mar-2012
1413,Revenue,CCHD,Supported Living - KD,Private & Voluntary Home Care,SeeAbility,849.75, 30-Mar-2012
1414,Revenue,CCHD,Supported Living - KH,Private & Voluntary Home Care,Selborne Care Ltd,1126, 06-Mar-2012
1415,Revenue,CCHD,Purchase of Non-Res Care - KD,Private & Voluntary Day Care,Selborne Care Ltd,816.64, 12-Mar-2012
1416,Revenue,CCHD,Supported Living - KH,Private & Voluntary Home Care,Selborne Care Ltd,501.76, 08-Mar-2012
1417,Revenue,CCHD,Supported Living - KH,Private & Voluntary Home Care,Selborne Care Ltd,540.44, 08-Mar-2012
1418,Revenue,CCHD,Purchase of Non-Res Care - KD,Private & Voluntary Day Care,Selborne Care Ltd,1403.68, 19-Mar-2012
1419,Revenue,CCHD,Purchase of Non-Res Care - KD,Private & Voluntary Day Care,Selborne Care Ltd,878.08, 19-Mar-2012
1420,Revenue,CCHD,Supported Living - KH,Private & Voluntary Home Care,Selborne Care Ltd,1123.6, 20-Mar-2012
1421,Revenue,CCHD,Purchase of Non-Res Care - KD,Private & Voluntary Day Care,Selborne Care Ltd,816.64, 19-Mar-2012
1422,Revenue,CCHD,Supported Living - KH,Private & Voluntary Home Care,Selborne Care Ltd,501.76, 19-Mar-2012
1423,Revenue,CCHD,Purchase of Non-Res Care - KD,Private & Voluntary Day Care,Selborne Care Ltd,768.32, 19-Mar-2012
1424,Revenue,CCHD,Supported Living - KH,Private & Voluntary Home Care,Selborne Care Ltd,540.44, 19-Mar-2012
1425,Revenue,CCHD,Purchase of Non-Res Care - KD,Private & Voluntary Day Care,Selborne Care Ltd,880.96, 19-Mar-2012
1426,Revenue,CCHD,Home Care - Elderly - South,Other Small Contracts,Servoca Nursing & Care,1189.87, 20-Mar-2012
1427,Revenue,CCHD,Home Care - Elderly - North,Other Small Contracts,Servoca Nursing & Care,272.29, 20-Mar-2012
1428,Revenue,CCHD,Day Care - South,Private & Voluntary Day Care,Servoca Nursing & Care,835.52, 20-Mar-2012
1429,Revenue,CCHD,Day Care - North,Private & Voluntary Day Care,Servoca Nursing & Care,305.86, 20-Mar-2012
1430,Revenue,CCHD,Younger MH non-res purchasing,Private & Voluntary Day Care,Servoca Nursing & Care,78.33, 20-Mar-2012
1431,Revenue,CCHD,Elderly MH Day Care North,Private & Voluntary Day Care,Servoca Nursing & Care,164.12, 20-Mar-2012
1432,Revenue,CCHD,Supported Living - KD,Private & Voluntary Home Care,Servoca Nursing & Care,89.52, 20-Mar-2012
1433,Revenue,CCHD,Home Care - Elderly - South,Other Small Contracts,Servoca Nursing & Care,1230.9, 08-Mar-2012
1434,Revenue,CCHD,Home Care - Elderly - North,Other Small Contracts,Servoca Nursing & Care,317.05, 08-Mar-2012
1435,Revenue,CCHD,Day Care - South,Private & Voluntary Day Care,Servoca Nursing & Care,805.68, 08-Mar-2012
1436,Revenue,CCHD,Day Care - North,Private & Voluntary Day Care,Servoca Nursing & Care,302.13, 08-Mar-2012
1437,Revenue,CCHD,Younger MH non-res purchasing,Private & Voluntary Day Care,Servoca Nursing & Care,78.33, 08-Mar-2012
1438,Revenue,CCHD,Elderly MH Day Care North,Private & Voluntary Day Care,Servoca Nursing & Care,179.04, 08-Mar-2012
1439,Revenue,CCHD,Supported Living - KD,Private & Voluntary Home Care,Servoca Nursing & Care,89.52, 08-Mar-2012
1440,Revenue,CCHD,Home Care - Elderly - South,Other Small Contracts,Servoca Nursing & Care,1156.3, 13-Mar-2012
1441,Revenue,CCHD,Home Care - Elderly - North,Other Small Contracts,Servoca Nursing & Care,488.63, 13-Mar-2012
1442,Revenue,CCHD,Day Care - South,Private & Voluntary Day Care,Servoca Nursing & Care,779.57, 13-Mar-2012
1443,Revenue,CCHD,Day Care - North,Private & Voluntary Day Care,Servoca Nursing & Care,339.43, 13-Mar-2012
1444,Revenue,CCHD,Younger MH non-res purchasing,Private & Voluntary Day Care,Servoca Nursing & Care,78.33, 13-Mar-2012
1445,Revenue,CCHD,Elderly MH Day Care North,Private & Voluntary Day Care,Servoca Nursing & Care,182.77, 13-Mar-2012
1446,Revenue,CCHD,Supported Living - KD,Private & Voluntary Home Care,Servoca Nursing & Care,89.52, 13-Mar-2012
1447,Revenue,CCHD,Home Care - Elderly - South,Other Small Contracts,Servoca Nursing & Care,1033.21, 29-Mar-2012
1448,Revenue,CCHD,Home Care - Elderly - North,Other Small Contracts,Servoca Nursing & Care,440.14, 29-Mar-2012
1449,Revenue,CCHD,Day Care - South,Private & Voluntary Day Care,Servoca Nursing & Care,865.36, 29-Mar-2012
1450,Revenue,CCHD,Day Care - North,Private & Voluntary Day Care,Servoca Nursing & Care,384.19, 29-Mar-2012
1451,Revenue,CCHD,Younger MH non-res purchasing,Private & Voluntary Day Care,Servoca Nursing & Care,74.6, 29-Mar-2012
1452,Revenue,CCHD,Home care - Elderly MH - North,Other Small Contracts,Servoca Nursing & Care,33.57, 29-Mar-2012
1453,Revenue,CCHD,Elderly MH Day Care North,Private & Voluntary Day Care,Servoca Nursing & Care,268.56, 29-Mar-2012
1454,Revenue,CCHD,Supported Living - KD,Private & Voluntary Home Care,Servoca Nursing & Care,89.52, 29-Mar-2012
1455,Revenue,CCHD,Home Care - Elderly - South,Other Small Contracts,Servoca Nursing & Care,1048.13, 29-Mar-2012
1456,Revenue,CCHD,Home Care - Elderly - North,Other Small Contracts,Servoca Nursing & Care,499.82, 29-Mar-2012
1457,Revenue,CCHD,Day Care - South,Private & Voluntary Day Care,Servoca Nursing & Care,857.9, 29-Mar-2012
1458,Revenue,CCHD,Day Care - North,Private & Voluntary Day Care,Servoca Nursing & Care,391.65, 29-Mar-2012
1459,Revenue,CCHD,Younger MH non-res purchasing,Private & Voluntary Day Care,Servoca Nursing & Care,74.6, 29-Mar-2012
1460,Revenue,CCHD,Home care - Elderly MH - North,Other Small Contracts,Servoca Nursing & Care,33.57, 29-Mar-2012
1461,Revenue,CCHD,Elderly MH Day Care North,Private & Voluntary Day Care,Servoca Nursing & Care,268.56, 29-Mar-2012
1462,Revenue,CCHD,Supported Living - KD,Private & Voluntary Home Care,Servoca Nursing & Care,89.52, 29-Mar-2012
1463,Revenue,CCHD,Home Care - Elderly - South,Other Small Contracts,Servoca Nursing & Care,1018.29, 29-Mar-2012
1464,Revenue,CCHD,Home Care - Elderly - North,Other Small Contracts,Servoca Nursing & Care,462.52, 29-Mar-2012
1465,Revenue,CCHD,Day Care - South,Private & Voluntary Day Care,Servoca Nursing & Care,824.33, 29-Mar-2012
1466,Revenue,CCHD,Day Care - North,Private & Voluntary Day Care,Servoca Nursing & Care,335.7, 29-Mar-2012
1467,Revenue,CCHD,Younger MH non-res purchasing,Private & Voluntary Day Care,Servoca Nursing & Care,74.6, 29-Mar-2012
1468,Revenue,CCHD,Home care - Elderly MH - North,Other Small Contracts,Servoca Nursing & Care,33.57, 29-Mar-2012
1469,Revenue,CCHD,Elderly MH Day Care North,Private & Voluntary Day Care,Servoca Nursing & Care,268.56, 29-Mar-2012
1470,Revenue,CCHD,Supported Living - KD,Private & Voluntary Home Care,Servoca Nursing & Care,89.52, 29-Mar-2012
1471,Revenue,CCHD,Purchase of Non-Res Care - KH,Private & Voluntary Day Care,Servoca Nursing & Care,1238.77, 09-Mar-2012
1472,Revenue,CCHD,Purchase of Non-Res Care - KH,Private & Voluntary Day Care,Servoca Nursing & Care,1238.77, 09-Mar-2012
1473,Revenue,CCHD,Purchase of Non-Res Care - KH,Private & Voluntary Day Care,Servoca Nursing & Care,783.21, 09-Mar-2012
1474,Revenue,CCHD,Purchase of Non-Res Care - KH,Private & Voluntary Day Care,Servoca Nursing & Care,990.65, 09-Mar-2012
1475,Revenue,CCHD,Purchase of Non-Res Care - KH,Private & Voluntary Day Care,Servoca Nursing & Care,1238.77, 12-Mar-2012
1476,Revenue,CCHD,Purchase of Non-Res Care - KD,Private & Voluntary Day Care,Servoca Nursing & Care,1238.77, 12-Mar-2012
1477,Revenue,CCHD,Purchase of Non-Res Care - KH,Private & Voluntary Day Care,Servoca Nursing & Care,1238.77, 12-Mar-2012
1478,Revenue,CCHD,Purchase of Non-Res Care - KH,Private & Voluntary Day Care,Servoca Nursing & Care,1238.77, 12-Mar-2012
1479,Revenue,CCHD,Purchase of Non-Res Care - KH,Private & Voluntary Day Care,Servoca Nursing & Care,1238.77, 09-Mar-2012
1480,Revenue,CCHD,Purchase of Non-Res Care - KH,Private & Voluntary Day Care,Servoca Nursing & Care,1238.77, 13-Mar-2012
1481,Revenue,CCHD,Purchase of Non-Res Care - KH,Private & Voluntary Day Care,Servoca Nursing & Care,1238.77, 15-Mar-2012
1482,Revenue,CCHD,Purchase of Non-Res Care - KH,Private & Voluntary Day Care,Servoca Nursing & Care,1238.77, 29-Mar-2012
1483,Revenue,CCHD,Southmead Hospital Purchasing,Nursing Homes,Shaw Healthcare Ltd,1453, 20-Mar-2012
1484,Revenue,CCHD,Bed purchasing - Elderly MH - North,Nursing Homes,Shaw Healthcare Ltd,1231.84, 20-Mar-2012
1485,Revenue,CCHD,Bed purchasing - S28A Under 65 - South,Residential Homes,Shaw Healthcare Ltd,10457.12, 20-Mar-2012
1486,Revenue,CCHD,Bed purchasing - S28A Under 65 - South,Residential Homes,Shaw Healthcare Ltd,10293.12, 20-Mar-2012
1487,Revenue,CCHD,Bed purchasing - S28A Under 65 - South,Residential Homes,Shaw Healthcare Ltd,10457.12, 20-Mar-2012
1488,Revenue,CCHD,S117 Placements PCT,Residential Homes,Shaw Healthcare Ltd,15106.96, 20-Mar-2012
1489,Revenue,CCHD,Bed Purchasing - Under 65s PWLD - South,Nursing Homes,Shaw Healthcare Ltd,9513.68, 20-Mar-2012
1490,Revenue,CCHD,Bed purchasing - Under 65s PWLD - North,Residential Homes,Shaw Healthcare Ltd,8935.92, 20-Mar-2012
1491,Revenue,CCHD,Elderly PWLD - KH,Residential Homes,Shaw Healthcare Ltd,3821, 20-Mar-2012
1492,Revenue,CCHD,Bed purchasing - S28A Under 65 - South,Residential Homes,Shaw Healthcare Ltd,10137, 20-Mar-2012
1493,Revenue,CCHD,Bed purchasing - S28A Under 65 - South,Residential Homes,Shaw Healthcare Ltd,11756.44, 20-Mar-2012
1494,Revenue,CCHD,Bed purchasing - S28A Under 65 - South,Residential Homes,Shaw Healthcare Ltd,4681.16, 20-Mar-2012
1495,Revenue,CCHD,Bed Purchasing - LD S28A- Over 65- South,Residential Homes,Shaw Healthcare Ltd,4681.16, 20-Mar-2012
1496,Revenue,CCHD,Bed Purchasing - Under 65s PWLD - South,Nursing Homes,Shaw Healthcare Ltd,9842, 20-Mar-2012
1497,Revenue,CCHD,Bed Purchasing - LD S28A- Over 65- South,Residential Homes,Shaw Healthcare Ltd,4681.16, 20-Mar-2012
1498,Revenue,CCHD,Bed Purchasing - LD S28A- Over 65- South,Residential Homes,Shaw Healthcare Ltd,4681.16, 20-Mar-2012
1499,Revenue,CCHD,Bed Purchasing - LD S28A- Over 65- South,Residential Homes,Shaw Healthcare Ltd,4688.84, 20-Mar-2012
1500,Revenue,CCHD,Bed purchasing - S28A Under 65 - South,Residential Homes,Shaw Healthcare Ltd,9131.32, 20-Mar-2012
1501,Revenue,CCHD,Bed Purchasing - LD S28A- Over 65- South,Residential Homes,Shaw Healthcare Ltd,8935.92, 20-Mar-2012
1502,Revenue,CCHD,Bed purchasing - Phys Dis - South,Residential Homes,Sian Mann,4280, 13-Mar-2012
1503,Revenue,CCHD,Supported Living - KH,Private & Voluntary Home Care,Silva Care Limited,4415.44, 05-Mar-2012
1504,Revenue,CCHD,Day Care - North,Private & Voluntary Day Care,Silva Care Limited,756.52, 06-Mar-2012
1505,Revenue,CCHD,Supported Living - KH,Private & Voluntary Home Care,Silva Care Limited,4415.44, 15-Mar-2012
1506,Revenue,CCHD,Day Care - North,Private & Voluntary Day Care,Silva Care Limited,646.78, 21-Mar-2012
1507,Revenue,CCHD,Alexandra Way,Refuse Collection Charges,SITA UK LTD,635.1, 02-Mar-2012
1508,Revenue,CCHD,Bed purchasing - Under 65s PWLD - North,Residential Homes,Small House Homes Limited,17308.68, 20-Mar-2012
1509,Revenue,CCHD,Supported Living - KD,Private & Voluntary Home Care,Smile Independent Living Support Limited,4354.71, 08-Mar-2012
1510,Revenue,CCHD,Purchase of Non-Res Care - KD,Private & Voluntary Day Care,Smile Independent Living Support Limited,1020.4, 08-Mar-2012
1511,Revenue,CCHD,Purchase of Non-Res Care - PS,Private & Voluntary Day Care,Smile Independent Living Support Limited,643.65, 27-Mar-2012
1512,Revenue,CCHD,Day Care - South,Private & Voluntary Day Care,Smile Independent Living Support Limited,582.6, 20-Mar-2012
1513,Revenue,CCHD,Purchase of Non-Res Care - KD,Private & Voluntary Day Care,Smile Independent Living Support Limited,1031.6, 15-Mar-2012
1514,Revenue,CCHD,Purchase of Non-Res Care - KD,Private & Voluntary Day Care,Smile Independent Living Support Limited,1082.6, 19-Mar-2012
1515,Revenue,CCHD,Supported Living - KD,Private & Voluntary Home Care,Smile Independent Living Support Limited,987.98, 15-Mar-2012
1516,Revenue,CCHD,Purchase of Non-Res Care - KD,Private & Voluntary Day Care,Smile Independent Living Support Limited,583.5, 16-Mar-2012
1517,Revenue,CCHD,Purchase of Non-Res Care - KD,Private & Voluntary Day Care,Smile Independent Living Support Limited,646.9, 26-Mar-2012
1518,Revenue,CCHD,Purchase of Non-Res Care - KD,Private & Voluntary Day Care,Smile Independent Living Support Limited,1219.73, 15-Mar-2012
1519,Revenue,CCHD,Purchase of Non-Res Care - KD,Private & Voluntary Day Care,Smile Independent Living Support Limited,1171.2, 15-Mar-2012
1520,Revenue,CCHD,Purchase of Non-Res Care - KD,Private & Voluntary Day Care,Smile Independent Living Support Limited,953.41, 15-Mar-2012
1521,Revenue,CCHD,Purchase of Non-Res Care - KD,Private & Voluntary Day Care,Smile Independent Living Support Limited,550.55, 15-Mar-2012
1522,Revenue,CCHD,Supported Living - KD,Private & Voluntary Home Care,Smile Independent Living Support Limited,3997.14, 19-Mar-2012
1523,Revenue,CCHD,Day Care - South,Private & Voluntary Day Care,Smile Independent Living Support Limited,3859.34, 16-Mar-2012
1524,Revenue,CCHD,Purchase of Non-Res Care - KD,Private & Voluntary Day Care,Smile Independent Living Support Limited,2536.16, 15-Mar-2012
1525,Revenue,CCHD,Adult LD - Thornbury PCT,Other Supplies & Services,South Gloucestershire Primary Care Trust,6652.58, 09-Mar-2012
1526,Revenue,CCHD,Detained,Nursing Homes,South Gloucestershire Primary Care Trust,17384, 09-Mar-2012
1527,Revenue,CCHD,Adult LD - Fiveways PCT,Agency Staff (Operational)/PCT Pay,South Gloucestershire Primary Care Trust,97042.63, 09-Mar-2012
1528,Revenue,CCHD,Adult LD - Fiveways PCT,Agency Staff (Operational)/PCT Pay,South Gloucestershire Primary Care Trust,281585.28, 09-Mar-2012
1529,Revenue,CCHD,Occupational Therapy Team,Agency Staff (Operational)/PCT Pay,South Gloucestershire Primary Care Trust,54782.47, 27-Mar-2012
1530,Revenue,CCHD,Adult LD - Thornbury PCT,Other Supplies & Services,South Gloucestershire Primary Care Trust,9179.05, 28-Mar-2012
1531,Revenue,CCHD,Kingswood Centre - Maples Suite,Operational Equipment,Southern Care Systems Limited,2323.65, 08-Mar-2012
1532,Revenue,CCHD,Minor Adaptations Service,Maintenance by Contractor,Southern Electric Contracting Limited,347.32, 14-Mar-2012
1533,Revenue,CCHD,Minor Adaptations Service,Maintenance by Contractor,Southern Electric Contracting Limited,209.98, 21-Mar-2012
1534,Revenue,CCHD,Under 65s PWLD - KH,Residential Homes,St Brigas,2014.4, 20-Mar-2012
1535,Revenue,CCHD,Bed Purchasing - Under 65s PWLD - South,Residential Homes,St Brigas,2907.24, 20-Mar-2012
1536,Revenue,CCHD,Under 65s PWLD - KH,Residential Homes,St Brigas,1963.52, 20-Mar-2012
1537,Revenue,CCHD,Bed Purchasing - Elderly - South,Residential Homes,St Martin`s Centre,11464.91, 27-Mar-2012
1538,Revenue,CCHD,Training - Adult Services,Training Expenses,St Peter`s Hospice,609.35, 13-Mar-2012
1539,Revenue,CCHD,Bed Purchasing - Under 65s PWLD - South,Residential Homes,Stepping Stones Re-Sett. Unit,8464.68, 20-Mar-2012
1540,Revenue,CCHD,Bed purchasing - Elderly MH - North,Residential Homes,Stuart House,1809.24, 20-Mar-2012
1541,Revenue,CCHD,Southmead Hospital Purchasing,Residential Homes,Stuart House,1345.92, 20-Mar-2012
1542,Revenue,CCHD,Supported Living - KD,Private & Voluntary Home Care,Supported Independence Ltd,1677, 01-Mar-2012
1543,Revenue,CCHD,Day Care - North,Private & Voluntary Day Care,Supported Independence Ltd,543.25, 29-Mar-2012
1544,Revenue,CCHD,Supported Living - KD,Private & Voluntary Home Care,Supported Independence Ltd,1735.5, 08-Mar-2012
1545,Revenue,CCHD,Day Care - North,Private & Voluntary Day Care,Supported Independence Ltd,516.75, 21-Mar-2012
1546,Revenue,CCHD,Younger MH non-res purchasing,Private & Voluntary Day Care,Supported Independence Ltd,2310, 06-Mar-2012
1547,Revenue,CCHD,Day Care - North,Private & Voluntary Day Care,Supported Independence Ltd,546, 02-Mar-2012
1548,Revenue,CCHD,Supported Living - KD,Private & Voluntary Home Care,Supported Independence Ltd,926.25, 02-Mar-2012
1549,Revenue,CCHD,Younger MH non-res purchasing,Private & Voluntary Day Care,Supported Independence Ltd,1033.5, 06-Mar-2012
1550,Revenue,CCHD,Supported Living - KD,Private & Voluntary Home Care,Supported Independence Ltd,1852.5, 15-Mar-2012
1551,Revenue,CCHD,Supported Living - PS,Private & Voluntary Home Care,Supported Independence Ltd,682.5, 19-Mar-2012
1552,Revenue,CCHD,Section 117 Placements MH Younger,Private & Voluntary Day Care,Supported Independence Ltd,819, 06-Mar-2012
1553,Revenue,CCHD,Younger MH non-res purchasing,Private & Voluntary Day Care,Supported Independence Ltd,507.6, 06-Mar-2012
1554,Revenue,CCHD,Younger MH non-res purchasing,Private & Voluntary Day Care,Supported Independence Ltd,731.25, 06-Mar-2012
1555,Revenue,CCHD,Younger MH non-res purchasing,Private & Voluntary Day Care,Supported Independence Ltd,702, 06-Mar-2012
1556,Revenue,CCHD,Day Care - North,Private & Voluntary Day Care,Supported Independence Ltd,936, 22-Mar-2012
1557,Revenue,CCHD,Younger MH non-res purchasing,Private & Voluntary Day Care,Supported Independence Ltd,507, 06-Mar-2012
1558,Revenue,CCHD,Supporting People Programme,Grants to Voluntary Bodies,Supported Independence Ltd,2582.82, 14-Mar-2012
1559,Revenue,CCHD,Supporting People Programme,Grants to Voluntary Bodies,Supported Independence Ltd,5340.6, 14-Mar-2012
1560,Revenue,CCHD,Supporting People Programme,Grants to Voluntary Bodies,Supported Independent Living Schemes,4306.42, 12-Mar-2012
1561,Revenue,CCHD,Supporting People Programme,Grants to Voluntary Bodies,Supported Independent Living Schemes,5195.88, 12-Mar-2012
1562,Revenue,CCHD,Frenchay Hospital Purchasing,Residential Homes,T/A Stonebow House Residential Home,1218.16, 20-Mar-2012
1563,Revenue,CCHD,Bed Purchasing - Under 65s PWLD - South,Residential Homes,The Ann Coleman Centre,5956, 20-Mar-2012
1564,Revenue,CCHD,Southmead Hospital Purchasing,Residential Homes,The Beeches,1211.44, 20-Mar-2012
1565,Revenue,CCHD,Southmead Hospital Purchasing,Residential Homes,The Beeches,570.61, 20-Mar-2012
1566,Revenue,CCHD,Frenchay Hospital Purchasing,Residential Homes,The Beeches,1125.12, 20-Mar-2012
1567,Revenue,CCHD,Southmead Hospital Purchasing,Residential Homes,The Beeches,1229, 20-Mar-2012
1568,Revenue,CCHD,Bed Purchasing - Elderly - South,Residential Homes,The Beeches,1098.68, 20-Mar-2012
1569,Revenue,CCHD,Bed purchasing - S28A Under 65 - South,Residential Homes,The Brandon Trust,27320.98, 07-Mar-2012
1570,Revenue,CCHD,Younger MH non-res purchasing,Private & Voluntary Day Care,The Brandon Trust,933.3, 01-Mar-2012
1571,Revenue,CCHD,Supported Living - PS,Private & Voluntary Home Care,The Brandon Trust,558.63, 06-Mar-2012
1572,Revenue,CCHD,Purchase of Non-Res Care - PS,Private & Voluntary Day Care,The Brandon Trust,1172.82, 06-Mar-2012
1573,Revenue,CCHD,Purchase of Non-Res Care - PS,Private & Voluntary Day Care,The Brandon Trust,1558, 07-Mar-2012
1574,Revenue,CCHD,Purchase of Non-Res Care - KD,Private & Voluntary Day Care,The Brandon Trust,799.5, 23-Mar-2012
1575,Revenue,CCHD,Purchase of Non-Res Care - KD,Private & Voluntary Day Care,The Brandon Trust,4305, 26-Mar-2012
1576,Revenue,CCHD,Purchase of Non-Res Care - KD,Private & Voluntary Day Care,The Brandon Trust,808.86, 23-Mar-2012
1577,Revenue,CCHD,Purchase of Non-Res Care - KD,Private & Voluntary Day Care,The Brandon Trust,574, 16-Mar-2012
1578,Revenue,CCHD,Purchase of Non-Res Care - KD,Private & Voluntary Day Care,The Brandon Trust,1265.88, 23-Mar-2012
1579,Revenue,CCHD,Purchase of Non-Res Care - KD,Private & Voluntary Day Care,The Brandon Trust,650.88, 26-Mar-2012
1580,Revenue,CCHD,Purchase of Non-Res Care - KD,Private & Voluntary Day Care,The Brandon Trust,1394, 23-Mar-2012
1581,Revenue,CCHD,Purchase of Non-Res Care - KH,Private & Voluntary Day Care,The Brandon Trust,1148, 22-Mar-2012
1582,Revenue,CCHD,Purchase of Non-Res Care - KH,Private & Voluntary Day Care,The Brandon Trust,5432.5, 22-Mar-2012
1583,Revenue,CCHD,Purchase of Non-Res Care - KD,Private & Voluntary Day Care,The Brandon Trust,1178.75, 23-Mar-2012
1584,Revenue,CCHD,Purchase of Non-Res Care - KH,Private & Voluntary Day Care,The Brandon Trust,3372.25, 26-Mar-2012
1585,Revenue,CCHD,Purchase of Non-Res Care - KH,Private & Voluntary Day Care,The Brandon Trust,559.98, 20-Mar-2012
1586,Revenue,CCHD,Supported Living - KH,Private & Voluntary Home Care,The Brandon Trust,559.98, 26-Mar-2012
1587,Revenue,CCHD,Purchase of Non-Res Care - KD,Private & Voluntary Day Care,The Brandon Trust,1019.88, 23-Mar-2012
1588,Revenue,CCHD,Purchase of Non-Res Care - KD,Private & Voluntary Day Care,The Brandon Trust,773.88, 26-Mar-2012
1589,Revenue,CCHD,Brandon Day Care,Private & Voluntary Day Care,The Brandon Trust,6217, 29-Mar-2012
1590,Revenue,CCHD,Bed Purchasing - Under 65s PWLD - South,Nursing Homes,The Brandon Trust  Olympus House,5641, 20-Mar-2012
1591,Revenue,CCHD,Bed Purchasing - LD S28A- Over 65- South,Residential Homes,The Brandon Trust  Olympus House,3537.96, 20-Mar-2012
1592,Revenue,CCHD,Bed Purchasing - Under 65s PWLD - South,Residential Homes,The Brandon Trust  Olympus House,11149.88, 20-Mar-2012
1593,Revenue,CCHD,Bed purchasing - Under 65s PWLD - North,Residential Homes,The Brandon Trust  Olympus House,3227.8, 20-Mar-2012
1594,Revenue,CCHD,Bed purchasing - Under 65s PWLD - North,Residential Homes,The Brandon Trust  Olympus House,5108.24, 20-Mar-2012
1595,Revenue,CCHD,Bed purchasing - Elderly PWLD - South,Residential Homes,The Brandon Trust  Olympus House,3338.16, 20-Mar-2012
1596,Revenue,CCHD,Bed Purchasing - LD S28A- Over 65- South,Residential Homes,The Brandon Trust  Olympus House,3781.68, 20-Mar-2012
1597,Revenue,CCHD,Bed Purchasing - Under 65s PWLD - South,Nursing Homes,The Brandon Trust  Olympus House,5054.2, 20-Mar-2012
1598,Revenue,CCHD,Bed purchasing - S28A Under 65 - South,Residential Homes,The Brandon Trust  Olympus House,5944.52, 20-Mar-2012
1599,Revenue,CCHD,Bed purchasing - S28A Under 65 - South,Residential Homes,The Brandon Trust  Olympus House,4815.96, 20-Mar-2012
1600,Revenue,CCHD,Bed purchasing - S28A Under 65 - South,Residential Homes,The Brandon Trust  Olympus House,5944.52, 20-Mar-2012
1601,Revenue,CCHD,Bed purchasing - S28A Under 65 - South,Residential Homes,The Brandon Trust  Olympus House,5780.52, 20-Mar-2012
1602,Revenue,CCHD,Bed Purchasing - LD S28A- Over 65- South,Nursing Homes,The Brandon Trust  Olympus House,5368.28, 20-Mar-2012
1603,Revenue,CCHD,Bed Purchasing - LD S28A- Over 65- South,Nursing Homes,The Brandon Trust  Olympus House,5720.76, 20-Mar-2012
1604,Revenue,CCHD,Bed purchasing - S28A Under 65 - South,Residential Homes,The Brandon Trust  Olympus House,5189.52, 20-Mar-2012
1605,Revenue,CCHD,Bed purchasing - S28A Under 65 - South,Residential Homes,The Brandon Trust  Olympus House,5262.04, 20-Mar-2012
1606,Revenue,CCHD,Bed Purchasing - LD S28A- Over 65- South,Residential Homes,The Brandon Trust  Olympus House,7104.36, 20-Mar-2012
1607,Revenue,CCHD,Bed purchasing - S28A Under 65 - South,Residential Homes,The Brandon Trust  Olympus House,5944.52, 20-Mar-2012
1608,Revenue,CCHD,Bed purchasing - S28A Under 65 - South,Residential Homes,The Brandon Trust  Olympus House,5944.48, 20-Mar-2012
1609,Revenue,CCHD,Bed purchasing - S28A Under 65 - South,Residential Homes,The Brandon Trust  Olympus House,4603.08, 20-Mar-2012
1610,Revenue,CCHD,Bed purchasing - S28A Under 65 - South,Residential Homes,The Brandon Trust  Olympus House,5262.08, 20-Mar-2012
1611,Revenue,CCHD,Bed Purchasing - LD S28A- Over 65- South,Residential Homes,The Brandon Trust  Olympus House,4662.84, 20-Mar-2012
1612,Revenue,CCHD,Bed Purchasing - LD S28A- Over 65- South,Residential Homes,The Brandon Trust  Olympus House,3969, 20-Mar-2012
1613,Revenue,CCHD,Purchase of Non-Res Care - KD,Private & Voluntary Day Care,The Camphill Village Trust,1626.21, 02-Mar-2012
1614,Revenue,CCHD,Purchase of Non-Res Care - KH,Private & Voluntary Day Care,The Camphill Village Trust,12879.54, 01-Mar-2012
1615,Revenue,CCHD,Purchase of Non-Res Care - KH,Private & Voluntary Day Care,The Camphill Village Trust,4155.87, 02-Mar-2012
1616,Revenue,CCHD,Purchase of Non-Res Care - KH,Private & Voluntary Day Care,The Camphill Village Trust,1264.83, 29-Mar-2012
1617,Revenue,CCHD,Purchase of Non-Res Care - KH,Private & Voluntary Day Care,The Camphill Village Trust,1264.83, 29-Mar-2012
1618,Revenue,CCHD,User Involvement,Other Supplies & Services,The Carers` Support Centre,3000, 06-Mar-2012
1619,Revenue,CCHD,SLA Grants - Support Serv,Grants to Voluntary Bodies,The Carers` Support Centre,6000, 12-Mar-2012
1620,Revenue,CCHD,Learning Difficulties Development Fund,Other Supplies & Services,The Carers` Support Centre,5000, 15-Mar-2012
1621,Revenue,CCHD,Bed purchasing - Elderly MH - North,Nursing Homes,The Cidermill,954, 20-Mar-2012
1622,Revenue,CCHD,Bed purchasing - Elderly MH - North,Residential Homes,The Cidermill,1389, 20-Mar-2012
1623,Revenue,CCHD,Bed purchasing - Elderly MH - North,Nursing Homes,The Cidermill,1181.8, 20-Mar-2012
1624,Revenue,CCHD,Kingswood Centre - Maples Suite,Furniture & Fittings Loose,The Consortium,518.22, 08-Mar-2012
1625,Revenue,CCHD,Kingswood Centre - Maples Suite,Personal Needs of Clients,The Consortium,123.72, 08-Mar-2012
1626,Revenue,CCHD,Kingswood Centre - Maples Suite,Educational Materials,The Consortium,69.98, 08-Mar-2012
1627,Revenue,CCHD,Bed Purchasing - Elderly - South,Residential Homes,The Gables Residential Home,1285.04, 20-Mar-2012
1628,Revenue,CCHD,Frenchay Hospital Purchasing,Residential Homes,The Gables Residential Home,1229, 20-Mar-2012
1629,Revenue,CCHD,Bed Purchasing - Elderly - South,Residential Homes,The Gables Residential Home,1084.28, 20-Mar-2012
1630,Revenue,CCHD,Bed purchasing - Elderly MH - North,Residential Homes,The Gables Residential Home,1172.52, 20-Mar-2012
1631,Revenue,CCHD,Bed Purchasing - Elderly S117- North,Residential Homes,The Gables Residential Home,2156.84, 20-Mar-2012
1632,Revenue,CCHD,Frenchay Hospital Purchasing,Nursing Homes,The Heathers,1285, 20-Mar-2012
1633,Revenue,CCHD,Bed purchasing - Elderly MH - North,Nursing Homes,The Heathers,1262.52, 20-Mar-2012
1634,Revenue,CCHD,Bed Purchasing - Elderly - South,Nursing Homes,The Heathers,1285, 20-Mar-2012
1635,Revenue,CCHD,Frenchay Hospital Purchasing,Nursing Homes,The Heathers,718.6, 20-Mar-2012
1636,Revenue,CCHD,Southmead Hospital Purchasing,Nursing Homes,The Heathers,1249.44, 20-Mar-2012
1637,Revenue,CCHD,Frenchay Hospital Purchasing,Nursing Homes,The Heathers,1288.24, 20-Mar-2012
1638,Revenue,CCHD,Bed purchasing - Elderly MH - North,Nursing Homes,The Heathers,1075.92, 20-Mar-2012
1639,Revenue,CCHD,Frenchay Hospital Purchasing,Nursing Homes,The Heathers,1215.84, 20-Mar-2012
1640,Revenue,CCHD,Frenchay Hospital Purchasing,Nursing Homes,The Heathers,1286.64, 20-Mar-2012
1641,Revenue,CCHD,Southmead Hospital Purchasing,Nursing Homes,The Heathers,738.32, 20-Mar-2012
1642,Revenue,CCHD,Bed Purchasing - Elderly - North,Nursing Homes,The Heathers,1140.72, 20-Mar-2012
1643,Revenue,CCHD,Bed purchasing - Elderly MH - North,Residential Homes,The Hollies,1256.16, 20-Mar-2012
1644,Revenue,CCHD,Bed Purchasing - Elderly - North,Nursing Homes,The Hollies Nursing Home,2570, 20-Mar-2012
1645,Revenue,CCHD,Detained,Nursing Homes,The Huntercombe Group,11872, 22-Mar-2012
1646,Revenue,CCHD,Detained,Nursing Homes,The Huntercombe Group,11872, 22-Mar-2012
1647,Revenue,CCHD,Bed purchasing - Under 65s PWLD - North,Residential Homes,The Manor House,780.2, 20-Mar-2012
1648,Revenue,CCHD,Bed purchasing - Under 65s PWLD - North,Residential Homes,The Manor House,600.08, 20-Mar-2012
1649,Revenue,CCHD,Under 65s PWLD - KH,Residential Homes,The Manor House,4779.6, 20-Mar-2012
1650,Revenue,CCHD,Under 65s PWLD - KH,Residential Homes,The Manor House,3398.2, 20-Mar-2012
1651,Revenue,CCHD,Under 65s PWLD - KH,Residential Homes,The Manor House,2607.12, 20-Mar-2012
1652,Revenue,CCHD,Bed purchasing - Under 65s PWLD - North,Residential Homes,The Manor House,2713, 20-Mar-2012
1653,Revenue,CCHD,Bed Purchasing - Under 65s PWLD - South,Residential Homes,The Manor House,3177.2, 20-Mar-2012
1654,Revenue,CCHD,Bed purchasing - Under 65s PWLD - North,Residential Homes,The Manor House,2755.4, 20-Mar-2012
1655,Revenue,CCHD,Under 65s PWLD - KH,Residential Homes,The Manor House,2607.12, 20-Mar-2012
1656,Revenue,CCHD,Under 65s PWLD - KH,Residential Homes,The Manor House,3249.44, 20-Mar-2012
1657,Revenue,CCHD,Under 65s PWLD - KH,Residential Homes,The Manor House,5850.64, 20-Mar-2012
1658,Revenue,CCHD,Bed purchasing - S28A Under 65 - South,Residential Homes,The Manor House,4723.6, 20-Mar-2012
1659,Revenue,CCHD,Under 65s PWLD - KH,Residential Homes,The Manor House,2845.37, 20-Mar-2012
1660,Revenue,CCHD,Under 65s PWLD - KH,Residential Homes,The Manor House,3315.88, 20-Mar-2012
1661,Revenue,CCHD,Under 65s PWLD - KH,Residential Homes,The Manor House,2898.32, 20-Mar-2012
1662,Revenue,CCHD,Under 65s PWLD - KH,Residential Homes,The Manor House,3227.2, 20-Mar-2012
1663,Revenue,CCHD,Under 65s PWLD - KH,Residential Homes,The Manor House,4799.32, 20-Mar-2012
1664,Revenue,CCHD,Bed Purchasing - Under 65s PWLD - South,Residential Homes,The Manor House,3011.72, 20-Mar-2012
1665,Revenue,CCHD,Bed Purchasing - Under 65s PWLD - South,Residential Homes,The Manor House,2829.88, 20-Mar-2012
1666,Revenue,CCHD,Under 65s PWLD - KH,Residential Homes,The Manor House,4322.32, 20-Mar-2012
1667,Revenue,CCHD,Under 65s PWLD - KH,Residential Homes,The Manor House,4204.96, 20-Mar-2012
1668,Revenue,CCHD,Bed purchasing - Under 65s PWLD - North,Residential Homes,The Manor House,3155.32, 20-Mar-2012
1669,Revenue,CCHD,Bed purchasing - Under 65s PWLD - North,Residential Homes,The Manor House,1498.68, 20-Mar-2012
1670,Revenue,CCHD,Elderly PWLD - KH,Residential Homes,The Manor House,2250.04, 20-Mar-2012
1671,Revenue,CCHD,Bed Purchasing - Under 65s PWLD - South,Residential Homes,The Manor House,3140.28, 20-Mar-2012
1672,Revenue,CCHD,Under 65s PWLD - KH,Residential Homes,The Manor House,4686.4, 20-Mar-2012
1673,Revenue,CCHD,Under 65s PWLD - KH,Residential Homes,The Manor House,2655.68, 20-Mar-2012
1674,Revenue,CCHD,Bed purchasing - Elderly MH - North,Residential Homes,The Old Vicarage Residential Home,1378.84, 20-Mar-2012
1675,Revenue,CCHD,Home Care - Elderly - North,Other Small Contracts,The Royal Bank of Scotland Commercial,1095, 27-Mar-2012
1676,Revenue,CCHD,Home Care - Elderly - North,Other Small Contracts,The Royal Bank of Scotland Commercial,1095, 27-Mar-2012
1677,Revenue,CCHD,Home Care - Elderly - South,Other Small Contracts,The Royal Bank of Scotland Commercial,1652.88, 05-Mar-2012
1678,Revenue,CCHD,Home Care - Elderly - North,Other Small Contracts,The Royal Bank of Scotland Commercial,2332.68, 05-Mar-2012
1679,Revenue,CCHD,Day Care - South,Private & Voluntary Day Care,The Royal Bank of Scotland Commercial,93.12, 05-Mar-2012
1680,Revenue,CCHD,Home care - Elderly MH - North,Other Small Contracts,The Royal Bank of Scotland Commercial,337.56, 05-Mar-2012
1681,Revenue,CCHD,Elderly MH Day Care North,Private & Voluntary Day Care,The Royal Bank of Scotland Commercial,388, 05-Mar-2012
1682,Revenue,CCHD,Bed Purchasing - Under 65s PWLD - South,Residential Homes,The Stanstead Centre,3477.88, 20-Mar-2012
1683,Revenue,CCHD,Bed purchasing - Under 65s PWLD - North,Residential Homes,The Thomas Moore Project,1894.32, 20-Mar-2012
1684,Revenue,CCHD,Home Care - LD Under 65 - North,Private & Voluntary Home Care,Thomas Armstrong,2668.4, 16-Mar-2012
1685,Revenue,CCHD,Bed Purchasing - Elderly - South,Nursing Homes,Thornhill House,1790.64, 20-Mar-2012
1686,Revenue,CCHD,Bed purchasing - Under 65s PWLD - North,Residential Homes,Three Roses Home,1854.64, 20-Mar-2012
1687,Revenue,CCHD,Learning Difficulties PSL,Rent,Individual,650, 22-Mar-2012
1688,Revenue,CCHD,Learning Difficulties PSL,Rent,Individual,750, 22-Mar-2012
1689,Revenue,CCHD,Learning Difficulties PSL,Rent,Individual,488, 22-Mar-2012
1690,Revenue,CCHD,Under 65s PWLD - KH,Residential Homes,Tomlen,6388.84, 20-Mar-2012
1691,Revenue,CCHD,Bed purchasing - Phys Dis - North,Residential Homes,Tracs Group Ltd,6112.4, 20-Mar-2012
1692,Revenue,CCHD,Bed purchasing - Phys Dis - North,Residential Homes,Tracs Group Ltd,4467.68, 20-Mar-2012
1693,Revenue,CCHD,Bed Purchasing - Under 65s PWLD - South,Residential Homes,Tracs Group Ltd,6414.36, 20-Mar-2012
1694,Revenue,CCHD,Preventative Technology Grant,Other Supplies & Services,Tunstall Healthcare (UK) Limited,3330, 02-Mar-2012
1695,Revenue,CCHD,Minor Adaptations Service,Daily Living Equipment,TVM Cheltenham Limited,845, 09-Mar-2012
1696,Revenue,CCHD,Minor Adaptations Service,Daily Living Equipment,TVM Cheltenham Limited,1430.75, 09-Mar-2012
1697,Revenue,CCHD,Minor Adaptations Service,Daily Living Equipment,TVM Cheltenham Limited,748.25, 14-Mar-2012
1698,Revenue,CCHD,Minor Adaptations Service,Daily Living Equipment,TVM Cheltenham Limited,845, 09-Mar-2012
1699,Revenue,CCHD,Minor Adaptations Service,Daily Living Equipment,TVM Cheltenham Limited,874.12, 09-Mar-2012
1700,Revenue,CCHD,Minor Adaptations Service,Daily Living Equipment,TVM Cheltenham Limited,609, 09-Mar-2012
1701,Revenue,CCHD,Minor Adaptations Service,Daily Living Equipment,TVM Cheltenham Limited,867.5, 09-Mar-2012
1702,Revenue,CCHD,Minor Adaptations Service,Daily Living Equipment,TVM Cheltenham Limited,748.25, 09-Mar-2012
1703,Revenue,CCHD,Minor Adaptations Service,Daily Living Equipment,TVM Cheltenham Limited,1249.12, 09-Mar-2012
1704,Revenue,CCHD,Minor Adaptations Service,Maintenance by Contractor,TVM Cheltenham Limited,1481.62, 14-Mar-2012
1705,Revenue,CCHD,Minor Adaptations Service,Maintenance by Contractor,TVM Cheltenham Limited,567.5, 16-Mar-2012
1706,Revenue,CCHD,Bed purchasing - Under 65s PWLD - North,Residential Homes,Ty Hafod Tudor,3787.16, 20-Mar-2012
1707,Revenue,CCHD,Preventative Technology Grant,Other Supplies & Services,Tytherington Post Office,3250, 19-Mar-2012
1708,Revenue,CCHD,Supported Living - KH,Private & Voluntary Home Care,United Response,2852.65, 12-Mar-2012
1709,Revenue,CCHD,Supported Living - KH,Private & Voluntary Home Care,United Response,2959.02, 29-Mar-2012
1710,Revenue,CCHD,Southmead Hospital Purchasing,Residential Homes,Vaughan Lee House,2324.4, 20-Mar-2012
1711,Revenue,CCHD,Tenancy Start Up Scheme,Other Supplies & Services,Venkata Mutyala,1400, 26-Mar-2012
1712,Revenue,CCHD,Bed purchasing - Elderly MH - North,Residential Homes,Ventura Residential Care Home,1229, 20-Mar-2012
1713,Revenue,CCHD,Bed Purchasing - Under 65s PWLD - South,Residential Homes,Victoria Court,11023.36, 20-Mar-2012
1714,Revenue,CCHD,Bed purchasing - Elderly PWLD - North,Residential Homes,Victoria Court,8535.32, 20-Mar-2012
1715,Revenue,CCHD,Bed Purchasing - Under 65s PWLD - South,Residential Homes,Visions,3542.56, 20-Mar-2012
1716,Revenue,CCHD,Yate District Office,Telephones,Vodafone Corporate Limited,760.91, 27-Mar-2012
1717,Revenue,CCHD,Kingswood District Office,Telephones,Vodafone Corporate Limited,662.95, 27-Mar-2012
1718,Revenue,CCHD,Thornbury District Office,Telephones,Vodafone Corporate Limited,537.82, 27-Mar-2012
1719,Revenue,CCHD,Bed Purchasing - Under 65s PWLD - South,Residential Homes,Voyage Ltd,2931.44, 20-Mar-2012
1720,Revenue,CCHD,Bed purchasing - Under 65s PWLD - North,Residential Homes,Voyage Ltd,6775.4, 20-Mar-2012
1721,Revenue,CCHD,Bed purchasing - Under 65s PWLD - North,Residential Homes,Voyage Ltd,8041.56, 20-Mar-2012
1722,Revenue,CCHD,Bed purchasing - S28A Under 65 - South,Residential Homes,Voyage Ltd,5732.68, 20-Mar-2012
1723,Revenue,CCHD,Bed Purchasing - Under 65s PWLD - South,Residential Homes,Voyage Ltd,6070.26, 20-Mar-2012
1724,Revenue,CCHD,Bed Purchasing - Under 65s PWLD - South,Residential Homes,Voyage Ltd,5263.58, 20-Mar-2012
1725,Revenue,CCHD,Bed Purchasing - Under 65s PWLD - South,Residential Homes,Voyage Ltd,6072.92, 20-Mar-2012
1726,Revenue,CCHD,Bed Purchasing - Under 65s PWLD - South,Residential Homes,Voyage Ltd,6010.4, 20-Mar-2012
1727,Revenue,CCHD,Bed purchasing - Phys Dis - South,Residential Homes,Voyage Ltd,5493.72, 20-Mar-2012
1728,Revenue,CCHD,Under 65s PWLD - KH,Residential Homes,Voyage Ltd,5098.2, 20-Mar-2012
1729,Revenue,CCHD,Under 65s PWLD - KH,Residential Homes,Voyage Ltd,5144.08, 20-Mar-2012
1730,Revenue,CCHD,Frenchay Hospital Purchasing,Residential Homes,Walton-On-Thames Charity,1234, 20-Mar-2012
1731,Revenue,CCHD,Bed purchasing - Elderly MH - North,Residential Homes,Wayside Residential Care Home,1389, 20-Mar-2012
1732,Revenue,CCHD,Bed purchasing - Elderly MH - North,Residential Homes,Wayside Residential Care Home,1322.32, 20-Mar-2012
1733,Revenue,CCHD,Frenchay Hospital Purchasing,Residential Homes,Wayside Residential Care Home,1305.84, 20-Mar-2012
1734,Revenue,CCHD,Bed purchasing - Elderly MH - North,Residential Homes,Wayside Residential Care Home,1175.4, 20-Mar-2012
1735,Revenue,CCHD,Southmead Hospital Purchasing,Residential Homes,Wayside Residential Care Home,1264.56, 20-Mar-2012
1736,Revenue,CCHD,Bed Purchasing - Elderly - South,Residential Homes,Wayside Residential Care Home,1203.52, 20-Mar-2012
1737,Revenue,CCHD,Woodleaze,Furniture & Fittings Loose,Webber & Spencer Limited,2444, 16-Mar-2012
1738,Revenue,CCHD,Bed Purchasing - PWLD S 117 Placements,Residential Homes,West Court,7773.44, 20-Mar-2012
1739,Revenue,CCHD,Bed Purchasing - Elderly - North,Nursing Homes,Westbury Nursing Home,1619.48, 20-Mar-2012
1740,Revenue,CCHD,Bed purchasing - Elderly MH - North,Residential Homes,Westbury Nursing Home,1723.84, 20-Mar-2012
1741,Revenue,CCHD,Bed Purchasing - Elderly - North,Residential Homes,Wickwar Nursing Home  Castle House,6488.36, 20-Mar-2012
1742,Revenue,CCHD,Bed Purchasing - Elderly - North,Residential Homes,Wickwar Nursing Home  Castle House,1157.16, 20-Mar-2012
1743,Revenue,CCHD,Bed Purchasing - Elderly - North,Residential Homes,Wickwar Nursing Home  Castle House,1389, 20-Mar-2012
1744,Revenue,CCHD,South Glos Users in South Glos Homes,Nursing Homes,Wickwar Nursing Home  Castle House,2437.99, 20-Mar-2012
1745,Revenue,CCHD,South Glos Users in South Glos Homes,Nursing Homes,Wickwar Nursing Home  Castle House,2437.99, 20-Mar-2012
1746,Revenue,CCHD,South Glos Users in South Glos Homes,Nursing Homes,Wickwar Nursing Home  Castle House,2437.99, 20-Mar-2012
1747,Revenue,CCHD,Bed Purchasing - Elderly - North,Residential Homes,Wickwar Nursing Home  Castle House,1201.88, 20-Mar-2012
1748,Revenue,CCHD,Frenchay Hospital Purchasing,Nursing Homes,Wickwar Nursing Home  Castle House,969.24, 20-Mar-2012
1749,Revenue,CCHD,South Glos Users in South Glos Homes,Nursing Homes,Wickwar Nursing Home  Castle House,2437.99, 20-Mar-2012
1750,Revenue,CCHD,Bed Purchasing - Elderly - North,Residential Homes,Wickwar Nursing Home  Castle House,1339.48, 20-Mar-2012
1751,Revenue,CCHD,Bed Purchasing - Elderly - North,Nursing Homes,Wickwar Nursing Home  Castle House,1285, 20-Mar-2012
1752,Revenue,CCHD,South Glos Users in South Glos Homes,Nursing Homes,Wickwar Nursing Home  Castle House,2437.99, 20-Mar-2012
1753,Revenue,CCHD,Bed Purchasing - Elderly - North,Residential Homes,Wickwar Nursing Home  Castle House,1216.04, 20-Mar-2012
1754,Revenue,CCHD,Bed Purchasing - Elderly - North,Nursing Homes,Wickwar Nursing Home  Castle House,1590.48, 20-Mar-2012
1755,Revenue,CCHD,Frenchay Hospital Purchasing,Nursing Homes,Wickwar Nursing Home  Castle House,1009.72, 20-Mar-2012
1756,Revenue,CCHD,Southmead Hospital Purchasing,Nursing Homes,Wickwar Nursing Home  Castle House,1070.52, 20-Mar-2012
1757,Revenue,CCHD,Bed Purchasing - Elderly - North,Nursing Homes,Wickwar Nursing Home  Castle House,5128.16, 20-Mar-2012
1758,Revenue,CCHD,Bed Purchasing - Elderly - North,Nursing Homes,Wickwar Nursing Home  Castle House,1282.04, 20-Mar-2012
1759,Revenue,CCHD,South Glos Users in South Glos Homes,Nursing Homes,Wickwar Nursing Home  Castle House,2437.99, 20-Mar-2012
1760,Revenue,CCHD,Bed Purchasing - Elderly - South,Nursing Homes,Wickwar Nursing Home  Castle House,1378.44, 20-Mar-2012
1761,Revenue,CCHD,Bed purchasing - Phys Dis - North,Nursing Homes,Wickwar Nursing Home  Castle House,1101.84, 20-Mar-2012
1762,Revenue,CCHD,South Glos Users in South Glos Homes,Nursing Homes,Wickwar Nursing Home  Castle House,2437.99, 20-Mar-2012
1763,Revenue,CCHD,Frenchay Hospital Purchasing,Residential Homes,Willow Cottage,1055.12, 20-Mar-2012
1764,Revenue,CCHD,Southmead Hospital Purchasing,Residential Homes,Willow Cottage,1382.6, 20-Mar-2012
1765,Revenue,CCHD,Southmead Hospital Purchasing,Residential Homes,Willow Cottage,1311.43, 20-Mar-2012
1766,Revenue,CCHD,Southmead Hospital Purchasing,Residential Homes,Willow Cottage,1383.32, 20-Mar-2012
1767,Revenue,CCHD,Bed purchasing - Phys Dis - North,Nursing Homes,Willow Cottage,1285, 20-Mar-2012
1768,Revenue,CCHD,Frenchay Hospital Purchasing,Nursing Homes,Willow Cottage,1564.72, 20-Mar-2012
1769,Revenue,CCHD,Frenchay Hospital Purchasing,Nursing Homes,Willow Cottage,950.01, 20-Mar-2012
1770,Revenue,CCHD,Frenchay Hospital Purchasing,Nursing Homes,Willow Cottage,969.96, 20-Mar-2012
1771,Revenue,CCHD,Bed Purchasing - Elderly - North,Nursing Homes,Willow Cottage,1945.44, 20-Mar-2012
1772,Revenue,CCHD,Southmead Hospital Purchasing,Nursing Homes,Willow Cottage,1441.88, 20-Mar-2012
1773,Revenue,CCHD,Bed purchasing - Phys Dis - North,Nursing Homes,Willow Cottage,1652.08, 20-Mar-2012
1774,Revenue,CCHD,Bed Purchasing - Elderly - North,Nursing Homes,Willow Cottage,1215.44, 20-Mar-2012
1775,Revenue,CCHD,Southmead Hospital Purchasing,Nursing Homes,Willow Cottage,1294.68, 20-Mar-2012
1776,Revenue,CCHD,Supporting People Programme,Grants to Voluntary Bodies,Willowbank Care Limited,1329.28, 06-Mar-2012
1777,Revenue,CCHD,Supporting People Programme,Grants to Voluntary Bodies,Willowbank Care Limited,1329.28, 06-Mar-2012
1778,Revenue,CCHD,Supported Living - KD,Private & Voluntary Home Care,Willowbank Care Limited,1920, 05-Mar-2012
1779,Revenue,CCHD,Supported Living - KD,Private & Voluntary Home Care,Willowbank Care Limited,1920, 20-Mar-2012
1780,Revenue,CCHD,Supported Living - KD,Private & Voluntary Home Care,Willowbank Care Limited,6191.18, 05-Mar-2012
1781,Revenue,CCHD,Supported Living - KD,Private & Voluntary Home Care,Willowbank Care Limited,6191.18, 20-Mar-2012
1782,Revenue,CCHD,Supported Living - KD,Private & Voluntary Home Care,Willowbank Care Limited,4237.16, 05-Mar-2012
1783,Revenue,CCHD,Supported Living - KD,Private & Voluntary Home Care,Willowbank Care Limited,4237.16, 20-Mar-2012
1784,Revenue,CCHD,Supported Living - KD,Private & Voluntary Home Care,Willowbank Care Limited,1358.28, 08-Mar-2012
1785,Revenue,CCHD,Supported Living - KD,Private & Voluntary Home Care,Willowbank Care Limited,1358.28, 20-Mar-2012
1786,Revenue,CCHD,Supported Living - KD,Private & Voluntary Home Care,Willowbank Care Limited,4091.56, 08-Mar-2012
1787,Revenue,CCHD,Supported Living - KD,Private & Voluntary Home Care,Willowbank Care Limited,4091.56, 20-Mar-2012
1788,Revenue,CCHD,Supported Living - KD,Private & Voluntary Home Care,Willowbank Care Limited,2756.94, 08-Mar-2012
1789,Revenue,CCHD,Supported Living - KD,Private & Voluntary Home Care,Willowbank Care Limited,917.42, 05-Mar-2012
1790,Revenue,CCHD,Supported Living - KD,Private & Voluntary Home Care,Willowbank Care Limited,917.42, 30-Mar-2012
1791,Revenue,CCHD,Supported Living - KD,Private & Voluntary Home Care,Willowbank Care Limited,4743.08, 05-Mar-2012
1792,Revenue,CCHD,Supported Living - KD,Private & Voluntary Home Care,Willowbank Care Limited,4743.08, 20-Mar-2012
1793,Revenue,CCHD,Supported Living - KD,Private & Voluntary Home Care,Willowbank Care Limited,2048.78, 08-Mar-2012
1794,Revenue,CCHD,Supported Living - KD,Private & Voluntary Home Care,Willowbank Care Limited,2048.78, 20-Mar-2012
1795,Revenue,CCHD,Supported Living - KD,Private & Voluntary Home Care,Willowbank Care Limited,2598.36, 05-Mar-2012
1796,Revenue,CCHD,Supported Living - KD,Private & Voluntary Home Care,Willowbank Care Limited,2598.36, 20-Mar-2012
1797,Revenue,CCHD,Supported Living (S28a) South,Private & Voluntary Home Care,Willowbank Care Limited,4371.02, 21-Mar-2012
1798,Revenue,CCHD,Supported Living (S28a) South,Private & Voluntary Home Care,Willowbank Care Limited,4371.02, 06-Mar-2012
1799,Revenue,CCHD,Supported Living (S28a) South,Private & Voluntary Home Care,Willowbank Care Limited,4371.02, 20-Mar-2012
1800,Revenue,CCHD,Supported Living (S28a) South,Private & Voluntary Home Care,Willowbank Care Limited,4616.5, 21-Mar-2012
1801,Revenue,CCHD,Supported Living (S28a) South,Private & Voluntary Home Care,Willowbank Care Limited,4616.5, 06-Mar-2012
1802,Revenue,CCHD,Supported Living (S28a) South,Private & Voluntary Home Care,Willowbank Care Limited,4616.5, 20-Mar-2012
1803,Revenue,CCHD,Supported Living - KD,Private & Voluntary Home Care,Willowbank Care Limited,2999.98, 05-Mar-2012
1804,Revenue,CCHD,Supported Living - KD,Private & Voluntary Home Care,Willowbank Care Limited,2999.98, 20-Mar-2012
1805,Revenue,CCHD,Supported Living - KD,Private & Voluntary Home Care,Willowbank Care Limited,3024.78, 08-Mar-2012
1806,Revenue,CCHD,Supported Living - KD,Private & Voluntary Home Care,Willowbank Care Limited,3024.78, 29-Mar-2012
1807,Revenue,CCHD,Supported Living - KD,Private & Voluntary Home Care,Willowbank Care Limited,2251.48, 08-Mar-2012
1808,Revenue,CCHD,Supported Living - KD,Private & Voluntary Home Care,Willowbank Care Limited,2251.48, 20-Mar-2012
1809,Revenue,CCHD,Supported Living (S28a) South,Private & Voluntary Home Care,Willowbank Care Limited,607.85, 09-Mar-2012
1810,Revenue,CCHD,Day Care - North,Private & Voluntary Day Care,Windmill Care Limited,640, 22-Mar-2012
1811,Revenue,CCHD,Bed Purchasing - Elderly - North,Residential Homes,Windmill House,2213.84, 20-Mar-2012
1812,Revenue,CCHD,Bed purchasing - Elderly MH - North,Residential Homes,Windmill House,2558.24, 20-Mar-2012
1813,Revenue,CCHD,Bed purchasing - Elderly MH - North,Residential Homes,Windmill House,2431.92, 20-Mar-2012
